NUMERO_MANDATO;RIGA_MANDATO;QUIET;IMPORTO_RIGA;IMPORTO_MANDATO;BENEFICIARIO;CIG;TITOLO_PAGAMENTO;DATA_MANDATO;CAPITOLO;ARTICOLO;NUMERO_IMPEGNO;TITOLO;DESCR_TITOLO;LIVELLO_II;DESCR_LIVELLO_II;LIVELLO_III;DESCR_LIVELLO_III;LIVELLO_IV;DESCR_LIVELLO_IV;LIVELLO_V;DESCR_LIVELLO_V;DATA_PAG_EFF;
1;1;18;"141,85";"141,85";GP GLOBAL POWER SPA;7226954F17;SALDO Fatt.n. V0/153719  del 11/12/2018 Fattura Energia Elettrica;10-01-2019;886;0;496;1;Spese correnti;3;Acquisto di beni e servizi;2;Acquisto di servizi;5;Utenze e canoni;4;Energia elettrica;21-01-2019;
2;1;19;"104,94";"104,94";GP GLOBAL POWER SPA;7226954F17;SALDO Fatt.n. V0/153725  del 11/12/2018 Fattura Energia Elettrica;10-01-2019;581;0;576;1;Spese correnti;3;Acquisto di beni e servizi;2;Acquisto di servizi;5;Utenze e canoni;4;Energia elettrica;21-01-2019;
3;1;20;"33,70";"33,70";GP GLOBAL POWER SPA;7226954F17;SALDO Fatt.n. V0/153722  del 11/12/2018 Fattura Energia Elettrica;10-01-2019;211;0;573;1;Spese correnti;3;Acquisto di beni e servizi;2;Acquisto di servizi;5;Utenze e canoni;4;Energia elettrica;21-01-2019;
4;1;21;"117,85";"117,85";GP GLOBAL POWER SPA;7226954F17;SALDO Fatt.n. V0/153724  del 11/12/2018 Fattura Energia Elettrica;10-01-2019;541;0;575;1;Spese correnti;3;Acquisto di beni e servizi;2;Acquisto di servizi;5;Utenze e canoni;4;Energia elettrica;21-01-2019;
5;1;22;"74,12";"74,12";GP GLOBAL POWER SPA;7226954F17;SALDO Fatt.n. V0/153717  del 11/12/2018 Fattura Energia Elettrica;10-01-2019;885;0;578;1;Spese correnti;3;Acquisto di beni e servizi;2;Acquisto di servizi;5;Utenze e canoni;6;Gas;21-01-2019;
6;1;23;"193,37";"193,37";GP GLOBAL POWER SPA;7226954F17;SALDO Fatt.n. V0/153718  del 11/12/2018 Fattura Energia Elettrica;10-01-2019;881;0;577;1;Spese correnti;3;Acquisto di beni e servizi;2;Acquisto di servizi;5;Utenze e canoni;4;Energia elettrica;21-01-2019;
7;1;24;"357,26";"357,26";GP GLOBAL POWER SPA;7226954F17;SALDO Fatt.n. V0/153721  del 11/12/2018 Fattura Energia Elettrica;10-01-2019;111;0;146;1;Spese correnti;3;Acquisto di beni e servizi;2;Acquisto di servizi;5;Utenze e canoni;4;Energia elettrica;21-01-2019;
8;1;25;"29,70";"29,70";GP GLOBAL POWER SPA;7226954F17;SALDO Fatt.n. V0/153726  del 11/12/2018 Fattura Energia Elettrica;10-01-2019;951;0;579;1;Spese correnti;3;Acquisto di beni e servizi;2;Acquisto di servizi;5;Utenze e canoni;4;Energia elettrica;21-01-2019;
9;1;26;"76,94";"76,94";GP GLOBAL POWER SPA;7226954F17;SALDO Fatt.n. V0/153723  del 11/12/2018 Fattura Energia Elettrica;10-01-2019;354;0;574;1;Spese correnti;3;Acquisto di beni e servizi;2;Acquisto di servizi;5;Utenze e canoni;4;Energia elettrica;21-01-2019;
10;1;27;"2.466,75";"2.466,75";GP GLOBAL POWER SPA;7226954F17;SALDO Fatt.n. V0/153720  del 11/12/2018 Fattura Energia Elettrica;10-01-2019;960;0;580;1;Spese correnti;3;Acquisto di beni e servizi;2;Acquisto di servizi;5;Utenze e canoni;4;Energia elettrica;21-01-2019;
11;1;28;"15,64";"15,64";TELECOM ITALIA;Z8A08BEC62;SALDO Fatt.n. 8E00908949  del 05/10/2018 6BIM 2018;10-01-2019;213;0;245;1;Spese correnti;3;Acquisto di beni e servizi;2;Acquisto di servizi;5;Utenze e canoni;1;Telefonia fissa;21-01-2019;
12;1;29;"15,58";"15,58";TELECOM ITALIA;Z8A08BEC62;SALDO Fatt.n. 8E00908377  del 05/10/2018 6BIM 2018;10-01-2019;113;0;243;1;Spese correnti;3;Acquisto di beni e servizi;2;Acquisto di servizi;5;Utenze e canoni;1;Telefonia fissa;21-01-2019;
13;1;30;"11,42";"11,42";TELECOM ITALIA;Z8A08BEC62;SALDO Fatt.n. 8E00908473  del 05/10/2018 6BIM 2018;10-01-2019;543;0;246;1;Spese correnti;3;Acquisto di beni e servizi;2;Acquisto di servizi;5;Utenze e canoni;1;Telefonia fissa;21-01-2019;
14;1;31;"14,96";"14,96";TELECOM ITALIA;Z8A08BEC62;SALDO Fatt.n. 8E00917332  del 05/10/2018 6BIM 2018;10-01-2019;113;0;242;1;Spese correnti;3;Acquisto di beni e servizi;2;Acquisto di servizi;5;Utenze e canoni;1;Telefonia fissa;21-01-2019;
15;1;32;"28,65";"28,65";TELECOM ITALIA;Z8A08BEC62;SALDO Fatt.n. 8E00914451  del 05/10/2018 6BIM 2018;10-01-2019;113;0;244;1;Spese correnti;3;Acquisto di beni e servizi;2;Acquisto di servizi;5;Utenze e canoni;1;Telefonia fissa;21-01-2019;
16;1;33;"26,12";"26,12";TELECOM ITALIA;Z8A08BEC62;SALDO Fatt.n. 8E00909042  del 05/10/2018 6BIM 2018;10-01-2019;583;0;247;1;Spese correnti;3;Acquisto di beni e servizi;2;Acquisto di servizi;5;Utenze e canoni;1;Telefonia fissa;21-01-2019;
17;1;34;"9,69";"9,69";TELECOM ITALIA;Z8A08BEC62;SALDO Fatt.n. 8E00911851  del 05/10/2018 6BIM 2018;10-01-2019;113;0;241;1;Spese correnti;3;Acquisto di beni e servizi;2;Acquisto di servizi;5;Utenze e canoni;1;Telefonia fissa;21-01-2019;
19;1;35;"4.048,80";"4.048,80";VELOX SERVIZI SRL;Z8A24AA547;SALDO Fatt.n. 19/PA  del 30/09/2018 FATTURA IMMEDIATA;16-01-2019;549;0;504;1;Spese correnti;3;Acquisto di beni e servizi;2;Acquisto di servizi;9;Manutenzione ordinaria e riparazioni;8;Manutenzione ordinaria e riparazioni di beni immobili;21-01-2019;
20;1;36;"15.582,00";"15.582,00";ARDEA SRL;Z9F2429A12;SALDO Fatt.n. 2  del 07/01/2019 FATTURA;16-01-2019;464;0;376;1;Spese correnti;3;Acquisto di beni e servizi;2;Acquisto di servizi;7;Utilizzo di beni di terzi;1;Locazione di beni immobili;21-01-2019;
21;1;37;"3.172,00";"3.172,00";MANTOVANI DANIEL;Z0E24E4B94;SALDO Fatt.n. 000013-2018-FE  del 10/10/2018 Incarico professionale per la redazione della Variante n.9 al Piano degli Interventi;16-01-2019;1730;0;512;2;Spese in conto capitale;2;Investimenti fissi lordi e acquisto di terreni;3;Beni immateriali;5;Incarichi professionali per la realizzazione di investimenti;1;Incarichi professionali per la realizzazione di investimenti;21-01-2019;
22;1;38;"1.122,00";"1.122,00";VALLISARI ADRIANA;Z1923784C1;SALDO Fatt.n. FATTPA 10_18  del 03/12/2018 COMPENSO PER INCARICO DI DIRETTORE RESPONSABILE DEL PERIODICO COMUNALE "LA GAZZETTA TERMALE" (anno XIX numero 2 - ottobre 2018 - Speciale Caserma VVFF). CIG: Z1923784C1 - Impegno di spesa n. 303/2018;16-01-2019;147;0;303;1;Spese correnti;3;Acquisto di beni e servizi;2;Acquisto di servizi;2;"Organizzazione eventi, pubblicita` e servizi per trasferta";999;"Altre spese per relazioni pubbliche, convegni e mostre, pubblicita` n.a.c";21-01-2019;
23;1;39;"95,16";"95,16";MYO SRL;Z6524FFCDD;SALDO Fatt.n. 2040/180030401  del 29/11/2018 FATTURA;16-01-2019;110;0;566;1;Spese correnti;3;Acquisto di beni e servizi;1;Acquisto di beni;2;Altri beni di consumo;1;"Carta, cancelleria e stampati";21-01-2019;
24;1;40;"313,14";"313,14";MYO SRL;Z6524FFCDD;SALDO Fatt.n. 2040/180031714  del 07/12/2018 FATTURA;16-01-2019;110;0;566;1;Spese correnti;3;Acquisto di beni e servizi;1;Acquisto di beni;2;Altri beni di consumo;1;"Carta, cancelleria e stampati";21-01-2019;
25;1;41;"254,59";"254,59";MYO SRL;Z1323A7A05;SALDO Fatt.n. 2040/180031713  del 07/12/2018 FATTURA;16-01-2019;330;0;282;1;Spese correnti;3;Acquisto di beni e servizi;1;Acquisto di beni;2;Altri beni di consumo;1;"Carta, cancelleria e stampati";21-01-2019;
26;1;42;"24,77";"24,77";LEGGERE SRL;Z2A2362668;SALDO Fatt.n. 21837  del 30/11/2018 FATTURA;16-01-2019;681;0;263;1;Spese correnti;3;Acquisto di beni e servizi;1;Acquisto di beni;1;"Giornali, riviste e pubblicazioni";2;Pubblicazioni;21-01-2019;
27;1;43;"-0,01";"157,43";LEGGERE SRL;Z2A2362668;SALDO Fatt.n. 21838  del 30/11/2018 FATTURA;16-01-2019;681;0;263;1;Spese correnti;3;Acquisto di beni e servizi;1;Acquisto di beni;1;"Giornali, riviste e pubblicazioni";2;Pubblicazioni;21-01-2019;
27;2;43;"157,44";"157,43";LEGGERE SRL;Z2A2362668;SALDO Fatt.n. 21838  del 30/11/2018 FATTURA;16-01-2019;681;0;263;1;Spese correnti;3;Acquisto di beni e servizi;1;Acquisto di beni;1;"Giornali, riviste e pubblicazioni";2;Pubblicazioni;21-01-2019;
28;1;64;"1.091,35";"1.091,35";MINISTERO INTERNO - DIREZIONE CENTR SERV DEMOGRAFICI; ;COMUNE DI CALDIERO NR. 65 CARTE IDENTITA' PERIODO DICEMBRE 2018;16-01-2019;325;0;379;1;Spese correnti;4;Trasferimenti correnti;1;Trasferimenti correnti a Amministrazioni Pubbliche;1;Trasferimenti correnti a Amministrazioni Centrali;1;Trasferimenti correnti a Ministeri;23-01-2019;
29;1;44;"-43,43";"52,97";FOLETTO LUCIANO SRL;ZF7224BB95;SALDO Fatt.n. 2018-E-0000034  del 16/11/2018 NOTA ACCREDITO PA;16-01-2019;350;0;116;1;Spese correnti;3;Acquisto di beni e servizi;1;Acquisto di beni;2;Altri beni di consumo;999;Altri beni e materiali di consumo n.a.c.;21-01-2019;
29;2;44;"0,01";"52,97";FOLETTO LUCIANO SRL;ZF7224BB95;SALDO Fatt.n. 2018-E-0000035  del 16/11/2018 FATTURE ELETTRONICHE;16-01-2019;350;0;116;1;Spese correnti;3;Acquisto di beni e servizi;1;Acquisto di beni;2;Altri beni di consumo;999;Altri beni e materiali di consumo n.a.c.;21-01-2019;
29;3;44;"43,43";"52,97";FOLETTO LUCIANO SRL;ZF7224BB95;SALDO Fatt.n. 2018-E-0000025  del 29/09/2018 FATTURE ELETTRONICHE;16-01-2019;350;0;116;1;Spese correnti;3;Acquisto di beni e servizi;1;Acquisto di beni;2;Altri beni di consumo;999;Altri beni e materiali di consumo n.a.c.;21-01-2019;
29;4;44;"52,96";"52,97";FOLETTO LUCIANO SRL;ZF7224BB95;ACCONTO Fatt.n. 2018-E-0000035  del 16/11/2018 FATTURE ELETTRONICHE;16-01-2019;350;0;116;1;Spese correnti;3;Acquisto di beni e servizi;1;Acquisto di beni;2;Altri beni di consumo;999;Altri beni e materiali di consumo n.a.c.;21-01-2019;
30;1;45;"1.507,92";"1.507,92";VASTARREDO  SRL;Z4724CEA49;SALDO Fatt.n. 2018-VA5-0000557  del 29/11/2018 FATTURA P.A.;16-01-2019;1201;0;511;2;Spese in conto capitale;2;Investimenti fissi lordi e acquisto di terreni;1;Beni materiali;3;Mobili e arredi;999;Mobili e arredi n.a.c.;21-01-2019;
31;1;46;"3.298,88";"3.298,88";BOTTURI BENEDETTO;ZC924520BC;SALDO Fatt.n. 01/PA 2018  del 11/12/2018 AttivitÃ  come da determinazione N.ro 104 Reg. Area Tecnica del 11/07/2018. Predisposizione piani di gestione delle emergenze delle seguenti manifestazioni realizzate nel 2018: "Notte Bianca";16-01-2019;270;0;418;1;Spese correnti;3;Acquisto di beni e servizi;2;Acquisto di servizi;11;Prestazioni professionali e specialistiche;999;Altre prestazioni professionali e specialistiche n.a.c.;21-01-2019;
32;1;47;"129,17";"129,17";LA RONDA - SERVIZI DI VIGILANZA;Z4022A6179;SALDO Fatt.n. 0014565  del 30/11/2018 FATTURA;16-01-2019;357;0;205;1;Spese correnti;3;Acquisto di beni e servizi;2;Acquisto di servizi;13;Servizi ausiliari per il funzionamento dell'ente;1;"Servizi di sorveglianza, custodia e accoglienza";21-01-2019;
33;1;48;"1.819,02";"1.819,02";ACHAB SRL;ZA3254C38D;SALDO Fatt.n. 00462  del 30/11/2018 FATTURA;16-01-2019;840;0;617;1;Spese correnti;3;Acquisto di beni e servizi;2;Acquisto di servizi;15;Contratti di servizio pubblico;4;Contratti di servizio per la raccolta rifiuti;21-01-2019;
34;1;49;"243,62";"243,62";KUWAIT PETROLEUM ITALIA SPA;ZA91845EEC;SALDO Fatt.n. PJ00552956  del 30/11/2018 FATTURA;16-01-2019;290;0;626;1;Spese correnti;3;Acquisto di beni e servizi;1;Acquisto di beni;2;Altri beni di consumo;2;"Carburanti, combustibili e lubrificanti";21-01-2019;
35;1;50;"2.230,56";"2.230,56";COOPERATIVA SOCIALE VENETA ONLUS;Z431F034F6;SALDO Fatt.n. 000241-2018-PA  del 30/11/2018 FATTURA;16-01-2019;782;0;454;1;Spese correnti;3;Acquisto di beni e servizi;2;Acquisto di servizi;9;Manutenzione ordinaria e riparazioni;8;Manutenzione ordinaria e riparazioni di beni immobili;21-01-2019;
36;1;51;"1.523,78";"1.523,78";METALCO SRL;Z7924CC6BD;SALDO Fatt.n. 2018130000399  del 29/11/2018 FATTURA;16-01-2019;1181;0;552;2;Spese in conto capitale;2;Investimenti fissi lordi e acquisto di terreni;1;Beni materiali;9;Beni immobili;12;Infrastrutture stradali;21-01-2019;
37;1;52;"170,80";"170,80";RATTICIDA VENETA SAS DI FERLENGA M. E G.;ZF31F0A617;SALDO Fatt.n. 202/PA  del 03/12/2018 FATTURA;16-01-2019;465;0;453;1;Spese correnti;3;Acquisto di beni e servizi;2;Acquisto di servizi;99;Altri servizi;999;Altri servizi diversi n.a.c.;21-01-2019;
38;1;53;"782,74";"782,74";SVAI SPA - NON USARE;ZCC24F9057;SALDO Fatt.n. 300482  del 14/12/2018 FATTURA;16-01-2019;350;0;544;1;Spese correnti;3;Acquisto di beni e servizi;1;Acquisto di beni;2;Altri beni di consumo;999;Altri beni e materiali di consumo n.a.c.;21-01-2019;
39;1;54;"84,24";"84,24";SVAI SPA - NON USARE;ZCD224CEA8;SALDO Fatt.n. 300483  del 14/12/2018 FATTURA;16-01-2019;350;0;123;1;Spese correnti;3;Acquisto di beni e servizi;1;Acquisto di beni;2;Altri beni di consumo;999;Altri beni e materiali di consumo n.a.c.;21-01-2019;
40;1;55;"4.821,44";"4.821,44";CONSORZIO DI BACINO VERONA DUE DEL QUADRILATERO; ;SALDO Fatt.n. 004796/02  del 30/11/2018 FATTURA;16-01-2019;841;0;175;1;Spese correnti;4;Trasferimenti correnti;1;Trasferimenti correnti a Amministrazioni Pubbliche;2;Trasferimenti correnti a Amministrazioni Locali;18;Trasferimenti correnti a Consorzi di enti locali;21-01-2019;
41;1;56;"235,10";"235,10";CONSORZIO DI BACINO VERONA DUE DEL QUADRILATERO; ;SALDO Fatt.n. 005088/02  del 13/12/2018 FATTURA;16-01-2019;840;0;396;1;Spese correnti;3;Acquisto di beni e servizi;2;Acquisto di servizi;15;Contratti di servizio pubblico;4;Contratti di servizio per la raccolta rifiuti;21-01-2019;
42;1;57;"931,15";"931,15";EDILTOSI SRL;Z9B248C873;SALDO Fatt.n. 006857  del 30/11/2018 FATTURA;16-01-2019;350;0;505;1;Spese correnti;3;Acquisto di beni e servizi;1;Acquisto di beni;2;Altri beni di consumo;999;Altri beni e materiali di consumo n.a.c.;21-01-2019;
43;1;58;"264,00";"264,00";CONSORZIO DI BACINO VERONA DUE DEL QUADRILATERO; ;SALDO Fatt.n. 004703/02  del 19/11/2018 FATTURA;16-01-2019;840;0;174;1;Spese correnti;3;Acquisto di beni e servizi;2;Acquisto di servizi;15;Contratti di servizio pubblico;4;Contratti di servizio per la raccolta rifiuti;21-01-2019;
44;1;59;"1.171,19";"1.171,19";OFFICINA ALBERTI SNC;Z1C254BE8A;SALDO Fatt.n. 118  del 13/11/2018 FATTURA;16-01-2019;292;0;560;1;Spese correnti;3;Acquisto di beni e servizi;2;Acquisto di servizi;9;Manutenzione ordinaria e riparazioni;1;"Manutenzione ordinaria e riparazioni di mezzi di trasporto ad uso civile, di sicurezza e ordine pubblico";21-01-2019;
45;1;60;"865,70";"865,70";COOPERATIVA SOCIALE MONSCLEDA LAVORO SRL;ZBB1F09313;SALDO Fatt.n. 200/2018  del 01/10/2018 FATTURA;16-01-2019;952;0;429;1;Spese correnti;3;Acquisto di beni e servizi;2;Acquisto di servizi;9;Manutenzione ordinaria e riparazioni;8;Manutenzione ordinaria e riparazioni di beni immobili;21-01-2019;
46;1;61;"1.494,16";"1.494,16";MATTARANETTA SOCIETA' COOPERATIVA SOCIALE;Z9F225C229;SALDO Fatt.n. 35/FE  del 30/11/2018 FATTURA IMMEDIATA;16-01-2019;840;0;141;1;Spese correnti;3;Acquisto di beni e servizi;2;Acquisto di servizi;15;Contratti di servizio pubblico;4;Contratti di servizio per la raccolta rifiuti;21-01-2019;
47;1;62;"478,24";"478,24";CIDIELLE COOPERATIVA SOCIALE;Z1E1EC391B;SALDO Fatt.n. 259/02  del 30/11/2018 FATTURA;16-01-2019;840;0;326;1;Spese correnti;3;Acquisto di beni e servizi;2;Acquisto di servizi;15;Contratti di servizio pubblico;4;Contratti di servizio per la raccolta rifiuti;21-01-2019;
48;1;63;"89,07";"89,07";FOLETTO LUCIANO SRL;ZF7224BB95;SALDO Fatt.n. 2018-E-0000030  del 31/10/2018 FATTURE ELETTRONICHE;16-01-2019;350;0;116;1;Spese correnti;3;Acquisto di beni e servizi;1;Acquisto di beni;2;Altri beni di consumo;999;Altri beni e materiali di consumo n.a.c.;21-01-2019;
49;1;65;"2.357,55";"2.357,55";CIDIELLE COOPERATIVA SOCIALE;6993707D94;SALDO Fatt.n. 245/02  del 30/11/2018 FATTURA;17-01-2019;117;0;150;1;Spese correnti;3;Acquisto di beni e servizi;2;Acquisto di servizi;13;Servizi ausiliari per il funzionamento dell'ente;2;Servizi di pulizia e lavanderia;23-01-2019;
50;1;66;"2.357,55";"2.357,55";CIDIELLE COOPERATIVA SOCIALE;6993707D94;SALDO Fatt.n. 283/02  del 31/12/2018 FATTURA;17-01-2019;117;0;150;1;Spese correnti;3;Acquisto di beni e servizi;2;Acquisto di servizi;13;Servizi ausiliari per il funzionamento dell'ente;2;Servizi di pulizia e lavanderia;23-01-2019;
51;1;67;"188,73";"188,73";OLIVETTI  SPA;ZA31A76D7F;SALDO Fatt.n. A20020181000046811  del 31/12/2018 FATTURA;17-01-2019;109;0;408;1;Spese correnti;3;Acquisto di beni e servizi;2;Acquisto di servizi;7;Utilizzo di beni di terzi;4;Noleggi di hardware;23-01-2019;
52;1;68;"31,99";"31,99";LA BOTTEGA DELL'INFORMATICA SAS;ZCB22DBE88;SALDO Fatt.n. 3/PA  del 30/11/2018 Rif. Doc. di trasporto 15 del 14/11/2018;17-01-2019;110;0;196;1;Spese correnti;3;Acquisto di beni e servizi;1;Acquisto di beni;2;Altri beni di consumo;999;Altri beni e materiali di consumo n.a.c.;23-01-2019;
53;1;69;"2.142,00";"2.142,00";SOCIETA' COOPERATIVA CULTURE;7559364882;SALDO Fatt.n. 1783/FE  del 27/12/2018 FATTURA;17-01-2019;680;0;547;1;Spese correnti;3;Acquisto di beni e servizi;2;Acquisto di servizi;15;Contratti di servizio pubblico;999;Altre spese per contratti di servizio pubblico;23-01-2019;
54;1;70;"214,39";"214,39";SHARP ELECTRONICS ITALIA SPA;ZF81FAD390;"SALDO Fatt.n. 7718023306  del 21/12/2018 COMUNE DI CALDIERO, ORDINE 3811295, CIG ZF81FAD390 COMPETENZA 21/09/2018 al 20/12/2018 NUM.RATA     5";17-01-2019;109;0;483;1;Spese correnti;3;Acquisto di beni e servizi;2;Acquisto di servizi;7;Utilizzo di beni di terzi;4;Noleggi di hardware;23-01-2019;
55;1;71;"549,00";"549,00";TIPOGRAFIA CENTRALE SAS DI GIONA F & C;Z3D26591CF;SALDO Fatt.n. FATTPA 54_18  del 27/12/2018 FATTURA;17-01-2019;115;0;710;1;Spese correnti;3;Acquisto di beni e servizi;2;Acquisto di servizi;11;Prestazioni professionali e specialistiche;999;Altre prestazioni professionali e specialistiche n.a.c.;23-01-2019;
56;1;72;"1.414,40";"1.414,40";TIPOGRAFIA CENTRALE SAS DI GIONA F & C;Z8423A29AF;SALDO Fatt.n. FATTPA 53_18  del 27/12/2018 FATTURA;17-01-2019;147;0;304;1;Spese correnti;3;Acquisto di beni e servizi;2;Acquisto di servizi;2;"Organizzazione eventi, pubblicita` e servizi per trasferta";999;"Altre spese per relazioni pubbliche, convegni e mostre, pubblicita` n.a.c";23-01-2019;
57;1;73;"-0,03";"44,27";LEGGERE SRL;Z2A2362668;SALDO Fatt.n. 23405  del 20/12/2018 FATTURA;17-01-2019;681;0;263;1;Spese correnti;3;Acquisto di beni e servizi;1;Acquisto di beni;1;"Giornali, riviste e pubblicazioni";2;Pubblicazioni;23-01-2019;
57;2;73;"44,30";"44,27";LEGGERE SRL;Z2A2362668;SALDO Fatt.n. 23405  del 20/12/2018 FATTURA;17-01-2019;681;0;263;1;Spese correnti;3;Acquisto di beni e servizi;1;Acquisto di beni;1;"Giornali, riviste e pubblicazioni";2;Pubblicazioni;23-01-2019;
58;1;74;"-0,02";"199,20";LEGGERE SRL;Z2A2362668;SALDO Fatt.n. 23406  del 20/12/2018 FATTURA;17-01-2019;681;0;263;1;Spese correnti;3;Acquisto di beni e servizi;1;Acquisto di beni;1;"Giornali, riviste e pubblicazioni";2;Pubblicazioni;23-01-2019;
58;2;74;"199,22";"199,20";LEGGERE SRL;Z2A2362668;SALDO Fatt.n. 23406  del 20/12/2018 FATTURA;17-01-2019;681;0;263;1;Spese correnti;3;Acquisto di beni e servizi;1;Acquisto di beni;1;"Giornali, riviste e pubblicazioni";2;Pubblicazioni;23-01-2019;
59;1;75;"3.298,88";"3.298,88";ST. LEG. ASS. CARCERERI -VENTURINI;Z9B17FFA79;SALDO Fatt.n. 05/PA 2018  del 04/12/2018 codice CIG Z9B17FFA79 - Determina incarico n. 1/2006 Area Amministrativa (COMUNE DI CALDIERO // ARDEA S.R.L.);17-01-2019;170;0;10;1;Spese correnti;3;Acquisto di beni e servizi;2;Acquisto di servizi;11;Prestazioni professionali e specialistiche;6;Patrocinio legale;23-01-2019;
60;1;76;"11.363,14";"11.363,14";INTECH - INGEGNERI ASSOCIATI;ZA32544DE5;SALDO Fatt.n. FATTPA 11_18  del 11/12/2018 FATTURA;17-01-2019;1108;0;561;2;Spese in conto capitale;2;Investimenti fissi lordi e acquisto di terreni;1;Beni materiali;9;Beni immobili;3;Fabbricati ad uso scolastico;23-01-2019;
61;1;77;"33.512,37";"33.512,37";CONSORZIO DI BACINO VERONA DUE DEL QUADRILATERO; ;SALDO Fatt.n. 005018/02  del 12/12/2018 FATTURA;17-01-2019;840;0;174;1;Spese correnti;3;Acquisto di beni e servizi;2;Acquisto di servizi;15;Contratti di servizio pubblico;4;Contratti di servizio per la raccolta rifiuti;23-01-2019;
62;1;78;"33.512,37";"33.512,37";CONSORZIO DI BACINO VERONA DUE DEL QUADRILATERO; ;SALDO Fatt.n. 005097/02  del 13/12/2018 FATTURA;17-01-2019;840;0;174;1;Spese correnti;3;Acquisto di beni e servizi;2;Acquisto di servizi;15;Contratti di servizio pubblico;4;Contratti di servizio per la raccolta rifiuti;23-01-2019;
63;1;79;"537,44";"537,44";CONSORZIO DI BACINO VERONA DUE DEL QUADRILATERO; ;SALDO Fatt.n. 004962/02  del 10/12/2018 FATTURA;17-01-2019;840;0;174;1;Spese correnti;3;Acquisto di beni e servizi;2;Acquisto di servizi;15;Contratti di servizio pubblico;4;Contratti di servizio per la raccolta rifiuti;23-01-2019;
64;1;80;"7.077,71";"7.077,71";CONSORZIO DI BACINO VERONA DUE DEL QUADRILATERO; ;SALDO Fatt.n. 004917/02  del 10/12/2018 FATTURA;17-01-2019;840;0;174;1;Spese correnti;3;Acquisto di beni e servizi;2;Acquisto di servizi;15;Contratti di servizio pubblico;4;Contratti di servizio per la raccolta rifiuti;23-01-2019;
65;1;81;"3.249,51";"3.249,51";CONSORZIO DI BACINO VERONA DUE DEL QUADRILATERO; ;SALDO Fatt.n. 004871/02  del 10/12/2018 FATTURA;17-01-2019;840;0;174;1;Spese correnti;3;Acquisto di beni e servizi;2;Acquisto di servizi;15;Contratti di servizio pubblico;4;Contratti di servizio per la raccolta rifiuti;23-01-2019;
66;1;82;"10.000,00";"10.000,00";CALCIO CALDIERO TERME SSD  A RL UNIPERSONALE; ;"CONVENZIONE CON L'ASD CALCIO CALDIERO TERME PER L'AFFIDAMENTO DELLA GESTIONE, CUSTODIA, MANUTENZIONE E PROMOZIONE SPORTIVA DEGLI IMPIANTI E RELATIVI ANNESSI DI VIA PONTEROTTO. STAGIONE SPORTIVA 2017/18. EROGAZIONE SALDO CONTRIBUTO DI CUI ALL'ART.10.";17-01-2019;891;1;779;1;Spese correnti;4;Trasferimenti correnti;4;Trasferimenti correnti a Istituzioni Sociali Private;1;Trasferimenti correnti a Istituzioni Sociali Private;1;Trasferimenti correnti a Istituzioni Sociali Private;23-01-2019;
67;1;83;"1.624,06";"1.624,06";STUDIO GIALLO SRL;Z121CD1C77;SALDO Fatt.n. 377/11  del 28/12/2018 FATTURA 377/11 del 28/12/18 ADEMP. ANNUALI 2017 ELAB. CEDOLINI IV TRIM. 17;18-01-2019;378;0;6;1;Spese correnti;3;Acquisto di beni e servizi;2;Acquisto di servizi;16;Servizi amministrativi;999;Altre spese per servizi amministrativi;23-01-2019;
68;1;84;"300,00";"300,00";ASSOCIAZIONE BANCO ALIMENTARE DEL VENETO ODV; ;"EROGAZIONE CONTRIBUTO ECONOMICO ALL'ASSOCIAZIONE BANCO ALIMENTARE VENETO, APPROVATO CON DELIBERA DI GIUNTA COMUNALE N.142/2018.";18-01-2019;895;0;755;1;Spese correnti;4;Trasferimenti correnti;4;Trasferimenti correnti a Istituzioni Sociali Private;1;Trasferimenti correnti a Istituzioni Sociali Private;1;Trasferimenti correnti a Istituzioni Sociali Private;23-01-2019;
69;1;85;"500,00";"500,00";ASTROFILI VAL D'ILLASI; ;CONTRIBUTO ECONOMICO ALL'ASSOCIAZIONE GRUPPO ASTROFILI VALDILLASI A SOSTEGNO DELLE ATTIVITA' A FAVORE DELLA COLLETTIVITA' REALIZZATE NELL'ANNO 2018.;18-01-2019;895;0;750;1;Spese correnti;4;Trasferimenti correnti;4;Trasferimenti correnti a Istituzioni Sociali Private;1;Trasferimenti correnti a Istituzioni Sociali Private;1;Trasferimenti correnti a Istituzioni Sociali Private;23-01-2019;
70;1;86;"550,00";"550,00";ASSOCIAZIONE NOI CALDIERINO -  EX CIRC. ANSPI (ONLUS); ;ASSEGNAZIONE CONTRIBUTO ECONOMICO ALL'ASSOCIAZIONE NOI CALDIERINO PER LE ATTIVITA SOCIO-EDUCATIVE REALIZZATE NEL CORRENTE ANNO.;18-01-2019;895;0;751;1;Spese correnti;4;Trasferimenti correnti;4;Trasferimenti correnti a Istituzioni Sociali Private;1;Trasferimenti correnti a Istituzioni Sociali Private;1;Trasferimenti correnti a Istituzioni Sociali Private;23-01-2019;
71;1;92;"536,00";"536,00";UNIONE DI COMUNI VERONA EST;7123208133;INCENTIVO FUNZIONI TECNICHE SU LAVORI DI EFFICENTAMENTO SEDE MUNICIPALE.POR FESR 2014 - 2020. AZIONE 4.1.1 "PROMOZIONE DELL'ECO EFFICIENZA E RIDUZIONE DEI CONSUMI;18-01-2019;1092;0;687;2;Spese in conto capitale;2;Investimenti fissi lordi e acquisto di terreni;1;Beni materiali;9;Beni immobili;19;Fabbricati ad uso strumentale;25-01-2019;
72;1;87;"1.008,00";"1.008,00";UNIONE DI COMUNI VERONA EST; ;INCENTIVO FUNZIONI TECNICHE LAVORI DI EFFICIENTAMENTO ENERGETICO DELLA SCUOLA ELEMENTARE "CARLO EDERLE" E SCUOLA MEDIA "ANTONIO PISANO" DI CALDIERO;18-01-2019;1106;2;854;2;Spese in conto capitale;2;Investimenti fissi lordi e acquisto di terreni;1;Beni materiali;9;Beni immobili;3;Fabbricati ad uso scolastico;23-01-2019;
73;1;88;"1.000,00";"1.000,00";NUCLEO DI VOL. E PC ANC CALDIERO; ;"VIGILANZA E MONITORAGGO SU AREE COMUNALI, PARCHI, GIARDINI E LUOGHI PUBBLICI A CURA DEI VOLONTARI DELL'ASSOCIAZIONE NAZIONALE CARABINIERI IN CONGEDO (ANC). IMPEGNO ED EROGAZIONE CONTRIBUTO ECONOMICO APPROVATO CON DELIBERA DI GIUNTA N.78/2018.";18-01-2019;895;0;415;1;Spese correnti;4;Trasferimenti correnti;4;Trasferimenti correnti a Istituzioni Sociali Private;1;Trasferimenti correnti a Istituzioni Sociali Private;1;Trasferimenti correnti a Istituzioni Sociali Private;23-01-2019;
74;1;89;"15.493,71";"15.493,71";AZIENDA SPECIALE TERME DI GIUNONE; ;AZIENDA SPECIALE TERME DI GIUNONE. EROGAZIONE CONTRIBUTO ECONOMICO ORDINARIO RELATIVO AL CORRENTE ANNO 2018.;18-01-2019;890;0;712;1;Spese correnti;4;Trasferimenti correnti;1;Trasferimenti correnti a Amministrazioni Pubbliche;4;Trasferimenti correnti a organismi interni e/o unità locali della amministrazione;1;Trasferimenti correnti a organismi interni e/o unità locali della amministrazione;23-01-2019;
91;1;0;"1.064,70";"1.064,70";DIPENDENTI COMUNALI;7123208133;INCENTIVO FUNZIONI TECNICHE SU LAVORI DI EFFICENTAMENTO SEDE MUNICIPALE.POR FESR 2014 - 2020. AZIONE 4.1.1 "PROMOZIONE DELL'ECO EFFICIENZA E RIDUZIONE DEI CONSUMI;22-01-2019;1092;0;687;2;Spese in conto capitale;2;Investimenti fissi lordi e acquisto di terreni;1;Beni materiali;9;Beni immobili;19;Fabbricati ad uso strumentale;22-01-2019;
92;1;0;"2.236,95";"2.236,95";DIPENDENTI COMUNALI; ;INCENTIVO FUNZIONI TECNICHE LAVORI DI EFFICIENTAMENTO ENERGETICO DELLA SCUOLA ELEMENTARE "CARLO EDERLE" E SCUOLA MEDIA "ANTONIO PISANO" DI CALDIERO;22-01-2019;1106;2;854;2;Spese in conto capitale;2;Investimenti fissi lordi e acquisto di terreni;1;Beni materiali;9;Beni immobili;3;Fabbricati ad uso scolastico;22-01-2019;
93;1;0;"292,11";"292,11";DIPENDENTI COMUNALI; ;incentivo funzioni tecniche piazzetta via D. Alighieri;22-01-2019;1181;0;552;2;Spese in conto capitale;2;Investimenti fissi lordi e acquisto di terreni;1;Beni materiali;9;Beni immobili;12;Infrastrutture stradali;22-01-2019;
112;1;185;"253,39";"253,39";INPS EX INPDAP EX C.P.D.E.L.;7123208133;VERSAMENTO RITENUTE ASSISTENZIALI E PREVIDENZIALI SU INCENTIVO FUNZIONI TECNICHE SU LAVORI DI EFFICENTAMENTO SEDE MUNICIPALE.POR FESR 2014 - 2020. AZIONE 4.1.1 "PROMOZIONE DELL'ECO EFFICIENZA E RIDUZIONE DEI CONSUMI;22-01-2019;1092;0;687;2;Spese in conto capitale;2;Investimenti fissi lordi e acquisto di terreni;1;Beni materiali;9;Beni immobili;19;Fabbricati ad uso strumentale;15-02-2019;
113;1;186;"532,40";"532,40";INPS EX INPDAP EX C.P.D.E.L.; ;VERSAMENTO RITENUTE ASSISTENZIALI E PREVIDENZIALI OPERATE SU INCENTIVO FUNZIONI TECNICHE LAVORI DI EFFICIENTAMENTO ENERGETICO DELLA SCUOLA ELEMENTARE "CARLO EDERLE" E SCUOLA MEDIA "ANTONIO PISANO" DI CALDIERO;22-01-2019;1106;2;854;2;Spese in conto capitale;2;Investimenti fissi lordi e acquisto di terreni;1;Beni materiali;9;Beni immobili;3;Fabbricati ad uso scolastico;15-02-2019;
114;1;187;"69,50";"69,50";INPS EX INPDAP EX C.P.D.E.L.; ;VERSAMENTO RITENUTE ASSISTENZIALI E PREVIDENZIALI OPERATE SU INCENTIVO FUNZIONI TECNICHE PIAZZETTA VIA DANTE ALIGHIERI;22-01-2019;1181;0;552;2;Spese in conto capitale;2;Investimenti fissi lordi e acquisto di terreni;1;Beni materiali;9;Beni immobili;12;Infrastrutture stradali;15-02-2019;
141;1;214;"90,50";"90,50";MINISTERO ECONOMIA FINANZE - VERSAMENTO IRAP;7123208133;IRAP SU INCENTIVO FUNZIONI TECNICHE SU LAVORI DI EFFICENTAMENTO SEDE MUNICIPALE.POR FESR 2014 - 2020. AZIONE 4.1.1 "PROMOZIONE DELL'ECO EFFICIENZA E RIDUZIONE DEI CONSUMI;22-01-2019;1092;0;687;2;Spese in conto capitale;2;Investimenti fissi lordi e acquisto di terreni;1;Beni materiali;9;Beni immobili;19;Fabbricati ad uso strumentale;15-02-2019;
142;1;215;"190,15";"190,15";MINISTERO ECONOMIA FINANZE - VERSAMENTO IRAP; ;IRAP SU INCENTIVO FUNZIONI TECNICHE LAVORI DI EFFICIENTAMENTO ENERGETICO DELLA SCUOLA ELEMENTARE "CARLO EDERLE" E SCUOLA MEDIA "ANTONIO PISANO" DI CALDIERO;22-01-2019;1106;2;854;2;Spese in conto capitale;2;Investimenti fissi lordi e acquisto di terreni;1;Beni materiali;9;Beni immobili;3;Fabbricati ad uso scolastico;15-02-2019;
143;1;216;"24,83";"24,83";MINISTERO ECONOMIA FINANZE - VERSAMENTO IRAP; ;IRAP SU INCENTIVO FUNZIONI TECNICHE PIAZZETTA VIA DANTE ALIGHIERI;22-01-2019;1181;0;552;2;Spese in conto capitale;2;Investimenti fissi lordi e acquisto di terreni;1;Beni materiali;9;Beni immobili;12;Infrastrutture stradali;15-02-2019;
150;1;101;"35,80";"35,80";CATTAZZO MICHELE - ECONOMO COMUNALE; ;Rimborso bollette;23-01-2019;50;0;725;1;Spese correnti;3;Acquisto di beni e servizi;2;Acquisto di servizi;2;"Organizzazione eventi, pubblicita` e servizi per trasferta";1;Rimborso per viaggio e trasloco;30-01-2019;
151;1;102;"809,00";"809,00";CATTAZZO MICHELE - ECONOMO COMUNALE; ;Rimborso bollette;23-01-2019;110;0;726;1;Spese correnti;3;Acquisto di beni e servizi;1;Acquisto di beni;2;Altri beni di consumo;1;"Carta, cancelleria e stampati";30-01-2019;
153;1;105;"67,00";"67,00";CATTAZZO MICHELE - ECONOMO COMUNALE; ;Rimborso bollette;23-01-2019;145;0;728;1;Spese correnti;3;Acquisto di beni e servizi;1;Acquisto di beni;2;Altri beni di consumo;9;Beni per attività di rappresentanza;30-01-2019;
154;1;106;"20,72";"20,72";CATTAZZO MICHELE - ECONOMO COMUNALE; ;Rimborso bollette;23-01-2019;290;0;729;1;Spese correnti;3;Acquisto di beni e servizi;1;Acquisto di beni;2;Altri beni di consumo;2;"Carburanti, combustibili e lubrificanti";30-01-2019;
155;1;113;"5,90";"5,90";CATTAZZO MICHELE - ECONOMO COMUNALE; ;Rimborso bollette;23-01-2019;330;0;730;1;Spese correnti;3;Acquisto di beni e servizi;1;Acquisto di beni;2;Altri beni di consumo;1;"Carta, cancelleria e stampati";30-01-2019;
156;1;107;"287,44";"287,44";CATTAZZO MICHELE - ECONOMO COMUNALE; ;Rimborso bollette;23-01-2019;350;0;731;1;Spese correnti;3;Acquisto di beni e servizi;1;Acquisto di beni;2;Altri beni di consumo;1;"Carta, cancelleria e stampati";30-01-2019;
157;1;108;"165,00";"165,00";CATTAZZO MICHELE - ECONOMO COMUNALE; ;Rimborso bollette;23-01-2019;663;0;732;1;Spese correnti;3;Acquisto di beni e servizi;2;Acquisto di servizi;15;Contratti di servizio pubblico;999;Altre spese per contratti di servizio pubblico;30-01-2019;
158;1;110;"32,20";"32,20";CATTAZZO MICHELE - ECONOMO COMUNALE; ;Rimborso bollette;23-01-2019;681;0;733;1;Spese correnti;3;Acquisto di beni e servizi;1;Acquisto di beni;1;"Giornali, riviste e pubblicazioni";2;Pubblicazioni;30-01-2019;
159;1;112;"77,90";"77,90";CATTAZZO MICHELE - ECONOMO COMUNALE; ;Rimborso bollette;23-01-2019;686;0;734;1;Spese correnti;3;Acquisto di beni e servizi;2;Acquisto di servizi;2;"Organizzazione eventi, pubblicita` e servizi per trasferta";1;Rimborso per viaggio e trasloco;30-01-2019;
161;1;104;"163,50";"163,50";CATTAZZO MICHELE - ECONOMO COMUNALE; ;Rimborso bollette;23-01-2019;1174;0;853;2;Spese in conto capitale;2;Investimenti fissi lordi e acquisto di terreni;1;Beni materiali;9;Beni immobili;16;Impianti sportivi;30-01-2019;
163;1;98;"167.781,77";"167.781,77";UNIONE DI COMUNI VERONA EST; ;EROGAZIONE SALDO CONTRIBUTO CORRENTE ANNO 2018 UNIONE DI COMUNI VERONA EST;24-01-2019;5;0;713;1;Spese correnti;4;Trasferimenti correnti;1;Trasferimenti correnti a Amministrazioni Pubbliche;2;Trasferimenti correnti a Amministrazioni Locali;5;Trasferimenti correnti a Unioni di Comuni;25-01-2019;
164;1;114;"1.650,00";"1.650,00";IL NODO ASSOCIAZIONE CULT. SSDL;Z99255FE87;SALDO Fatt.n. FATTPA 1_19  del 04/01/2019 FATTURA;28-01-2019;686;0;595;1;Spese correnti;3;Acquisto di beni e servizi;2;Acquisto di servizi;2;"Organizzazione eventi, pubblicita` e servizi per trasferta";5;Organizzazione e partecipazione a manifestazioni e convegni;31-01-2019;
166;1;116;"5.509,76";"5.509,76";MASTERGROUP SRL;Z6D1FE3130;SALDO Fatt.n. 000022-2018-FE  del 07/11/2018 FATTURA;28-01-2019;270;0;603;1;Spese correnti;3;Acquisto di beni e servizi;2;Acquisto di servizi;11;Prestazioni professionali e specialistiche;999;Altre prestazioni professionali e specialistiche n.a.c.;31-01-2019;
167;1;117;"141,52";"141,52";MYO SRL;Z6524FFCDD;SALDO Fatt.n. 2040/180033988  del 28/12/2018 FATTURA;28-01-2019;110;0;566;1;Spese correnti;3;Acquisto di beni e servizi;1;Acquisto di beni;2;Altri beni di consumo;1;"Carta, cancelleria e stampati";31-01-2019;
168;1;118;"307,32";"307,32";MYO SRL;Z6524FFCDD;SALDO Fatt.n. 2040/180033011  del 20/12/2018 FATTURA;28-01-2019;110;0;566;1;Spese correnti;3;Acquisto di beni e servizi;1;Acquisto di beni;2;Altri beni di consumo;1;"Carta, cancelleria e stampati";31-01-2019;
169;1;119;"12,81";"12,81";MYO SRL;Z6524FFCDD;SALDO Fatt.n. 2040/180032377  del 14/12/2018 FATTURA;28-01-2019;110;0;566;1;Spese correnti;3;Acquisto di beni e servizi;1;Acquisto di beni;2;Altri beni di consumo;1;"Carta, cancelleria e stampati";31-01-2019;
170;1;120;"110,00";"110,00";CONSORZIO AGRARIO DEL NORDEST;ZC9224DC49;SALDO Fatt.n. 180994/V1  del 31/08/2018 FATTURA;28-01-2019;350;0;119;1;Spese correnti;3;Acquisto di beni e servizi;1;Acquisto di beni;2;Altri beni di consumo;999;Altri beni e materiali di consumo n.a.c.;31-01-2019;
171;1;121;"39,89";"39,89";CONSORZIO AGRARIO DEL NORDEST;ZC9224DC49;SALDO Fatt.n. 178864/V1  del 31/08/2018 FATTURA;28-01-2019;350;0;119;1;Spese correnti;3;Acquisto di beni e servizi;1;Acquisto di beni;2;Altri beni di consumo;999;Altri beni e materiali di consumo n.a.c.;31-01-2019;
172;1;122;"14,15";"14,15";CONSORZIO AGRARIO DEL NORDEST;ZC9224DC49;SALDO Fatt.n. 227176/V1  del 30/11/2018 FATTURA;28-01-2019;350;0;119;1;Spese correnti;3;Acquisto di beni e servizi;1;Acquisto di beni;2;Altri beni di consumo;999;Altri beni e materiali di consumo n.a.c.;31-01-2019;
173;1;123;"4.424,40";"4.424,40";CONSIGLIO DI BACINO VERONA NORD; ;ECOLOGIA - CONTRIBUZIONE DEI COMUNI CONSORZIATI PER L'ANNO 2018 - QUOTA ASSOCIATIVA;28-01-2019;841;0;675;1;Spese correnti;4;Trasferimenti correnti;1;Trasferimenti correnti a Amministrazioni Pubbliche;2;Trasferimenti correnti a Amministrazioni Locali;18;Trasferimenti correnti a Consorzi di enti locali;31-01-2019;
174;1;124;"876,42";"876,42";CONSIGLIO DI BACINO VERONA NORD; ;ECOLOGIA - CONTRIBUZIONE DEI COMUNI CONSORZIATI PER L'ANNO 2017 - QUOTA ASSOCIATIVA;28-01-2019;841;0;675;1;Spese correnti;4;Trasferimenti correnti;1;Trasferimenti correnti a Amministrazioni Pubbliche;2;Trasferimenti correnti a Amministrazioni Locali;18;Trasferimenti correnti a Consorzi di enti locali;31-01-2019;
175;1;125;"-2.854,80";"2.781,60";PULIMAC SRL;ZE624C3C75;SALDO Fatt.n. 000043/PA  del 30/11/2018 FATTURA;28-01-2019;1082;1;503;2;Spese in conto capitale;2;Investimenti fissi lordi e acquisto di terreni;1;Beni materiali;5;Attrezzature;999;Attrezzature n.a.c.;31-01-2019;
175;2;125;"2.781,60";"2.781,60";PULIMAC SRL;ZE624C3C75;SALDO Fatt.n. 000044/PA  del 30/11/2018 FATTURA;28-01-2019;1082;1;503;2;Spese in conto capitale;2;Investimenti fissi lordi e acquisto di terreni;1;Beni materiali;5;Attrezzature;999;Attrezzature n.a.c.;31-01-2019;
175;3;125;"2.854,80";"2.781,60";PULIMAC SRL;ZE624C3C75;SALDO Fatt.n. 000035/PA  del 28/09/2018 FATTURA;28-01-2019;1082;1;503;2;Spese in conto capitale;2;Investimenti fissi lordi e acquisto di terreni;1;Beni materiali;5;Attrezzature;999;Attrezzature n.a.c.;31-01-2019;
176;1;0;"118,89";"118,89";SOENERGY SRL;7451882F8C;BENEFICIARI DIVERSI-PAGAMENTI DIVERSI             COD DISP 011901040OXUFJ NOME  SOENERGY S R L MANDATO99Z1610053624A299 PFM 3218103 Fattura 181232593 del 04 12 18 Scad 15 0 (P.      15 -R.      15);28-01-2019;112;0;285;1;Spese correnti;3;Acquisto di beni e servizi;2;Acquisto di servizi;5;Utenze e canoni;6;Gas;28-01-2019;
179;1;0;"285,93";"285,93";SOENERGY SRL;7451882F8C;BENEFICIARI DIVERSI-PAGAMENTI DIVERSI             COD DISP 011901040OXTXL NOME  SOENERGY S R L MANDATO99Z1610053624A299 PFM 3218105 Fattura 181232595 del 04 12 18 Scad 15 0 (P.      17 -R.      17);28-01-2019;212;0;286;1;Spese correnti;3;Acquisto di beni e servizi;2;Acquisto di servizi;5;Utenze e canoni;6;Gas;28-01-2019;
180;1;0;"667,12";"667,12";SOENERGY SRL;7451882F8C;BENEFICIARI DIVERSI-PAGAMENTI DIVERSI             COD DISP 011901040OXTXS NOME  SOENERGY S R L MANDATO99Z1610053624A299 PFM 3218099 Fattura 181232102 del 04 12 18 Scad 15 0 (P.      11 -R.      11);28-01-2019;353;0;289;1;Spese correnti;3;Acquisto di beni e servizi;2;Acquisto di servizi;5;Utenze e canoni;6;Gas;28-01-2019;
181;1;0;"1.374,37";"1.374,37";SOENERGY SRL;7451882F8C;BENEFICIARI DIVERSI-PAGAMENTI DIVERSI             COD DISP 011901040OXTY4 NOME  SOENERGY S R L MANDATO99Z1610053624A299 PFM 3218100 Fattura 181232103 del 04 12 18 Scad 15 0 (P.      12 -R.      12);28-01-2019;542;0;287;1;Spese correnti;3;Acquisto di beni e servizi;2;Acquisto di servizi;5;Utenze e canoni;6;Gas;28-01-2019;
182;1;0;"320,32";"320,32";SOENERGY SRL;7451882F8C;BENEFICIARI DIVERSI-PAGAMENTI DIVERSI             COD DISP 011901040OXTXO NOME  SOENERGY S R L MANDATO99Z1610053624A299 PFM 3218102 Fattura 181232592 del 04 12 18 Scad 15 0 (P.      16 -R.      16);28-01-2019;582;0;288;1;Spese correnti;3;Acquisto di beni e servizi;2;Acquisto di servizi;5;Utenze e canoni;6;Gas;28-01-2019;
183;1;0;"561,40";"561,40";SOENERGY SRL;7451882F8C;BENEFICIARI DIVERSI-PAGAMENTI DIVERSI             COD DISP 011901040OXTXR NOME  SOENERGY S R L MANDATO99Z1610053624A299 PFM 3218101 Fattura 181232591 del 04 12 18 Scad 15 0 (P.      14 -R.      14);28-01-2019;884;0;290;1;Spese correnti;3;Acquisto di beni e servizi;2;Acquisto di servizi;5;Utenze e canoni;6;Gas;28-01-2019;
184;1;0;"1.199,38";"1.199,38";SOENERGY SRL;7451882F8C;BENEFICIARI DIVERSI-PAGAMENTI DIVERSI             COD DISP 011901040OXTY0 NOME  SOENERGY S R L MANDATO99Z1610053624A299 PFM 3218104 Fattura 181232594 del 04 12 18 Scad 15 0 (P.      13 -R.      13);28-01-2019;888;0;291;1;Spese correnti;3;Acquisto di beni e servizi;2;Acquisto di servizi;5;Utenze e canoni;6;Gas;28-01-2019;
185;1;126;"146,77";"146,77";SOENERGY SRL;7451882F8C;SALDO Fatt.n. 181232102  del 04/12/2018 FORNITURA GAS;28-01-2019;353;0;289;1;Spese correnti;3;Acquisto di beni e servizi;2;Acquisto di servizi;5;Utenze e canoni;6;Gas;31-01-2019;
186;1;127;"302,36";"302,36";SOENERGY SRL;7451882F8C;SALDO Fatt.n. 181232103  del 04/12/2018 FORNITURA GAS;28-01-2019;542;0;287;1;Spese correnti;3;Acquisto di beni e servizi;2;Acquisto di servizi;5;Utenze e canoni;6;Gas;31-01-2019;
187;1;128;"263,86";"263,86";SOENERGY SRL;7451882F8C;SALDO Fatt.n. 181232594  del 04/12/2018 FORNITURA GAS;28-01-2019;888;0;291;1;Spese correnti;3;Acquisto di beni e servizi;2;Acquisto di servizi;5;Utenze e canoni;6;Gas;31-01-2019;
188;1;129;"123,51";"123,51";SOENERGY SRL;7451882F8C;SALDO Fatt.n. 181232591  del 04/12/2018 FORNITURA GAS;28-01-2019;884;0;290;1;Spese correnti;3;Acquisto di beni e servizi;2;Acquisto di servizi;5;Utenze e canoni;6;Gas;31-01-2019;
189;1;130;"26,16";"26,16";SOENERGY SRL;7451882F8C;SALDO Fatt.n. 181232593  del 04/12/2018 FORNITURA GAS;28-01-2019;112;0;285;1;Spese correnti;3;Acquisto di beni e servizi;2;Acquisto di servizi;5;Utenze e canoni;6;Gas;31-01-2019;
190;1;131;"70,47";"70,47";SOENERGY SRL;7451882F8C;SALDO Fatt.n. 181232592  del 04/12/2018 FORNITURA GAS;28-01-2019;582;0;288;1;Spese correnti;3;Acquisto di beni e servizi;2;Acquisto di servizi;5;Utenze e canoni;6;Gas;31-01-2019;
191;1;132;"62,90";"62,90";SOENERGY SRL;7451882F8C;SALDO Fatt.n. 181232595  del 04/12/2018 FORNITURA GAS;28-01-2019;212;0;286;1;Spese correnti;3;Acquisto di beni e servizi;2;Acquisto di servizi;5;Utenze e canoni;6;Gas;31-01-2019;
192;1;143;"770,00";"770,00";COMPAGNIA TEATRALE CASTELROTTO;Z9B255FE16;SALDO Fatt.n. 1/E/2019  del 15/01/2019 FATTURA;31-01-2019;686;0;749;1;Spese correnti;3;Acquisto di beni e servizi;2;Acquisto di servizi;2;"Organizzazione eventi, pubblicita` e servizi per trasferta";5;Organizzazione e partecipazione a manifestazioni e convegni;04-02-2019;
193;1;144;"1.245,00";"1.245,00";UNIPOL SAI ASSICURAZIONI SPA; ;ASSICURAZIONI - POLIZZA RESPONSABILITA' CIVILE GENERALE N. 74507232 - COMPAGNIA UNIPOLSAI ASSICURAZIONI - LIQUIDAZIONE SOMME A TITOLO DI FRANCHIGIE SU SINISTRI;31-01-2019;120;0;70;1;Spese correnti;10;Altre spese correnti;4;Premi di assicurazione;1;Premi di assicurazione contro i danni;999;Altri premi di assicurazione contro i danni;04-02-2019;
194;1;145;"2.600,00";"2.600,00";PARROCCHIA DI STRA'; ;"EROGAZIONE CONTRIBUTI ECONOMICI ALLA PARROCCHIA DI CALDIERO, ALLA PARROCCHIA DI CALDIERINO E ALLA PARROCCHIA DI STRA', APPROVATI CON DELIBERA DI GIUNTA N.148 DEL 27/11/2018.";31-01-2019;891;2;753;1;Spese correnti;4;Trasferimenti correnti;4;Trasferimenti correnti a Istituzioni Sociali Private;1;Trasferimenti correnti a Istituzioni Sociali Private;1;Trasferimenti correnti a Istituzioni Sociali Private;04-02-2019;
195;1;146;"488,00";"488,00";STUDIO GRAFICO ARCOBALENO;Z6725F8534;SALDO Fatt.n. 02/PA  del 10/12/2018 FATTURA;31-01-2019;686;0;669;1;Spese correnti;3;Acquisto di beni e servizi;2;Acquisto di servizi;2;"Organizzazione eventi, pubblicita` e servizi per trasferta";5;Organizzazione e partecipazione a manifestazioni e convegni;04-02-2019;
196;1;0;"1.161,07";"1.161,07";GP GLOBAL POWER SPA;7226954F17;BENEFICIARI DIVERSI-PAGAMENTI DIVERSI             COD DISP 0119011703U4BT NOME  GLOBAL POWER SPA MANDATOAA5TZ1C7799 PFM 10686 110119  FEC 0 CIG CIG7226954F17 IBAN 10000030001 (P.      29 -R.     141);31-01-2019;111;0;146;1;Spese correnti;3;Acquisto di beni e servizi;2;Acquisto di servizi;5;Utenze e canoni;4;Energia elettrica;31-01-2019;
198;1;0;"127,82";"127,82";GP GLOBAL POWER SPA;7226954F17;BENEFICIARI DIVERSI-PAGAMENTI DIVERSI             COD DISP 0119011703U4CE NOME  GLOBAL POWER SPA MANDATOAA5TZ1C7799 PFM 10687 110119  FEC 0 CIG CIG7226954F17 IBAN 10000030001 (P.      23 -R.     135);31-01-2019;211;0;573;1;Spese correnti;3;Acquisto di beni e servizi;2;Acquisto di servizi;5;Utenze e canoni;4;Energia elettrica;31-01-2019;
199;1;0;"206,54";"206,54";GP GLOBAL POWER SPA;7226954F17;BENEFICIARI DIVERSI-PAGAMENTI DIVERSI             COD DISP 0119011703U48F NOME  GLOBAL POWER SPA MANDATOAA5TZ1C7799 PFM 10688 110119  FEC 0 CIG CIG7226954F17 IBAN 10000030001 (P.      25 -R.     137);31-01-2019;354;0;574;1;Spese correnti;3;Acquisto di beni e servizi;2;Acquisto di servizi;5;Utenze e canoni;4;Energia elettrica;31-01-2019;
200;1;0;"405,54";"405,54";GP GLOBAL POWER SPA;7226954F17;BENEFICIARI DIVERSI-PAGAMENTI DIVERSI             COD DISP 0119011703U4ED NOME  GLOBAL POWER SPA MANDATOAA5TZ1C7799 PFM 10689 110119  FEC 0 CIG CIG7226954F17 IBAN 10000030001 (P.      28 -R.     140);31-01-2019;541;0;575;1;Spese correnti;3;Acquisto di beni e servizi;2;Acquisto di servizi;5;Utenze e canoni;4;Energia elettrica;31-01-2019;
201;1;0;"346,95";"346,95";GP GLOBAL POWER SPA;7226954F17;BENEFICIARI DIVERSI-PAGAMENTI DIVERSI             COD DISP 0119011703U4CD NOME  GLOBAL POWER SPA MANDATOAA5TZ1C7799 PFM 10690 110119  FEC 0 CIG CIG7226954F17 IBAN 10000030001 (P.      30 -R.     142);31-01-2019;581;0;576;1;Spese correnti;3;Acquisto di beni e servizi;2;Acquisto di servizi;5;Utenze e canoni;4;Energia elettrica;31-01-2019;
202;1;0;"26,81";"2.170,69";GP GLOBAL POWER SPA;7226954F17;BENEFICIARI DIVERSI-PAGAMENTI DIVERSI             COD DISP 0119011703U4CE NOME  GLOBAL POWER SPA MANDATOAA5TZ1C7799 PFM 10687 110119  FEC 0 CIG CIG7226954F17 IBAN 10000030001 (P.      23 -R.     135);31-01-2019;881;0;577;1;Spese correnti;3;Acquisto di beni e servizi;2;Acquisto di servizi;5;Utenze e canoni;4;Energia elettrica;31-01-2019;
202;2;0;"146,09";"2.170,69";GP GLOBAL POWER SPA;7226954F17;BENEFICIARI DIVERSI-PAGAMENTI DIVERSI             COD DISP 0119011703U48F NOME  GLOBAL POWER SPA MANDATOAA5TZ1C7799 PFM 10688 110119  FEC 0 CIG CIG7226954F17 IBAN 10000030001 (P.      25 -R.     137);31-01-2019;881;0;577;1;Spese correnti;3;Acquisto di beni e servizi;2;Acquisto di servizi;5;Utenze e canoni;4;Energia elettrica;31-01-2019;
202;3;0;"797,48";"2.170,69";GP GLOBAL POWER SPA;7226954F17;BENEFICIARI DIVERSI-PAGAMENTI DIVERSI             COD DISP 0119011703U458 NOME  GLOBAL POWER SPA MANDATOAA5TZ1C7799 PFM 10683 110119  FEC 0 CIG CIG7226954F17 IBAN 10000030001 (P.      24 -R.     136);31-01-2019;881;0;577;1;Spese correnti;3;Acquisto di beni e servizi;2;Acquisto di servizi;5;Utenze e canoni;4;Energia elettrica;31-01-2019;
202;4;0;"1.200,31";"2.170,69";GP GLOBAL POWER SPA;7226954F17;BENEFICIARI DIVERSI-PAGAMENTI DIVERSI             COD DISP 0119011703U4CD NOME  GLOBAL POWER SPA MANDATOAA5TZ1C7799 PFM 10690 110119  FEC 0 CIG CIG7226954F17 IBAN 10000030001 (P.      30 -R.     142);31-01-2019;881;0;577;1;Spese correnti;3;Acquisto di beni e servizi;2;Acquisto di servizi;5;Utenze e canoni;4;Energia elettrica;31-01-2019;
203;1;0;"346,63";"1.184,06";GP GLOBAL POWER SPA;7226954F17;BENEFICIARI DIVERSI-PAGAMENTI DIVERSI             COD DISP 0119011703U48L NOME  GLOBAL POWER SPA MANDATOAA5TZ1C7799 PFM 10682 110119  FEC 0 CIG CIG7226954F17 IBAN 10000030001 (P.      22 -R.     134);31-01-2019;885;0;578;1;Spese correnti;3;Acquisto di beni e servizi;2;Acquisto di servizi;5;Utenze e canoni;4;Energia elettrica;31-01-2019;
203;2;0;"837,43";"1.184,06";GP GLOBAL POWER SPA;7226954F17;BENEFICIARI DIVERSI-PAGAMENTI DIVERSI             COD DISP 0119011703U4BT NOME  GLOBAL POWER SPA MANDATOAA5TZ1C7799 PFM 10686 110119  FEC 0 CIG CIG7226954F17 IBAN 10000030001 (P.      29 -R.     141);31-01-2019;885;0;578;1;Spese correnti;3;Acquisto di beni e servizi;2;Acquisto di servizi;5;Utenze e canoni;4;Energia elettrica;31-01-2019;
204;1;0;"786,71";"786,71";GP GLOBAL POWER SPA;7226954F17;BENEFICIARI DIVERSI-PAGAMENTI DIVERSI             COD DISP 0119011703U45Q NOME  GLOBAL POWER SPA MANDATOAA5TZ1C7799 PFM 10684 110119  FEC 0 CIG CIG7226954F17 IBAN 10000030001 (P.      21 -R.     133);31-01-2019;886;0;496;1;Spese correnti;3;Acquisto di beni e servizi;2;Acquisto di servizi;5;Utenze e canoni;4;Energia elettrica;31-01-2019;
205;1;0;"78,34";"78,34";GP GLOBAL POWER SPA;7226954F17;BENEFICIARI DIVERSI-PAGAMENTI DIVERSI             COD DISP 0119011703U4BG NOME  GLOBAL POWER SPA MANDATOAA5TZ1C7799 PFM 10691 110119  FEC 0 CIG CIG7226954F17 IBAN 10000030001 (P.      26 -R.     138);31-01-2019;951;0;579;1;Spese correnti;3;Acquisto di beni e servizi;2;Acquisto di servizi;5;Utenze e canoni;4;Energia elettrica;31-01-2019;
206;1;0;"59,07";"13.193,84";GP GLOBAL POWER SPA;7226954F17;BENEFICIARI DIVERSI-PAGAMENTI DIVERSI             COD DISP 0119011703U4BG NOME  GLOBAL POWER SPA MANDATOAA5TZ1C7799 PFM 10691 110119  FEC 0 CIG CIG7226954F17 IBAN 10000030001 (P.      26 -R.     138);31-01-2019;960;0;580;1;Spese correnti;3;Acquisto di beni e servizi;2;Acquisto di servizi;5;Utenze e canoni;4;Energia elettrica;31-01-2019;
206;2;0;"793,97";"13.193,84";GP GLOBAL POWER SPA;7226954F17;BENEFICIARI DIVERSI-PAGAMENTI DIVERSI             COD DISP 0119011703U4ED NOME  GLOBAL POWER SPA MANDATOAA5TZ1C7799 PFM 10689 110119  FEC 0 CIG CIG7226954F17 IBAN 10000030001 (P.      28 -R.     140);31-01-2019;960;0;580;1;Spese correnti;3;Acquisto di beni e servizi;2;Acquisto di servizi;5;Utenze e canoni;4;Energia elettrica;31-01-2019;
206;3;0;"12.340,80";"13.193,84";GP GLOBAL POWER SPA;7226954F17;BENEFICIARI DIVERSI-PAGAMENTI DIVERSI             COD DISP 0119011703U490 NOME  GLOBAL POWER SPA MANDATOAA5TZ1C7799 PFM 10685 110119  FEC 0 CIG CIG7226954F17 IBAN 10000030001 (P.      27 -R.     139);31-01-2019;960;0;580;1;Spese correnti;3;Acquisto di beni e servizi;2;Acquisto di servizi;5;Utenze e canoni;4;Energia elettrica;31-01-2019;
208;1;147;"173,08";"173,08";GP GLOBAL POWER SPA;7226954F17;SALDO Fatt.n. V0/10684  del 11/01/2019 Fattura Energia Elettrica;31-01-2019;886;0;496;1;Spese correnti;3;Acquisto di beni e servizi;2;Acquisto di servizi;5;Utenze e canoni;4;Energia elettrica;04-02-2019;
209;1;148;"76,26";"76,26";GP GLOBAL POWER SPA;7226954F17;SALDO Fatt.n. V0/10682  del 11/01/2019 Fattura Energia Elettrica;31-01-2019;885;0;578;1;Spese correnti;3;Acquisto di beni e servizi;2;Acquisto di servizi;5;Utenze e canoni;6;Gas;04-02-2019;
210;1;149;"34,02";"34,02";GP GLOBAL POWER SPA;7226954F17;SALDO Fatt.n. V0/10687  del 11/01/2019 Fattura Energia Elettrica;31-01-2019;211;0;573;1;Spese correnti;3;Acquisto di beni e servizi;2;Acquisto di servizi;5;Utenze e canoni;4;Energia elettrica;04-02-2019;
211;1;150;"175,45";"175,45";GP GLOBAL POWER SPA;7226954F17;SALDO Fatt.n. V0/10683  del 11/01/2019 Fattura Energia Elettrica;31-01-2019;881;0;577;1;Spese correnti;3;Acquisto di beni e servizi;2;Acquisto di servizi;5;Utenze e canoni;4;Energia elettrica;04-02-2019;
212;1;151;"77,58";"77,58";GP GLOBAL POWER SPA;7226954F17;SALDO Fatt.n. V0/10688  del 11/01/2019 Fattura Energia Elettrica;31-01-2019;354;0;574;1;Spese correnti;3;Acquisto di beni e servizi;2;Acquisto di servizi;5;Utenze e canoni;4;Energia elettrica;04-02-2019;
213;1;152;"30,23";"30,23";GP GLOBAL POWER SPA;7226954F17;SALDO Fatt.n. V0/10691  del 11/01/2019 Fattura Energia Elettrica;31-01-2019;951;0;579;1;Spese correnti;3;Acquisto di beni e servizi;2;Acquisto di servizi;5;Utenze e canoni;4;Energia elettrica;04-02-2019;
214;1;153;"2.714,98";"2.714,98";GP GLOBAL POWER SPA;7226954F17;SALDO Fatt.n. V0/10685  del 11/01/2019 Fattura Energia Elettrica;31-01-2019;960;0;580;1;Spese correnti;3;Acquisto di beni e servizi;2;Acquisto di servizi;5;Utenze e canoni;4;Energia elettrica;04-02-2019;
215;1;154;"119,95";"119,95";GP GLOBAL POWER SPA;7226954F17;SALDO Fatt.n. V0/10689  del 11/01/2019 Fattura Energia Elettrica;31-01-2019;541;0;575;1;Spese correnti;3;Acquisto di beni e servizi;2;Acquisto di servizi;5;Utenze e canoni;4;Energia elettrica;04-02-2019;
216;1;155;"439,67";"439,67";GP GLOBAL POWER SPA;7226954F17;SALDO Fatt.n. V0/10686  del 11/01/2019 Fattura Energia Elettrica;31-01-2019;111;0;146;1;Spese correnti;3;Acquisto di beni e servizi;2;Acquisto di servizi;5;Utenze e canoni;4;Energia elettrica;04-02-2019;
217;1;156;"154,73";"154,73";GP GLOBAL POWER SPA;7226954F17;SALDO Fatt.n. V0/10690  del 11/01/2019 Fattura Energia Elettrica;31-01-2019;581;0;576;1;Spese correnti;3;Acquisto di beni e servizi;2;Acquisto di servizi;5;Utenze e canoni;4;Energia elettrica;04-02-2019;
219;1;168;"1.259,25";"1.259,25";MINISTERO INTERNO - DIREZIONE CENTR SERV DEMOGRAFICI; ;SERVIZIO ANAGRAFE: ASSUNZIONE IMPEGNO DI SPESA QUALE CORRISPETTIVO SPETTANTE AL MINISTERO DELL'INTERNO PER IL PERIODO DAL 01-01-2019 AL 31-12-2019 PER IL RILASCIO DI CARTE D'IDENTITA' ELETTRONICHE.;11-02-2019;325;0;74;1;Spese correnti;4;Trasferimenti correnti;1;Trasferimenti correnti a Amministrazioni Pubbliche;1;Trasferimenti correnti a Amministrazioni Centrali;1;Trasferimenti correnti a Ministeri;13-02-2019;
220;1;219;"2.440,00";"2.440,00";SIB SAS DI PINAMONTE ORNELLA;Z1725C9E04;SALDO Fatt.n. 23/PA  del 27/12/2018 FATTURA;11-02-2019;1106;2;854;2;Spese in conto capitale;2;Investimenti fissi lordi e acquisto di terreni;1;Beni materiali;9;Beni immobili;3;Fabbricati ad uso scolastico;15-02-2019;
221;1;220;"129,17";"129,17";LA RONDA - SERVIZI DI VIGILANZA;Z4022A6179;SALDO Fatt.n. V1-2010  del 31/01/2019 FATTURA;11-02-2019;357;0;205;1;Spese correnti;3;Acquisto di beni e servizi;2;Acquisto di servizi;13;Servizi ausiliari per il funzionamento dell'ente;1;"Servizi di sorveglianza, custodia e accoglienza";15-02-2019;
222;1;221;"5.490,00";"5.490,00";ARES SRL;ZCE226BF0B;SALDO Fatt.n. 1/PA  del 08/01/2019 FATTURA;11-02-2019;356;0;173;1;Spese correnti;3;Acquisto di beni e servizi;2;Acquisto di servizi;19;Servizi informatici e di telecomunicazioni;4;Servizi di rete per trasmissione dati e VoIP e relativa manutenzione;15-02-2019;
223;1;222;"592,91";"592,91";CIDIELLE COOPERATIVA SOCIALE;Z1E1EC391B;SALDO Fatt.n. 289/02  del 31/12/2018 FATTURA;11-02-2019;840;0;326;1;Spese correnti;3;Acquisto di beni e servizi;2;Acquisto di servizi;15;Contratti di servizio pubblico;4;Contratti di servizio per la raccolta rifiuti;15-02-2019;
224;1;223;"0,01";"62,49";FOLETTO LUCIANO SRL;ZF7224BB95;SALDO Fatt.n. 2018-E-0000036  del 30/11/2018 FATTURE ELETTRONICHE;11-02-2019;350;0;116;1;Spese correnti;3;Acquisto di beni e servizi;1;Acquisto di beni;2;Altri beni di consumo;999;Altri beni e materiali di consumo n.a.c.;15-02-2019;
224;2;223;"62,48";"62,49";FOLETTO LUCIANO SRL;ZF7224BB95;ACCONTO Fatt.n. 2018-E-0000036  del 30/11/2018 FATTURE ELETTRONICHE;11-02-2019;350;0;116;1;Spese correnti;3;Acquisto di beni e servizi;1;Acquisto di beni;2;Altri beni di consumo;999;Altri beni e materiali di consumo n.a.c.;15-02-2019;
225;1;224;"1.756,80";"1.756,80";FONDERIA VELO SRL;ZEA22D7F50;SALDO Fatt.n. U1800464  del 19/12/2018 VENDITA;11-02-2019;950;0;210;1;Spese correnti;3;Acquisto di beni e servizi;1;Acquisto di beni;2;Altri beni di consumo;999;Altri beni e materiali di consumo n.a.c.;15-02-2019;
226;1;225;"242,78";"242,78";DALLA VECCHIA FABRIZIO & C.  SRL;Z43224D39F;SALDO Fatt.n. 0000009/PA  del 28/12/2018 FATTURA;11-02-2019;292;0;118;1;Spese correnti;3;Acquisto di beni e servizi;2;Acquisto di servizi;9;Manutenzione ordinaria e riparazioni;1;"Manutenzione ordinaria e riparazioni di mezzi di trasporto ad uso civile, di sicurezza e ordine pubblico";15-02-2019;
227;1;226;"1.120,36";"1.120,36";COOPERATIVA SOCIALE VENETA ONLUS;Z431F034F6;SALDO Fatt.n. 000270-2018-PA  del 28/12/2018 FATTURA;11-02-2019;782;0;454;1;Spese correnti;3;Acquisto di beni e servizi;2;Acquisto di servizi;9;Manutenzione ordinaria e riparazioni;8;Manutenzione ordinaria e riparazioni di beni immobili;15-02-2019;
228;1;227;"4.148,00";"4.148,00";IDROCLIMA DI MILLI STEFANO E VANNI SNC;ZB524F4C5F;SALDO Fatt.n. 00007/02  del 26/10/2018 FATTURA;11-02-2019;880;0;532;1;Spese correnti;3;Acquisto di beni e servizi;2;Acquisto di servizi;9;Manutenzione ordinaria e riparazioni;8;Manutenzione ordinaria e riparazioni di beni immobili;15-02-2019;
229;1;228;"7.210,20";"7.210,20";NS - NUOVA SCAVI DI BALDO SANDRO & STEFANO;ZF9251298F;SALDO Fatt.n. 2  del 12/12/2018 FATTURA;11-02-2019;1187;2;545;2;Spese in conto capitale;2;Investimenti fissi lordi e acquisto di terreni;1;Beni materiali;9;Beni immobili;12;Infrastrutture stradali;15-02-2019;
230;1;229;"915,00";"915,00";NS - NUOVA SCAVI DI BALDO SANDRO & STEFANO;ZC2255A97E;SALDO Fatt.n. 5  del 30/12/2018 FATTURA;11-02-2019;1187;2;565;2;Spese in conto capitale;2;Investimenti fissi lordi e acquisto di terreni;1;Beni materiali;9;Beni immobili;12;Infrastrutture stradali;15-02-2019;
231;1;230;"415,64";"415,64";EDILTOSI SRL;Z9B248C873;SALDO Fatt.n. 007562  del 31/12/2018 FATTURA;11-02-2019;350;0;505;1;Spese correnti;3;Acquisto di beni e servizi;1;Acquisto di beni;2;Altri beni di consumo;999;Altri beni e materiali di consumo n.a.c.;15-02-2019;
232;1;231;"11.998,09";"11.998,09";TES SPA;Z0B251D7AA;SALDO Fatt.n. 896PA  del 27/12/2018 INSTALLAZIONE;11-02-2019;955;0;556;1;Spese correnti;3;Acquisto di beni e servizi;2;Acquisto di servizi;9;Manutenzione ordinaria e riparazioni;8;Manutenzione ordinaria e riparazioni di beni immobili;15-02-2019;
233;1;232;"0,02";"451,27";KUWAIT PETROLEUM ITALIA SPA;ZA91845EEC;SALDO Fatt.n. PJ00645501  del 31/12/2018 FATTURA;11-02-2019;290;0;626;1;Spese correnti;3;Acquisto di beni e servizi;1;Acquisto di beni;2;Altri beni di consumo;2;"Carburanti, combustibili e lubrificanti";15-02-2019;
233;2;232;"451,25";"451,27";KUWAIT PETROLEUM ITALIA SPA;ZA91845EEC;ACCONTO Fatt.n. PJ00645501  del 31/12/2018 FATTURA;11-02-2019;290;0;626;1;Spese correnti;3;Acquisto di beni e servizi;1;Acquisto di beni;2;Altri beni di consumo;2;"Carburanti, combustibili e lubrificanti";15-02-2019;
234;1;233;"129,17";"129,17";LA RONDA - SERVIZI DI VIGILANZA;Z4022A6179;SALDO Fatt.n. 0015269  del 21/12/2018 FATTURA;11-02-2019;357;0;205;1;Spese correnti;3;Acquisto di beni e servizi;2;Acquisto di servizi;13;Servizi ausiliari per il funzionamento dell'ente;1;"Servizi di sorveglianza, custodia e accoglienza";15-02-2019;
235;1;234;"1.112,56";"1.112,56";MATTARANETTA SOCIETA' COOPERATIVA SOCIALE;Z9F225C229;ACCONTO Fatt.n. 38/FE  del 31/12/2018 FATTURA IMMEDIATA;11-02-2019;840;0;141;1;Spese correnti;3;Acquisto di beni e servizi;2;Acquisto di servizi;15;Contratti di servizio pubblico;4;Contratti di servizio per la raccolta rifiuti;15-02-2019;
236;1;235;"161,60";"161,60";MATTARANETTA SOCIETA' COOPERATIVA SOCIALE;Z9F225C229;SALDO Fatt.n. 38/FE  del 31/12/2018 FATTURA IMMEDIATA;11-02-2019;840;0;141;1;Spese correnti;3;Acquisto di beni e servizi;2;Acquisto di servizi;15;Contratti di servizio pubblico;4;Contratti di servizio per la raccolta rifiuti;15-02-2019;
237;1;236;"1.329,16";"1.329,16";MATTARANETTA SOCIETA' COOPERATIVA SOCIALE;Z9F225C229;SALDO Fatt.n. 5/FE  del 31/01/2019 FATTURA IMMEDIATA;11-02-2019;840;0;141;1;Spese correnti;3;Acquisto di beni e servizi;2;Acquisto di servizi;15;Contratti di servizio pubblico;4;Contratti di servizio per la raccolta rifiuti;15-02-2019;
238;1;237;"11.177,60";"11.177,60";COOPERATIVA SOCIALE MONSCLEDA LAVORO SRL;7512636758;SALDO Fatt.n. 246/2018  del 01/12/2018 FATTURA;11-02-2019;352;0;474;1;Spese correnti;3;Acquisto di beni e servizi;2;Acquisto di servizi;9;Manutenzione ordinaria e riparazioni;8;Manutenzione ordinaria e riparazioni di beni immobili;15-02-2019;
239;1;238;"6.590,00";"6.590,00";COOPERATIVA SOCIALE MONSCLEDA LAVORO SRL;7512636758;ACCONTO Fatt.n. 273/2018  del 31/12/2018 FATTURA;11-02-2019;352;0;474;1;Spese correnti;3;Acquisto di beni e servizi;2;Acquisto di servizi;9;Manutenzione ordinaria e riparazioni;8;Manutenzione ordinaria e riparazioni di beni immobili;15-02-2019;
240;1;239;"11.049,44";"11.049,44";COOPERATIVA SOCIALE MONSCLEDA LAVORO SRL;7512636758;SALDO Fatt.n. 273/2018  del 31/12/2018 FATTURA;11-02-2019;352;0;474;1;Spese correnti;3;Acquisto di beni e servizi;2;Acquisto di servizi;9;Manutenzione ordinaria e riparazioni;8;Manutenzione ordinaria e riparazioni di beni immobili;15-02-2019;
241;1;240;"4.066,26";"4.066,26";CALCIO CALDIERO TERME SSD  A RL UNIPERSONALE;ZED16CDF72;SALDO Fatt.n. E-2  del 08/01/2019 FATTURA;11-02-2019;880;0;748;1;Spese correnti;3;Acquisto di beni e servizi;2;Acquisto di servizi;9;Manutenzione ordinaria e riparazioni;8;Manutenzione ordinaria e riparazioni di beni immobili;15-02-2019;
242;1;241;"2.033,74";"2.033,74";CALCIO CALDIERO TERME SSD  A RL UNIPERSONALE;ZED16CDF72;SALDO Fatt.n. E-1  del 08/01/2019 FATTURA;11-02-2019;880;0;748;1;Spese correnti;3;Acquisto di beni e servizi;2;Acquisto di servizi;9;Manutenzione ordinaria e riparazioni;8;Manutenzione ordinaria e riparazioni di beni immobili;15-02-2019;
243;1;242;"2.854,80";"2.854,80";GARBIN GIUSEPPE;Z1225587C8;SALDO Fatt.n. 1  del 08/01/2019 FATTURA;11-02-2019;1184;0;597;2;Spese in conto capitale;2;Investimenti fissi lordi e acquisto di terreni;1;Beni materiali;9;Beni immobili;12;Infrastrutture stradali;15-02-2019;
244;1;243;"1.731,94";"1.731,94";ECOGEO S.R.L.;7375058A62;SALDO Fatt.n. 17  del 28/01/2019 FATTURA;12-02-2019;275;0;143;1;Spese correnti;3;Acquisto di beni e servizi;2;Acquisto di servizi;18;Servizi sanitari;1;Spese per accertamenti sanitari resi necessari dall'attività lavorativa;15-02-2019;
245;1;244;"100,00";"100,00";ALVERA' FRANCESCO;ZC72612649;INIZIATIVE CULTURALI APPROVATE CON DELIBERA DI GIUNTA COMUNALE N.143/2018. IMPEGNO DI SPESA PER LA SERATA A TEMA FAKE NEWS.;12-02-2019;686;0;673;1;Spese correnti;3;Acquisto di beni e servizi;2;Acquisto di servizi;2;"Organizzazione eventi, pubblicita` e servizi per trasferta";5;Organizzazione e partecipazione a manifestazioni e convegni;15-02-2019;
248;1;247;"342,00";"342,00";SEPEL EDITRICE - LO STATO CIVILE ITALIANO;ZF826F3125;UFFICI E SERVIZI COMUNALI - ABBONAMENTI A PERIODICI SPECIALISTICI E SERVIZI DI AGGIORNAMENTO ON LINE PER L'ANNO 2019;12-02-2019;150;0;86;1;Spese correnti;3;Acquisto di beni e servizi;2;Acquisto di servizi;5;Utenze e canoni;3;Accesso a banche dati e a pubblicazioni on line;15-02-2019;
249;1;248;"230,00";"230,00";LEGISLAZIONE TECNICA SRL;Z2626F7801;SALDO Fatt.n. 99/PA/2019  del 22/02/2019 FATTURA;12-02-2019;150;0;88;1;Spese correnti;3;Acquisto di beni e servizi;2;Acquisto di servizi;5;Utenze e canoni;3;Accesso a banche dati e a pubblicazioni on line;15-02-2019;
250;1;249;"529,35";"529,35";PRO LOCO DI CALDIERO; ;"INIZIATIVE CULTURALI A TEMA ""CIOCCOLATO"", APPROVATE CON DELIBERA DI GIUNTA COMUNALE N. 144 DEL 20/11/2018. IMPEGNO CONTRIBUTO ECONOMICO ALL'ASSOC. PROLOCO DI CALDIERO E AFFIDAMENTO DIRETTO  DEL SERVIZIO DI INTRATTENIMENTO A RADIO CRICETO DI ALBI MATT";12-02-2019;690;0;672;1;Spese correnti;4;Trasferimenti correnti;4;Trasferimenti correnti a Istituzioni Sociali Private;1;Trasferimenti correnti a Istituzioni Sociali Private;1;Trasferimenti correnti a Istituzioni Sociali Private;15-02-2019;
251;1;250;"71,16";"71,16";PRO LOCO DI CALDIERO; ;"PROGRAMMA CULTURALE AUTUNNO 2018, APPROVATO CON DELIBERA DI GIUNTA COMUNALE N.123/2018. IMPEGNO CONTRIBUTI ECONOMICI.";12-02-2019;690;0;589;1;Spese correnti;4;Trasferimenti correnti;4;Trasferimenti correnti a Istituzioni Sociali Private;1;Trasferimenti correnti a Istituzioni Sociali Private;1;Trasferimenti correnti a Istituzioni Sociali Private;15-02-2019;
252;1;251;"500,00";"500,00";CORO POLIFONICO; ;"IMPEGNO CONTRIBUTO ECONOMICO A FAVORE DELL'ASSOCIAZIONE CORO POLIFONICO PER IL CONCERTO DELL'EPIFANIA 2019, APPROVATO CON DELIBERA DI GIUNTA COMUNALE N.161/2018.";12-02-2019;690;0;777;1;Spese correnti;4;Trasferimenti correnti;4;Trasferimenti correnti a Istituzioni Sociali Private;1;Trasferimenti correnti a Istituzioni Sociali Private;1;Trasferimenti correnti a Istituzioni Sociali Private;15-02-2019;
253;1;252;"694,81";"694,81";COMUNE DI SOAVE; ;Spese per la CEM primo semestre 2018;12-02-2019;130;0;768;1;Spese correnti;3;Acquisto di beni e servizi;2;Acquisto di servizi;1;Organi e incarichi istituzionali dell'amministrazione;7;Commissioni elettorali;15-02-2019;
254;1;253;"45.000,00";"45.000,00";FONDAZIONE DON GAETANO PROVOLI - SCUOLA PARITARIA PER L; ;EDILIZIA SCOLASTICA  PRESA D'ATTO CONCESSIONE CONTRIBUTO IN CONTO CAPITALE PER L'INTERVENTO DI RISTRUTTURAZIONE ED EFFICIENTAMENTO ENERGETICO DELL'EDIFICIO DI PROPRIETA' IN USO ALL'ASILO NIDO INTEGRATO "IL PALLONCINO" E APPROVAZIONE DELLO SCHEMA DI C;12-02-2019;1102;2;662;2;Spese in conto capitale;2;Investimenti fissi lordi e acquisto di terreni;1;Beni materiali;9;Beni immobili;3;Fabbricati ad uso scolastico;15-02-2019;
255;1;254;"225,00";"225,00";ALBI MATTEO;ZB026002C5;"INIZIATIVE CULTURALI A TEMA ""CIOCCOLATO"", APPROVATE CON DELIBERA DI GIUNTA COMUNALE N. 144 DEL 20/11/2018. IMPEGNO CONTRIBUTO ECONOMICO ALL'ASSOC. PROLOCO DI CALDIERO E AFFIDAMENTO DIRETTO  DEL SERVIZIO DI INTRATTENIMENTO A RADIO CRICETO DI ALBI MATT";12-02-2019;686;0;671;1;Spese correnti;3;Acquisto di beni e servizi;2;Acquisto di servizi;2;"Organizzazione eventi, pubblicita` e servizi per trasferta";5;Organizzazione e partecipazione a manifestazioni e convegni;15-02-2019;
256;1;255;"5.000,00";"5.000,00";FONDAZIONE DON GAETANO PROVOLI - SCUOLA PARITARIA PER L; ;"EROGAZIONE CONTRIBUTO ECONOMICO STRAORDINARIO ALLE SCUOLE MATERNE DEL TERRITORIO, APPROVATO CON DELIBERA DI GIUNTA COMUNALE N.162/2018.";12-02-2019;480;0;774;1;Spese correnti;4;Trasferimenti correnti;4;Trasferimenti correnti a Istituzioni Sociali Private;1;Trasferimenti correnti a Istituzioni Sociali Private;1;Trasferimenti correnti a Istituzioni Sociali Private;15-02-2019;
257;1;256;"5.000,00";"5.000,00";SCUOLA MATERNA MARIA BAMBINA; ;"EROGAZIONE CONTRIBUTO ECONOMICO STRAORDINARIO ALLE SCUOLE MATERNE DEL TERRITORIO, APPROVATO CON DELIBERA DI GIUNTA COMUNALE N.162/2018.";12-02-2019;480;0;776;1;Spese correnti;4;Trasferimenti correnti;4;Trasferimenti correnti a Istituzioni Sociali Private;1;Trasferimenti correnti a Istituzioni Sociali Private;1;Trasferimenti correnti a Istituzioni Sociali Private;15-02-2019;
258;1;257;"1.500,00";"1.500,00";BANDA ALPINA CITTA' DI CALDIERO; ;ASSEGNAZIONE CONTRIBUTO ECONOMICO  ALL'ASSOCIAZIONE BANDA ALPINA "CITTA' DI CALDIERO" PER LE ATTIVITA' MUSICALI.;12-02-2019;895;0;773;1;Spese correnti;4;Trasferimenti correnti;4;Trasferimenti correnti a Istituzioni Sociali Private;1;Trasferimenti correnti a Istituzioni Sociali Private;1;Trasferimenti correnti a Istituzioni Sociali Private;15-02-2019;
259;1;258;"507,09";"507,09";ANCI VENETO; ;ORGANISMI ASSOCIATIVI - ADESIONE ANNO 2019;12-02-2019;190;0;77;1;Spese correnti;4;Trasferimenti correnti;1;Trasferimenti correnti a Amministrazioni Pubbliche;1;Trasferimenti correnti a Amministrazioni Centrali;11;Trasferimenti correnti a enti centrali a struttura associativa;15-02-2019;
260;1;259;"230,00";"230,00";ANUTEL; ;ORGANISMI ASSOCIATIVI - ADESIONE ANNO 2019;12-02-2019;190;0;78;1;Spese correnti;4;Trasferimenti correnti;1;Trasferimenti correnti a Amministrazioni Pubbliche;1;Trasferimenti correnti a Amministrazioni Centrali;11;Trasferimenti correnti a enti centrali a struttura associativa;15-02-2019;
261;1;260;"440,00";"440,00";ANUSCA; ;ORGANISMI ASSOCIATIVI - ADESIONE ANNO 2019;12-02-2019;190;0;79;1;Spese correnti;4;Trasferimenti correnti;1;Trasferimenti correnti a Amministrazioni Pubbliche;1;Trasferimenti correnti a Amministrazioni Centrali;11;Trasferimenti correnti a enti centrali a struttura associativa;15-02-2019;
262;1;261;"500,00";"500,00";AVVISO PUBBLICO; ;ORGANISMI ASSOCIATIVI - ADESIONE ANNO 2019;12-02-2019;190;0;80;1;Spese correnti;4;Trasferimenti correnti;1;Trasferimenti correnti a Amministrazioni Pubbliche;1;Trasferimenti correnti a Amministrazioni Centrali;11;Trasferimenti correnti a enti centrali a struttura associativa;15-02-2019;
263;1;262;"817,40";"817,40";GUGLIELMI ADELINO ELETTRAUTO SNC;Z8E224DC12;SALDO Fatt.n. 2224  del 28/12/2018 FATTURA;13-02-2019;292;0;120;1;Spese correnti;3;Acquisto di beni e servizi;2;Acquisto di servizi;9;Manutenzione ordinaria e riparazioni;1;"Manutenzione ordinaria e riparazioni di mezzi di trasporto ad uso civile, di sicurezza e ordine pubblico";15-02-2019;
264;1;263;"4.999,56";"4.999,56";ZAMPINI CARLO FIGLI DI ZAMPINI OMAR SAS;ZB125481B6;SALDO Fatt.n. 9  del 08/02/2019 fattura;13-02-2019;142;0;579;1;Spese correnti;3;Acquisto di beni e servizi;2;Acquisto di servizi;99;Altri servizi;999;Altri servizi diversi n.a.c.;15-02-2019;
265;1;264;"27.913,60";"27.913,60";TACCONI MOTOFARM DI TACCONI ANGELO;Z2E2685E69;SALDO Fatt.n. F201900047  del 07/02/2019 VENDITA RICAMBI;13-02-2019;1083;0;719;2;Spese in conto capitale;2;Investimenti fissi lordi e acquisto di terreni;1;Beni materiali;1;"Mezzi di trasporto ad uso civile, di sicurezza e ordine pubblico";1;Mezzi di trasporto stradali;15-02-2019;
266;1;265;"153,05";"153,05";SVAI SPA - NON USARE;ZCC24F9057;SALDO Fatt.n. 300007  del 31/01/2019 fattura;13-02-2019;350;0;544;1;Spese correnti;3;Acquisto di beni e servizi;1;Acquisto di beni;2;Altri beni di consumo;999;Altri beni e materiali di consumo n.a.c.;15-02-2019;
267;1;266;"296,06";"296,06";CONSORZIO AGRARIO DEL NORDEST;ZC9224DC49;SALDO Fatt.n. 008919/V1  del 08/02/2019 fattura;13-02-2019;350;0;119;1;Spese correnti;3;Acquisto di beni e servizi;1;Acquisto di beni;2;Altri beni di consumo;999;Altri beni e materiali di consumo n.a.c.;15-02-2019;
268;1;267;"4.794,60";"4.794,60";TARGON SNC DI TARGON ANTONIO;Z25249B15F;SALDO Fatt.n. 2019     1/P  del 23/01/2019 fattura;13-02-2019;1092;2;546;2;Spese in conto capitale;2;Investimenti fissi lordi e acquisto di terreni;1;Beni materiali;9;Beni immobili;19;Fabbricati ad uso strumentale;15-02-2019;
269;1;268;"3.660,00";"3.660,00";TARGON SNC DI TARGON ANTONIO;Z25249B15F;SALDO Fatt.n. 2019     3/P  del 24/01/2019 fattura;13-02-2019;1092;2;546;2;Spese in conto capitale;2;Investimenti fissi lordi e acquisto di terreni;1;Beni materiali;9;Beni immobili;19;Fabbricati ad uso strumentale;15-02-2019;
270;1;269;"888,22";"888,22";TACCONI MOTOFARM DI TACCONI ANGELO;Z4E249ACBC;SALDO Fatt.n. F201900012  del 17/01/2019 RIPARAZIONE;13-02-2019;292;0;483;1;Spese correnti;3;Acquisto di beni e servizi;2;Acquisto di servizi;9;Manutenzione ordinaria e riparazioni;1;"Manutenzione ordinaria e riparazioni di mezzi di trasporto ad uso civile, di sicurezza e ordine pubblico";15-02-2019;
271;1;270;"4.462,76";"4.462,76";MARASTONI TENDE;ZE024A633C;SALDO Fatt.n. 3/PA  del 28/11/2018 TRATTATIVA NR 591018 FORNITURA E POSA DI NR. 49 TENDE ALLA VENEZIANA DA 25M COL. 050 COMPLETE DI GUIDATURE LATERALI;13-02-2019;1092;2;616;2;Spese in conto capitale;2;Investimenti fissi lordi e acquisto di terreni;1;Beni materiali;9;Beni immobili;19;Fabbricati ad uso strumentale;15-02-2019;
272;1;271;"352,33";"352,33";SICONTRAF SRL;ZF721ED995;ACCONTO Fatt.n. 22/PA  del 30/01/2019 fattura;13-02-2019;952;0;115;1;Spese correnti;3;Acquisto di beni e servizi;2;Acquisto di servizi;9;Manutenzione ordinaria e riparazioni;4;Manutenzione ordinaria e riparazioni di impianti e macchinari;15-02-2019;
273;1;272;"39,05";"39,05";SICONTRAF SRL;ZF721ED995;SALDO Fatt.n. 22/PA  del 30/01/2019 fattura;13-02-2019;952;0;115;1;Spese correnti;3;Acquisto di beni e servizi;2;Acquisto di servizi;9;Manutenzione ordinaria e riparazioni;4;Manutenzione ordinaria e riparazioni di impianti e macchinari;15-02-2019;
274;1;273;"1.152,91";"1.152,91";MODENESE MARCO;Z392558687;"SALDO Fatt.n. 3  del 15/01/2019 Progetto per l'esecuzione, in conformitÃ  alle Leggi e Normative vigenti, per l'esecuzione degli impianti di prevenzione incendi dei campi da tennis siti in 37042 Caldiero (VR) via Ponterotto CIG Z39";13-02-2019;1174;0;853;2;Spese in conto capitale;2;Investimenti fissi lordi e acquisto di terreni;1;Beni materiali;9;Beni immobili;16;Impianti sportivi;15-02-2019;
275;1;274;"1.852,20";"1.852,20";STEVANONI ROBERTO;Z0620EA6EF;SALDO Fatt.n. 3  del 29/10/2018 fattura;15-02-2019;1183;1;570;2;Spese in conto capitale;2;Investimenti fissi lordi e acquisto di terreni;1;Beni materiali;9;Beni immobili;12;Infrastrutture stradali;15-02-2019;
277;1;276;"-31,45";"7.532,18";EURORISTORAZIONE SRL;7569040965;SALDO Fatt.n. 18CPA03991  del 30/11/2018 NOTA DI CREDITO;18-02-2019;662;0;428;1;Spese correnti;3;Acquisto di beni e servizi;2;Acquisto di servizi;15;Contratti di servizio pubblico;6;Contratti di servizio per le mense scolastiche;18-02-2019;
277;2;276;"7.563,63";"7.532,18";EURORISTORAZIONE SRL;7569040965;SALDO Fatt.n. 18CPA04267  del 31/12/2018 FATTURA;18-02-2019;662;0;428;1;Spese correnti;3;Acquisto di beni e servizi;2;Acquisto di servizi;15;Contratti di servizio pubblico;6;Contratti di servizio per le mense scolastiche;18-02-2019;
278;1;277;"-137,59";"10.114,98";EURORISTORAZIONE SRL;7569040965;SALDO Fatt.n. 18CPA04428  del 31/12/2018 NOTA DI CREDITO;18-02-2019;662;0;428;1;Spese correnti;3;Acquisto di beni e servizi;2;Acquisto di servizi;15;Contratti di servizio pubblico;6;Contratti di servizio per le mense scolastiche;18-02-2019;
278;2;277;"10.252,57";"10.114,98";EURORISTORAZIONE SRL;7569040965;SALDO Fatt.n. 18CPA03638  del 30/11/2018 FATTURA;18-02-2019;662;0;428;1;Spese correnti;3;Acquisto di beni e servizi;2;Acquisto di servizi;15;Contratti di servizio pubblico;6;Contratti di servizio per le mense scolastiche;18-02-2019;
279;1;278;"732,00";"732,00";PIMAZZONI AUTO SNC;ZDD254F28F;SALDO Fatt.n. 4  del 28/12/2018 FATTURA;18-02-2019;292;0;609;1;Spese correnti;3;Acquisto di beni e servizi;2;Acquisto di servizi;9;Manutenzione ordinaria e riparazioni;1;"Manutenzione ordinaria e riparazioni di mezzi di trasporto ad uso civile, di sicurezza e ordine pubblico";18-02-2019;
280;1;279;"490,95";"490,95";ASSITECA SPA - FILIALE DI VERONA;ZD327227DC;ASSICURAZIONI - ACCENSIONE RCA NUOVO MEZZO COMUNALE TG. FT824VL  E RELATIVO IMPEGNO DI SPESA - CIG: ZD327227DC;18-02-2019;120;0;92;1;Spese correnti;10;Altre spese correnti;4;Premi di assicurazione;1;Premi di assicurazione contro i danni;1;Premi di assicurazione su beni mobili;18-02-2019;
281;1;280;"475,01";"475,01";ASSITECA SPA - FILIALE DI VERONA;ZED26FA2DB;ASSICURAZIONI - ACCENSIONE NUOVA POLIZZA INFORTUNI CUMULATIVA E RELATIVO IMPEGNO DI SPESA - CIG ZED26FA2DB;18-02-2019;120;0;90;1;Spese correnti;10;Altre spese correnti;4;Premi di assicurazione;1;Premi di assicurazione contro i danni;999;Altri premi di assicurazione contro i danni;18-02-2019;
282;1;281;"1.000,00";"1.000,00";PARROCCHIA "SAN LORENZO MARTIRE"; ;"EROGAZIONE CONTRIBUTI ECONOMICI ALLA PARROCCHIA DI CALDIERO, ALLA PARROCCHIA DI CALDIERINO E ALLA PARROCCHIA DI STRA', APPROVATI CON DELIBERA DI GIUNTA N.148 DEL 27/11/2018.";18-02-2019;891;2;754;1;Spese correnti;4;Trasferimenti correnti;4;Trasferimenti correnti a Istituzioni Sociali Private;1;Trasferimenti correnti a Istituzioni Sociali Private;1;Trasferimenti correnti a Istituzioni Sociali Private;18-02-2019;
283;1;282;"13.667,52";"13.667,52";BAZZOTTI COSTRUZIONI SRL;7587873EDF;SALDO Fatt.n. A1  del 28/01/2019 FATTURA;18-02-2019;1093;0;476;2;Spese in conto capitale;2;Investimenti fissi lordi e acquisto di terreni;1;Beni materiali;9;Beni immobili;19;Fabbricati ad uso strumentale;18-02-2019;
284;1;289;"5,88";"5,88";COMUNE DI SAN BONIFACIO; ;RIMBORSO SPESE DI NOTIFICA PROT. N. 25327/C - SECONDO SEMESTRE 2018 - COMUNE DI CALDIERO C.F. 00252060231 - 127;19-02-2019;105;0;94;1;Spese correnti;3;Acquisto di beni e servizi;2;Acquisto di servizi;16;Servizi amministrativi;2;Spese postali;22-02-2019;
285;1;0;"3.825,00";"3.825,00";AMMINISTRATORI COMUNALI; ;INDENNITA' DI CARICA MESE DI FEBBRAIO 2019;22-02-2019;10;0;38;1;Spese correnti;3;Acquisto di beni e servizi;2;Acquisto di servizi;1;Organi e incarichi istituzionali dell'amministrazione;1;Organi istituzionali dell'amministrazione - Indennità;22-02-2019;
300;1;0;"631,96";"631,96";CONSIGLIERI COMUNALI; ;LIQUIDAZIONE DEI GETTONI DI PRESENZA AI CONSIGLIERI COMUNALI ED AI MEMBRI DELLA COMMISSIONE EDILIZIA PER LE SEDUTE DAL 01/01/2018 AL 31/12/2018.;22-02-2019;10;0;759;1;Spese correnti;3;Acquisto di beni e servizi;2;Acquisto di servizi;1;Organi e incarichi istituzionali dell'amministrazione;1;Organi istituzionali dell'amministrazione - Indennità;22-02-2019;
301;1;0;"1.000,00";"1.000,00";FIORIO MONICA; ;CONFERIMENTO INCARICO DI COLLABORAZIONE PRESSO L'AREA TECNICA - EDILIZIA PRIVATA ALLA SIG.RA FIORIO MONICA DIPENDENTE DEL COMUNE DI LAVAGNO (VR).;22-02-2019;253;0;580;1;Spese correnti;3;Acquisto di beni e servizi;2;Acquisto di servizi;11;Prestazioni professionali e specialistiche;999;Altre prestazioni professionali e specialistiche n.a.c.;22-02-2019;
357;1;0;"181,61";"181,61";SOENERGY SRL;7451882F8C;BENEFICIARI DIVERSI-PAGAMENTI DIVERSI             COD DISP 011902040LSXPR NOME  SOENERGY S R L MANDATO99Z1610053624A299 PFM 3326202 Fattura 191009552 del 14 01 19 Scad 18 0 (P.      47 -R.     288);27-02-2019;112;0;285;1;Spese correnti;3;Acquisto di beni e servizi;2;Acquisto di servizi;5;Utenze e canoni;6;Gas;27-02-2019;
360;1;0;"285,88";"285,88";SOENERGY SRL;7451882F8C;BENEFICIARI DIVERSI-PAGAMENTI DIVERSI             COD DISP 011902040LSWE1 NOME  SOENERGY S R L MANDATO99Z1610053624A299 PFM 3326204 Fattura 191009554 del 14 01 19 Scad 18 0 (P.      46 -R.     287);27-02-2019;212;0;286;1;Spese correnti;3;Acquisto di beni e servizi;2;Acquisto di servizi;5;Utenze e canoni;6;Gas;27-02-2019;
361;1;0;"597,30";"597,30";SOENERGY SRL;7451882F8C;BENEFICIARI DIVERSI-PAGAMENTI DIVERSI             COD DISP 011902040LSVRN NOME  SOENERGY S R L MANDATO99Z1610053624A299 PFM 3326198 Fattura 191009548 del 14 01 19 Scad 18 0 (P.      43 -R.     284);27-02-2019;353;0;289;1;Spese correnti;3;Acquisto di beni e servizi;2;Acquisto di servizi;5;Utenze e canoni;6;Gas;27-02-2019;
362;1;0;"626,63";"626,63";SOENERGY SRL;7451882F8C;BENEFICIARI DIVERSI-PAGAMENTI DIVERSI             COD DISP 011902040LSVQO NOME  SOENERGY S R L MANDATO99Z1610053624A299 PFM 3326201 Fattura 191009551 del 14 01 19 Scad 18 0 (P.      45 -R.     286);27-02-2019;582;0;288;1;Spese correnti;3;Acquisto di beni e servizi;2;Acquisto di servizi;5;Utenze e canoni;6;Gas;27-02-2019;
363;1;0;"467,01";"467,01";SOENERGY SRL;7451882F8C;ACCONTO Fatt.n. 191009550  del 14/01/2019 FORNITURA GAS;27-02-2019;884;0;290;1;Spese correnti;3;Acquisto di beni e servizi;2;Acquisto di servizi;5;Utenze e canoni;6;Gas;27-02-2019;
364;1;0;"1.305,67";"1.305,67";SOENERGY SRL;7451882F8C;BENEFICIARI DIVERSI-PAGAMENTI DIVERSI             COD DISP 011902040LSVQ7 NOME  SOENERGY S R L MANDATO99Z1610053624A299 PFM 3326203 Fattura 191009553 del 14 01 19 Scad 18 0 (P.      42 -R.     283);27-02-2019;888;0;291;1;Spese correnti;3;Acquisto di beni e servizi;2;Acquisto di servizi;5;Utenze e canoni;6;Gas;27-02-2019;
366;1;318;"287,25";"287,25";SOENERGY SRL;7451882F8C;SALDO Fatt.n. 191009553  del 14/01/2019 FORNITURA GAS;27-02-2019;888;0;291;1;Spese correnti;3;Acquisto di beni e servizi;2;Acquisto di servizi;5;Utenze e canoni;6;Gas;05-03-2019;
367;1;319;"131,41";"131,41";SOENERGY SRL;7451882F8C;SALDO Fatt.n. 191009548  del 14/01/2019 FORNITURA GAS;27-02-2019;353;0;289;1;Spese correnti;3;Acquisto di beni e servizi;2;Acquisto di servizi;5;Utenze e canoni;6;Gas;05-03-2019;
368;1;320;"102,74";"102,74";SOENERGY SRL;7451882F8C;SALDO Fatt.n. 191009550  del 14/01/2019 FORNITURA GAS;27-02-2019;884;0;290;1;Spese correnti;3;Acquisto di beni e servizi;2;Acquisto di servizi;5;Utenze e canoni;6;Gas;05-03-2019;
369;1;321;"137,86";"137,86";SOENERGY SRL;7451882F8C;SALDO Fatt.n. 191009551  del 14/01/2019 FORNITURA GAS;27-02-2019;582;0;288;1;Spese correnti;3;Acquisto di beni e servizi;2;Acquisto di servizi;5;Utenze e canoni;6;Gas;05-03-2019;
370;1;322;"62,89";"62,89";SOENERGY SRL;7451882F8C;SALDO Fatt.n. 191009554  del 14/01/2019 FORNITURA GAS;27-02-2019;212;0;286;1;Spese correnti;3;Acquisto di beni e servizi;2;Acquisto di servizi;5;Utenze e canoni;6;Gas;05-03-2019;
371;1;323;"39,95";"39,95";SOENERGY SRL;7451882F8C;SALDO Fatt.n. 191009552  del 14/01/2019 FORNITURA GAS;27-02-2019;112;0;285;1;Spese correnti;3;Acquisto di beni e servizi;2;Acquisto di servizi;5;Utenze e canoni;6;Gas;05-03-2019;
372;1;324;"3.257,91";"3.257,91";UNIONE DI COMUNI VERONA EST; ;QUOTA DEL 5 PER MILLE SULLA DICHIARAZIONE DEI REDDITI 2016 ANNO D'IMPOSTA 2015 DESTINATA A FINALITA SOCIALI.  TRASFERIMENTO FONDI ALL UNIONE DI COMUNI VERONA EST.;28-02-2019;920;0;778;1;Spese correnti;4;Trasferimenti correnti;1;Trasferimenti correnti a Amministrazioni Pubbliche;2;Trasferimenti correnti a Amministrazioni Locali;5;Trasferimenti correnti a Unioni di Comuni;05-03-2019;
373;1;325;"5.509,76";"5.509,76";MASTERGROUP SRL;Z6D1FE3130;SALDO Fatt.n. 1/PA  del 11/02/2019;28-02-2019;270;0;603;1;Spese correnti;3;Acquisto di beni e servizi;2;Acquisto di servizi;11;Prestazioni professionali e specialistiche;999;Altre prestazioni professionali e specialistiche n.a.c.;05-03-2019;
374;1;326;"2.318,00";"2.318,00";IDROCLIMA DI MILLI STEFANO E VANNI SNC;ZD3258A4F5;SALDO Fatt.n. 7/00  del 05/02/2019;28-02-2019;114;0;611;1;Spese correnti;3;Acquisto di beni e servizi;2;Acquisto di servizi;9;Manutenzione ordinaria e riparazioni;4;Manutenzione ordinaria e riparazioni di impianti e macchinari;05-03-2019;
375;1;327;"1.199,66";"1.199,66";COOPERATIVA SOCIALE VENETA ONLUS;Z431F034F6;SALDO Fatt.n. 18/002  del 30/01/2019;28-02-2019;782;0;454;1;Spese correnti;3;Acquisto di beni e servizi;2;Acquisto di servizi;9;Manutenzione ordinaria e riparazioni;8;Manutenzione ordinaria e riparazioni di beni immobili;05-03-2019;
376;1;328;"4.123,26";"4.123,26";CONSORZIO DI BACINO VERONA DUE DEL QUADRILATERO; ;SALDO Fatt.n. 005397/02  del 31/12/2018 FATTURA;28-02-2019;840;0;155;1;Spese correnti;3;Acquisto di beni e servizi;2;Acquisto di servizi;15;Contratti di servizio pubblico;4;Contratti di servizio per la raccolta rifiuti;05-03-2019;
377;1;329;"6.742,89";"6.742,89";CONSORZIO DI BACINO VERONA DUE DEL QUADRILATERO; ;SALDO Fatt.n. 005259/02  del 31/12/2018 FATTURA;28-02-2019;840;0;174;1;Spese correnti;3;Acquisto di beni e servizi;2;Acquisto di servizi;15;Contratti di servizio pubblico;4;Contratti di servizio per la raccolta rifiuti;05-03-2019;
378;1;330;"2.134,86";"2.134,86";CONSORZIO DI BACINO VERONA DUE DEL QUADRILATERO; ;SALDO Fatt.n. 003812/02  del 28/09/2018 fattura;28-02-2019;840;0;155;1;Spese correnti;3;Acquisto di beni e servizi;2;Acquisto di servizi;15;Contratti di servizio pubblico;4;Contratti di servizio per la raccolta rifiuti;05-03-2019;
379;1;331;"359,15";"359,15";CONSORZIO DI BACINO VERONA DUE DEL QUADRILATERO; ;SALDO Fatt.n. 005514/02  del 31/12/2018 FATTURA;28-02-2019;840;0;174;1;Spese correnti;3;Acquisto di beni e servizi;2;Acquisto di servizi;15;Contratti di servizio pubblico;4;Contratti di servizio per la raccolta rifiuti;05-03-2019;
380;1;332;"655,73";"655,73";CONSORZIO DI BACINO VERONA DUE DEL QUADRILATERO; ;SALDO Fatt.n. 005574/02  del 31/12/2018 FATTURA;28-02-2019;840;0;174;1;Spese correnti;3;Acquisto di beni e servizi;2;Acquisto di servizi;15;Contratti di servizio pubblico;4;Contratti di servizio per la raccolta rifiuti;05-03-2019;
381;1;333;"1.981,83";"1.981,83";CONSORZIO DI BACINO VERONA DUE DEL QUADRILATERO; ;SALDO Fatt.n. 005217/02  del 31/12/2018 FATTURA;28-02-2019;840;0;174;1;Spese correnti;3;Acquisto di beni e servizi;2;Acquisto di servizi;15;Contratti di servizio pubblico;4;Contratti di servizio per la raccolta rifiuti;05-03-2019;
382;1;334;"624,46";"624,46";CONSORZIO DI BACINO VERONA DUE DEL QUADRILATERO; ;SALDO Fatt.n. 005301/02  del 31/12/2018 FATTURA;28-02-2019;840;0;174;1;Spese correnti;3;Acquisto di beni e servizi;2;Acquisto di servizi;15;Contratti di servizio pubblico;4;Contratti di servizio per la raccolta rifiuti;05-03-2019;
383;1;335;"277,81";"277,81";CONSORZIO DI BACINO VERONA DUE DEL QUADRILATERO; ;SALDO Fatt.n. 005375/02  del 31/12/2018 FATTURA;28-02-2019;840;0;174;1;Spese correnti;3;Acquisto di beni e servizi;2;Acquisto di servizi;15;Contratti di servizio pubblico;4;Contratti di servizio per la raccolta rifiuti;05-03-2019;
384;1;336;"3.076,67";"3.076,67";CONSORZIO DI BACINO VERONA DUE DEL QUADRILATERO; ;SALDO Fatt.n. 005398/02  del 31/12/2018 FATTURA;28-02-2019;840;0;174;1;Spese correnti;3;Acquisto di beni e servizi;2;Acquisto di servizi;15;Contratti di servizio pubblico;4;Contratti di servizio per la raccolta rifiuti;05-03-2019;
385;1;337;"351,97";"351,97";CONSORZIO DI BACINO VERONA DUE DEL QUADRILATERO; ;SALDO Fatt.n. 005545/02  del 31/12/2018 FATTURA;28-02-2019;840;0;174;1;Spese correnti;3;Acquisto di beni e servizi;2;Acquisto di servizi;15;Contratti di servizio pubblico;4;Contratti di servizio per la raccolta rifiuti;05-03-2019;
386;1;338;"33,15";"33,15";CONSORZIO DI BACINO VERONA DUE DEL QUADRILATERO; ;SALDO Fatt.n. 005616/02  del 31/12/2018 FATTURA;28-02-2019;840;0;174;1;Spese correnti;3;Acquisto di beni e servizi;2;Acquisto di servizi;15;Contratti di servizio pubblico;4;Contratti di servizio per la raccolta rifiuti;05-03-2019;
387;1;339;"235,10";"235,10";CONSORZIO DI BACINO VERONA DUE DEL QUADRILATERO; ;SALDO Fatt.n. 000349/PA  del 18/02/2019;28-02-2019;840;0;396;1;Spese correnti;3;Acquisto di beni e servizi;2;Acquisto di servizi;15;Contratti di servizio pubblico;4;Contratti di servizio per la raccolta rifiuti;05-03-2019;
388;1;340;"235,10";"235,10";CONSORZIO DI BACINO VERONA DUE DEL QUADRILATERO; ;SALDO Fatt.n. 000348/PA  del 18/02/2019;28-02-2019;840;0;396;1;Spese correnti;3;Acquisto di beni e servizi;2;Acquisto di servizi;15;Contratti di servizio pubblico;4;Contratti di servizio per la raccolta rifiuti;05-03-2019;
389;1;341;"178,13";"178,13";CONSORZIO DI BACINO VERONA DUE DEL QUADRILATERO; ;SALDO Fatt.n. 000061/PA  del 07/02/2019 fattura;28-02-2019;840;0;174;1;Spese correnti;3;Acquisto di beni e servizi;2;Acquisto di servizi;15;Contratti di servizio pubblico;4;Contratti di servizio per la raccolta rifiuti;05-03-2019;
390;1;342;"235,00";"235,00";CONSORZIO DI BACINO VERONA DUE DEL QUADRILATERO; ;SALDO Fatt.n. 000086/PA  del 07/02/2019 FATTURA;28-02-2019;840;0;174;1;Spese correnti;3;Acquisto di beni e servizi;2;Acquisto di servizi;15;Contratti di servizio pubblico;4;Contratti di servizio per la raccolta rifiuti;05-03-2019;
391;1;343;"1.048,23";"1.048,23";CONSORZIO DI BACINO VERONA DUE DEL QUADRILATERO; ;SALDO Fatt.n. 000012/02  del 16/01/2019 FATTURA;28-02-2019;840;0;174;1;Spese correnti;3;Acquisto di beni e servizi;2;Acquisto di servizi;15;Contratti di servizio pubblico;4;Contratti di servizio per la raccolta rifiuti;05-03-2019;
395;1;347;"158,60";"158,60";VENETA ENGINEERING SRL;ZA31D00095;SALDO Fatt.n. 18347  del 20/12/2018 FATTURA;06-03-2019;352;0;786;1;Spese correnti;3;Acquisto di beni e servizi;2;Acquisto di servizi;9;Manutenzione ordinaria e riparazioni;8;Manutenzione ordinaria e riparazioni di beni immobili;07-03-2019;
396;1;348;"158,60";"158,60";VENETA ENGINEERING SRL;ZA31D00095;SALDO Fatt.n. 18348  del 20/12/2018 FATTURA;06-03-2019;352;0;786;1;Spese correnti;3;Acquisto di beni e servizi;2;Acquisto di servizi;9;Manutenzione ordinaria e riparazioni;8;Manutenzione ordinaria e riparazioni di beni immobili;07-03-2019;
400;1;352;"793,00";"793,00";ARCHIMEDE SERVIZI SRL;Z0B226D8EC;SALDO Fatt.n. 11  del 31/01/2019 FATTURA;06-03-2019;115;0;139;1;Spese correnti;3;Acquisto di beni e servizi;2;Acquisto di servizi;11;Prestazioni professionali e specialistiche;999;Altre prestazioni professionali e specialistiche n.a.c.;07-03-2019;
401;1;353;"770,00";"770,00";TARVISIUM TEATRO - COMPAGNIA TEATRALE;Z39255FE25;SALDO Fatt.n. 1  del 10/01/2019 FATTURA;06-03-2019;686;0;592;1;Spese correnti;3;Acquisto di beni e servizi;2;Acquisto di servizi;2;"Organizzazione eventi, pubblicita` e servizi per trasferta";5;Organizzazione e partecipazione a manifestazioni e convegni;07-03-2019;
402;1;354;"300,00";"300,00";BOMMARTINI MARIA; ;PATRIMONIO COMUNALE - LOCAZIONE DI UN IMMOBILE ED AREA ESTERNA DA ADIBIRE A DEPOSITO COMUNALE - APPROVAZIONE CONTRATTO DI LOCAZIONE PER IL PERIODO 30 LUGLIO 2017 -:- 29 LUGLIO 2020 - IMPEGNO DI SPESA -;07-03-2019;280;0;265;1;Spese correnti;3;Acquisto di beni e servizi;2;Acquisto di servizi;7;Utilizzo di beni di terzi;1;Locazione di beni immobili;07-03-2019;
403;1;355;"1.057,77";"1.057,77";MINISTERO INTERNO - DIREZIONE CENTR SERV DEMOGRAFICI; ;SERVIZIO ANAGRAFE: LIQUIDAZIONE DIRITTI PER IL RILASCIO DI CARTE D'IDENTITA' ELETTRONICHE MESE DI FEBBRAIO 2019;07-03-2019;325;0;74;1;Spese correnti;4;Trasferimenti correnti;1;Trasferimenti correnti a Amministrazioni Pubbliche;1;Trasferimenti correnti a Amministrazioni Centrali;1;Trasferimenti correnti a Ministeri;07-03-2019;
404;1;356;"22,85";"22,85";ABACO SPA;7408612407;SALDO Fatt.n. 2019120000280  del 09/01/2019 FATTURA;07-03-2019;382;0;166;1;Spese correnti;3;Acquisto di beni e servizi;2;Acquisto di servizi;3;Aggi di riscossione;999;Altri aggi di riscossione n.a.c.;12-03-2019;
405;1;357;"455,76";"455,76";ABACO SPA;7408612407;SALDO Fatt.n. 2019120000067  del 07/01/2019 FATTURA;08-03-2019;382;0;166;1;Spese correnti;3;Acquisto di beni e servizi;2;Acquisto di servizi;3;Aggi di riscossione;999;Altri aggi di riscossione n.a.c.;12-03-2019;
406;1;358;"181,74";"181,74";ABACO SPA;7408612407;SALDO Fatt.n. 2019120000281  del 09/01/2019 FATTURA;08-03-2019;382;0;166;1;Spese correnti;3;Acquisto di beni e servizi;2;Acquisto di servizi;3;Aggi di riscossione;999;Altri aggi di riscossione n.a.c.;12-03-2019;
407;1;359;"528,17";"528,17";ABACO SPA;7408612407;SALDO Fatt.n. 2019120000066  del 07/01/2019 FATTURA;08-03-2019;382;0;166;1;Spese correnti;3;Acquisto di beni e servizi;2;Acquisto di servizi;3;Aggi di riscossione;999;Altri aggi di riscossione n.a.c.;12-03-2019;
408;1;360;"261,31";"261,31";ABACO SPA;7408612407;SALDO Fatt.n. 2019140000125  del 04/01/2019 fattura;08-03-2019;843;0;663;1;Spese correnti;3;Acquisto di beni e servizi;2;Acquisto di servizi;3;Aggi di riscossione;999;Altri aggi di riscossione n.a.c.;12-03-2019;
410;1;362;"17,69";"17,69";ABACO SPA;7408612407;SALDO Fatt.n. 2019120000756  del 07/02/2019 FATTURA;08-03-2019;382;0;166;1;Spese correnti;3;Acquisto di beni e servizi;2;Acquisto di servizi;3;Aggi di riscossione;999;Altri aggi di riscossione n.a.c.;12-03-2019;
411;1;363;"78,18";"78,18";ABACO SPA;7408612407;SALDO Fatt.n. 2019120000776  del 07/02/2019 FATTURA;08-03-2019;382;0;166;1;Spese correnti;3;Acquisto di beni e servizi;2;Acquisto di servizi;3;Aggi di riscossione;999;Altri aggi di riscossione n.a.c.;12-03-2019;
413;1;365;"1.226,36";"1.226,36";ABACO SPA;7408612407;SALDO Fatt.n. 2019120000757  del 07/02/2019 fattura;08-03-2019;382;0;166;1;Spese correnti;3;Acquisto di beni e servizi;2;Acquisto di servizi;3;Aggi di riscossione;999;Altri aggi di riscossione n.a.c.;12-03-2019;
414;1;366;"672,09";"672,09";ABACO SPA;7408612407;SALDO Fatt.n. 2019120000777  del 07/02/2019 fattura;08-03-2019;382;0;166;1;Spese correnti;3;Acquisto di beni e servizi;2;Acquisto di servizi;3;Aggi di riscossione;999;Altri aggi di riscossione n.a.c.;12-03-2019;
415;1;367;"1.915,95";"1.915,95";MAGGIOLI SPA;Z1826165E9;SALDO Fatt.n. 0002102175  del 30/01/2019 FATT. IVA SPLIT P.;11-03-2019;332;0;711;1;Spese correnti;3;Acquisto di beni e servizi;2;Acquisto di servizi;99;Altri servizi;999;Altri servizi diversi n.a.c.;12-03-2019;
416;1;368;"448,58";"448,58";AFRO SRL;Z0D25BB1F8;SALDO Fatt.n. FATTPA 82_18  del 31/12/2018 FATTURA;11-03-2019;115;0;763;1;Spese correnti;3;Acquisto di beni e servizi;2;Acquisto di servizi;11;Prestazioni professionali e specialistiche;999;Altre prestazioni professionali e specialistiche n.a.c.;12-03-2019;
417;1;369;"736,98";"736,98";TELEFONITALIA SRL;Z1F26EB301;SALDO Fatt.n. 56/2019  del 07/02/2019 FATTURA;11-03-2019;113;1;76;1;Spese correnti;3;Acquisto di beni e servizi;2;Acquisto di servizi;9;Manutenzione ordinaria e riparazioni;4;Manutenzione ordinaria e riparazioni di impianti e macchinari;12-03-2019;
418;1;370;"930,60";"930,60";MAGGIOLI SPA;Z1826165E9;SALDO Fatt.n. 0002103798  del 31/01/2019 FATT. IVA SPLIT P.;11-03-2019;332;0;711;1;Spese correnti;3;Acquisto di beni e servizi;2;Acquisto di servizi;99;Altri servizi;999;Altri servizi diversi n.a.c.;12-03-2019;
419;1;371;"189,99";"189,99";SOCIETA' ATHESIS SPA;ZDA26F8248;SALDO Fatt.n. 2019/CO/542  del 04/02/2019 FATTURA;11-03-2019;150;0;89;1;Spese correnti;3;Acquisto di beni e servizi;2;Acquisto di servizi;5;Utenze e canoni;3;Accesso a banche dati e a pubblicazioni on line;12-03-2019;
420;1;372;"2.357,55";"2.357,55";CIDIELLE COOPERATIVA SOCIALE;6993707D94;SALDO Fatt.n. 19/02  del 31/01/2019 FATTURA;11-03-2019;117;0;150;1;Spese correnti;3;Acquisto di beni e servizi;2;Acquisto di servizi;13;Servizi ausiliari per il funzionamento dell'ente;2;Servizi di pulizia e lavanderia;12-03-2019;
421;1;373;"2.357,55";"2.357,55";CIDIELLE COOPERATIVA SOCIALE;6993707D94;SALDO Fatt.n. 11/02  del 31/01/2019 FATTURA;11-03-2019;117;0;150;1;Spese correnti;3;Acquisto di beni e servizi;2;Acquisto di servizi;13;Servizi ausiliari per il funzionamento dell'ente;2;Servizi di pulizia e lavanderia;12-03-2019;
422;1;374;"1.159,35";"1.159,35";CIDIELLE COOPERATIVA SOCIALE;6993707D94;ACCONTO Fatt.n. 10/02  del 31/01/2019 FATTURA;11-03-2019;117;0;150;1;Spese correnti;3;Acquisto di beni e servizi;2;Acquisto di servizi;13;Servizi ausiliari per il funzionamento dell'ente;2;Servizi di pulizia e lavanderia;12-03-2019;
423;1;375;"1.198,20";"1.198,20";CIDIELLE COOPERATIVA SOCIALE;6993707D94;SALDO Fatt.n. 10/02  del 31/01/2019 FATTURA;11-03-2019;117;0;150;1;Spese correnti;3;Acquisto di beni e servizi;2;Acquisto di servizi;13;Servizi ausiliari per il funzionamento dell'ente;2;Servizi di pulizia e lavanderia;12-03-2019;
424;1;376;"264,55";"264,55";CONVERGE SPA;Z5A1F50C97;ACCONTO Fatt.n. 19300811  del 31/01/2019 NOLEGGIO APPARECCHIATURE MULTIFUNZIONE PER UFFICIO TECNICO;11-03-2019;109;0;397;1;Spese correnti;3;Acquisto di beni e servizi;2;Acquisto di servizi;7;Utilizzo di beni di terzi;4;Noleggi di hardware;12-03-2019;
425;1;377;"83,77";"83,77";CONVERGE SPA;Z5A1F50C97;SALDO Fatt.n. 19300811  del 31/01/2019 NOLEGGIO APPARECCHIATURE MULTIFUNZIONE PER UFFICIO TECNICO;11-03-2019;109;0;397;1;Spese correnti;3;Acquisto di beni e servizi;2;Acquisto di servizi;7;Utilizzo di beni di terzi;4;Noleggi di hardware;12-03-2019;
426;1;378;"2.341,94";"2.341,94";CONSORZIO DI BACINO VERONA DUE DEL QUADRILATERO; ;ACCONTO Fatt.n. 005172/02  del 28/12/2018 FATTURA;11-03-2019;840;0;155;1;Spese correnti;3;Acquisto di beni e servizi;2;Acquisto di servizi;15;Contratti di servizio pubblico;4;Contratti di servizio per la raccolta rifiuti;12-03-2019;
427;1;379;"15.254,45";"15.254,45";CONSORZIO DI BACINO VERONA DUE DEL QUADRILATERO; ;SALDO Fatt.n. 005172/02  del 28/12/2018 FATTURA;11-03-2019;840;0;174;1;Spese correnti;3;Acquisto di beni e servizi;2;Acquisto di servizi;15;Contratti di servizio pubblico;4;Contratti di servizio per la raccolta rifiuti;12-03-2019;
428;1;380;"158,60";"158,60";VENETA ENGINEERING SRL;477433845A;SALDO Fatt.n. 12735  del 16/12/2014 FATTURA;11-03-2019;352;0;786;1;Spese correnti;3;Acquisto di beni e servizi;2;Acquisto di servizi;9;Manutenzione ordinaria e riparazioni;8;Manutenzione ordinaria e riparazioni di beni immobili;12-03-2019;
429;1;381;"355,49";"355,49";TELECOM ITALIA;Z7215900F5;SALDO Fatt.n. 7X05314076  del 14/12/2018 1BIM 2019;11-03-2019;113;0;124;1;Spese correnti;3;Acquisto di beni e servizi;2;Acquisto di servizi;5;Utenze e canoni;2;Telefonia mobile;12-03-2019;
431;1;383;"1.656,00";"1.656,00";SOCIETA' COOPERATIVA CULTURE;7559364882;SALDO Fatt.n. 61/FE  del 22/01/2019 FATTURA;11-03-2019;680;0;547;1;Spese correnti;3;Acquisto di beni e servizi;2;Acquisto di servizi;15;Contratti di servizio pubblico;999;Altre spese per contratti di servizio pubblico;12-03-2019;
432;1;384;"1.122,00";"1.122,00";VALLISARI ADRIANA;Z1923784C1;"SALDO Fatt.n. FATTPA 1_19  del 25/01/2019 DIREZIONE ""LA GAZZETTA TERMALE"" (anno XIX n. 3 2018). CIG: Z1923784C1. Impegno di spesa n. 303/2018. Op. non soggetta a Iva e a rit. d'acconto (art. 27 D.L. n. 98/2011, regime contribuenti minimi)";11-03-2019;147;0;303;1;Spese correnti;3;Acquisto di beni e servizi;2;Acquisto di servizi;2;"Organizzazione eventi, pubblicita` e servizi per trasferta";999;"Altre spese per relazioni pubbliche, convegni e mostre, pubblicita` n.a.c";12-03-2019;
434;1;386;"770,00";"770,00";CENTRO TEATRALE CORNIANI ARTISTI ASSOCIATI;Z6926F4087;SALDO Fatt.n. 9  del 12/02/2019 FATTURA;11-03-2019;686;0;81;1;Spese correnti;3;Acquisto di beni e servizi;2;Acquisto di servizi;2;"Organizzazione eventi, pubblicita` e servizi per trasferta";5;Organizzazione e partecipazione a manifestazioni e convegni;12-03-2019;
435;1;387;"660,00";"660,00";TERRACREA ASS. CULTURALE;Z8B2717699;SALDO Fatt.n. 9/001  del 28/02/2019 Rappr. Teatrale del 18.02.2019 a Caldiero - Impegno di spesa n.91/2019 - regime speciale legge 398 del 1991 e non soggetta allo split payment dell iva art.17ter dpr 633/72;11-03-2019;686;0;91;1;Spese correnti;3;Acquisto di beni e servizi;2;Acquisto di servizi;2;"Organizzazione eventi, pubblicita` e servizi per trasferta";5;Organizzazione e partecipazione a manifestazioni e convegni;12-03-2019;
436;1;388;"550,00";"550,00";ASSOCIAZIONE CULTURALE TEATRO DELLE ARANCE;Z3A23EF5E0;SALDO Fatt.n. 4/PA  del 07/01/2019 FATTURA;11-03-2019;686;0;411;1;Spese correnti;3;Acquisto di beni e servizi;2;Acquisto di servizi;2;"Organizzazione eventi, pubblicita` e servizi per trasferta";5;Organizzazione e partecipazione a manifestazioni e convegni;12-03-2019;
437;1;389;"184,05";"184,05";LEGGERE SRL;Z2A2362668;SALDO Fatt.n. 2065  del 31/01/2019 FATTURA;11-03-2019;681;0;263;1;Spese correnti;3;Acquisto di beni e servizi;1;Acquisto di beni;1;"Giornali, riviste e pubblicazioni";2;Pubblicazioni;12-03-2019;
438;1;390;"27,77";"27,77";LEGGERE SRL;Z2A2362668;SALDO Fatt.n. 2064  del 31/01/2019 FATTURA;11-03-2019;681;0;263;1;Spese correnti;3;Acquisto di beni e servizi;1;Acquisto di beni;1;"Giornali, riviste e pubblicazioni";2;Pubblicazioni;12-03-2019;
445;1;397;"134,20";"134,20";MYO SRL;Z6524FFCDD;SALDO Fatt.n. 2040/190000244  del 11/01/2019 FATTURA;12-03-2019;110;0;566;1;Spese correnti;3;Acquisto di beni e servizi;1;Acquisto di beni;2;Altri beni di consumo;1;"Carta, cancelleria e stampati";12-03-2019;
446;1;398;"116,16";"116,16";MYO SRL;Z6524FFCDD;ACCONTO Fatt.n. 2040/190003113  del 15/02/2019 FATTURA;12-03-2019;110;0;566;1;Spese correnti;3;Acquisto di beni e servizi;1;Acquisto di beni;2;Altri beni di consumo;1;"Carta, cancelleria e stampati";12-03-2019;
447;1;399;"260,20";"260,20";MYO SRL;Z6524FFCDD;SALDO Fatt.n. 2040/190002617  del 08/02/2019 FATTURA;12-03-2019;110;0;566;1;Spese correnti;3;Acquisto di beni e servizi;1;Acquisto di beni;2;Altri beni di consumo;1;"Carta, cancelleria e stampati";12-03-2019;
448;1;400;"21,96";"21,96";MYO SRL;Z6524FFCDD;SALDO Fatt.n. 2040/190003590  del 22/02/2019 FATTURA;12-03-2019;110;0;566;1;Spese correnti;3;Acquisto di beni e servizi;1;Acquisto di beni;2;Altri beni di consumo;1;"Carta, cancelleria e stampati";12-03-2019;
449;1;401;"31,46";"31,46";MYO SRL;Z6524FFCDD;SALDO Fatt.n. 2040/190003113  del 15/02/2019 FATTURA;12-03-2019;110;0;566;1;Spese correnti;3;Acquisto di beni e servizi;1;Acquisto di beni;2;Altri beni di consumo;1;"Carta, cancelleria e stampati";12-03-2019;
450;1;402;"152,50";"152,50";VENETA ENGINEERING SRL;ZA31D00095;SALDO Fatt.n. 07731  del 14/06/2018;12-03-2019;352;0;786;1;Spese correnti;3;Acquisto di beni e servizi;2;Acquisto di servizi;9;Manutenzione ordinaria e riparazioni;8;Manutenzione ordinaria e riparazioni di beni immobili;12-03-2019;
451;1;403;"844,24";"844,24";CIDIELLE COOPERATIVA SOCIALE;Z0321F68A8;SALDO Fatt.n. 140/02  del 30/06/2018 FATTURA;12-03-2019;117;0;112;1;Spese correnti;3;Acquisto di beni e servizi;2;Acquisto di servizi;13;Servizi ausiliari per il funzionamento dell'ente;2;Servizi di pulizia e lavanderia;12-03-2019;
452;1;404;"5.495,30";"5.495,30";PAIOLA BRUNO SAS DI PAIOLA GIORGIO & C;Z42240A47F;ACCONTO Fatt.n. 12/E  del 18/02/2019 Fattura Accompagnatoria;12-03-2019;970;0;480;1;Spese correnti;3;Acquisto di beni e servizi;2;Acquisto di servizi;9;Manutenzione ordinaria e riparazioni;4;Manutenzione ordinaria e riparazioni di impianti e macchinari;12-03-2019;
453;1;405;"2.122,08";"2.122,08";PAIOLA BRUNO SAS DI PAIOLA GIORGIO & C;Z42240A47F;SALDO Fatt.n. 12/E  del 18/02/2019 Fattura Accompagnatoria;12-03-2019;970;0;480;1;Spese correnti;3;Acquisto di beni e servizi;2;Acquisto di servizi;9;Manutenzione ordinaria e riparazioni;4;Manutenzione ordinaria e riparazioni di impianti e macchinari;12-03-2019;
454;1;406;"1.459,12";"1.459,12";RIGOBELLO ALESSANDRA;Z0C24STBF6;SALDO Fatt.n. 1/EL  del 14/01/2019 1988-Comune di Caldiero // Consulenza (Edilizia);12-03-2019;271;0;429;1;Spese correnti;3;Acquisto di beni e servizi;2;Acquisto di servizi;11;Prestazioni professionali e specialistiche;999;Altre prestazioni professionali e specialistiche n.a.c.;12-03-2019;
455;1;407;"1.399,34";"1.399,34";VERONA FINESTRE SRL;ZD122D515B;SALDO Fatt.n. 003/PA  del 11/07/2018 fattura;12-03-2019;1092;2;224;2;Spese in conto capitale;2;Investimenti fissi lordi e acquisto di terreni;1;Beni materiali;9;Beni immobili;19;Fabbricati ad uso strumentale;12-03-2019;
456;1;408;"6.334,64";"6.334,64";SPADA GIANMICHELE;Z672182144;SALDO Fatt.n. 38/E  del 31/12/2018 LAVORI DI MANUTENZIONE STRAORDINARIA STRADA MONTE ROCCA E VIA DELLA SPIA - ACCONTO;12-03-2019;1183;2;571;2;Spese in conto capitale;2;Investimenti fissi lordi e acquisto di terreni;1;Beni materiali;9;Beni immobili;12;Infrastrutture stradali;12-03-2019;
457;1;410;"19.375,00";"19.375,00";FONDAZIONE DON GAETANO PROVOLI - SCUOLA PARITARIA PER L; ;"CONVENZIONE SCUOLE MATERNE ANNI 2019 - 2021. PROVVEDIMENTI IN MERITO ALL'ART.10, CONTRIBUTI DEL COMUNE. IMPEGNO DI SPESA ANNO 2019 E LIQUIDAZIONE SOMME IN ACCONTO.";13-03-2019;480;0;118;1;Spese correnti;4;Trasferimenti correnti;4;Trasferimenti correnti a Istituzioni Sociali Private;1;Trasferimenti correnti a Istituzioni Sociali Private;1;Trasferimenti correnti a Istituzioni Sociali Private;14-03-2019;
458;1;411;"10.125,00";"10.125,00";SCUOLA MATERNA "MARIA IMMACOLATA" STRA'; ;"CONVENZIONE SCUOLE MATERNE ANNI 2019 - 2021. PROVVEDIMENTI IN MERITO ALL'ART.10, CONTRIBUTI DEL COMUNE. IMPEGNO DI SPESA ANNO 2019 E LIQUIDAZIONE SOMME IN ACCONTO.";13-03-2019;480;0;119;1;Spese correnti;4;Trasferimenti correnti;4;Trasferimenti correnti a Istituzioni Sociali Private;1;Trasferimenti correnti a Istituzioni Sociali Private;1;Trasferimenti correnti a Istituzioni Sociali Private;14-03-2019;
459;1;412;"11.125,00";"11.125,00";SCUOLA MATERNA MARIA BAMBINA; ;"CONVENZIONE SCUOLE MATERNE ANNI 2019 - 2021. PROVVEDIMENTI IN MERITO ALL'ART.10, CONTRIBUTI DEL COMUNE. IMPEGNO DI SPESA ANNO 2019 E LIQUIDAZIONE SOMME IN ACCONTO.";13-03-2019;480;0;120;1;Spese correnti;4;Trasferimenti correnti;4;Trasferimenti correnti a Istituzioni Sociali Private;1;Trasferimenti correnti a Istituzioni Sociali Private;1;Trasferimenti correnti a Istituzioni Sociali Private;14-03-2019;
460;1;413;"3.729,49";"3.729,49";VISONA' FEDERICO;Z19249C997;SALDO Fatt.n. 1/PA/2019  del 26/01/2019 fattura;13-03-2019;270;0;477;1;Spese correnti;3;Acquisto di beni e servizi;2;Acquisto di servizi;11;Prestazioni professionali e specialistiche;999;Altre prestazioni professionali e specialistiche n.a.c.;14-03-2019;
461;1;414;"844,24";"844,24";CIDIELLE COOPERATIVA SOCIALE;Z0321F68A8;SALDO Fatt.n. 285/02  del 31/12/2018 FATTURA;14-03-2019;117;0;112;1;Spese correnti;3;Acquisto di beni e servizi;2;Acquisto di servizi;13;Servizi ausiliari per il funzionamento dell'ente;2;Servizi di pulizia e lavanderia;14-03-2019;
462;1;415;"70,76";"70,76";MYO SRL;Z6524FFCDD;SALDO Fatt.n. 2040/190004000  del 27/02/2019 FATTURA;14-03-2019;110;0;566;1;Spese correnti;3;Acquisto di beni e servizi;1;Acquisto di beni;2;Altri beni di consumo;1;"Carta, cancelleria e stampati";14-03-2019;
463;1;416;"175,29";"175,29";CONVERGE SPA;Z5A1F50C97;SALDO Fatt.n. 19302119  del 28/02/2019 NOLEGGIO APPARECCHIATURE MULTIFUNZIONE PER UFFICIO TECNICO;14-03-2019;109;0;397;1;Spese correnti;3;Acquisto di beni e servizi;2;Acquisto di servizi;7;Utilizzo di beni di terzi;4;Noleggi di hardware;14-03-2019;
464;1;417;"19,51";"19,51";LEGGERE SRL;Z2A2362668;SALDO Fatt.n. 3576  del 28/02/2019 FATTURA;14-03-2019;681;0;263;1;Spese correnti;3;Acquisto di beni e servizi;1;Acquisto di beni;1;"Giornali, riviste e pubblicazioni";2;Pubblicazioni;14-03-2019;
465;1;418;"536,39";"536,39";LEGGERE SRL;Z2A2362668;SALDO Fatt.n. 3577  del 28/02/2019 FATTURA;14-03-2019;681;0;263;1;Spese correnti;3;Acquisto di beni e servizi;1;Acquisto di beni;1;"Giornali, riviste e pubblicazioni";2;Pubblicazioni;14-03-2019;
466;1;419;"3.312,00";"3.312,00";SOCIETA' COOPERATIVA CULTURE;7559364882;SALDO Fatt.n. 667/FE  del 06/03/2019 FATTURA;14-03-2019;680;0;547;1;Spese correnti;3;Acquisto di beni e servizi;2;Acquisto di servizi;15;Contratti di servizio pubblico;999;Altre spese per contratti di servizio pubblico;14-03-2019;
467;1;420;"27,00";"27,00";FOLETTO LUCIANO SRL;ZF7224BB95;SALDO Fatt.n. 2019-E-0000001  del 31/01/2019 FATTURE ELETTRONICHE;14-03-2019;350;0;116;1;Spese correnti;3;Acquisto di beni e servizi;1;Acquisto di beni;2;Altri beni di consumo;999;Altri beni e materiali di consumo n.a.c.;14-03-2019;
468;1;421;"1.443,66";"1.443,66";SORDATO SRL;Z102019168;SALDO Fatt.n. PA  000004  del 01/02/2019 FATTURA;14-03-2019;114;0;599;1;Spese correnti;3;Acquisto di beni e servizi;2;Acquisto di servizi;9;Manutenzione ordinaria e riparazioni;4;Manutenzione ordinaria e riparazioni di impianti e macchinari;14-03-2019;
469;1;422;"8.879,00";"8.879,00";ASSITECA SPA - FILIALE DI VERONA;Z702475FD0;ASSICURAZIONI - RINNOVO POLIZZE INCENDIO EDIFICI COMUNALI E FABBRICATI DI INTERESSE STORICO ED ARTISTICO - DETERMINAZIONI.;14-03-2019;120;0;458;1;Spese correnti;10;Altre spese correnti;4;Premi di assicurazione;1;Premi di assicurazione contro i danni;2;Premi di assicurazione su beni immobili;14-03-2019;
470;1;423;"1.325,60";"1.325,60";EDILTOSI SRL;Z9B248C873;SALDO Fatt.n. 000360  del 31/01/2019 FATTURA;14-03-2019;350;0;505;1;Spese correnti;3;Acquisto di beni e servizi;1;Acquisto di beni;2;Altri beni di consumo;999;Altri beni e materiali di consumo n.a.c.;14-03-2019;
471;1;424;"5.368,00";"5.368,00";CIDIELLE COOPERATIVA SOCIALE;7101569022;SALDO Fatt.n. 271/02  del 31/12/2018 FATTURA;14-03-2019;870;0;325;1;Spese correnti;3;Acquisto di beni e servizi;2;Acquisto di servizi;9;Manutenzione ordinaria e riparazioni;8;Manutenzione ordinaria e riparazioni di beni immobili;14-03-2019;
472;1;425;"634,40";"634,40";STUDIO TECNICO RINALDI GEOM. LUCA;Z81266549F;SALDO Fatt.n. 8  del 27/02/2019 FATTURA;14-03-2019;1193;0;264;2;Spese in conto capitale;2;Investimenti fissi lordi e acquisto di terreni;1;Beni materiali;9;Beni immobili;12;Infrastrutture stradali;14-03-2019;
473;1;426;"1.509,90";"1.509,90";SAVOIA ANDREA;Z9C24BEDAF;SALDO Fatt.n. 000001-2019-1  del 09/01/2019 FATTURA;14-03-2019;271;0;555;1;Spese correnti;3;Acquisto di beni e servizi;2;Acquisto di servizi;11;Prestazioni professionali e specialistiche;999;Altre prestazioni professionali e specialistiche n.a.c.;14-03-2019;
474;1;427;"920,75";"920,75";GABURRO EMIDDIO - STUDIO TECNICO;Z652550533;SALDO Fatt.n. 5  del 08/02/2019 FATTURA;14-03-2019;270;0;610;1;Spese correnti;3;Acquisto di beni e servizi;2;Acquisto di servizi;11;Prestazioni professionali e specialistiche;999;Altre prestazioni professionali e specialistiche n.a.c.;14-03-2019;
475;1;435;"30,00";"30,00";ANAC - AUTORITA' NAZIONALE ANTICORRUZIONE EX AVCP;7559364882;DETERMINAZIONE A CONTRARRE PER L'AFFIDAMENTO DELLA GESTIONE SERVIZI BIBLIOTECARI PERIODO 01.09.2018 - 31.08.2021 (EVENTUALMENTE RINNOVABILI PER ULTERIORI ANNI DUE) - AFFIDAMENTO MEDIANTE R.D.O. IN ME.PA AI SENSI DEGLI ARTT. 36 E 37 DEL D.LGS. N. 50/2;14-03-2019;295;0;414;1;Spese correnti;4;Trasferimenti correnti;1;Trasferimenti correnti a Amministrazioni Pubbliche;1;Trasferimenti correnti a Amministrazioni Centrali;10;Trasferimenti correnti a autorità amministrative indipendenti;15-03-2019;
476;1;485;"3.000,00";"3.000,00";POSTE ITALIANE SPA - ALT NORS EST - INCASSI MAAF;Z712767401;AFFRANCATRICE POSTALE. IMPEGNO DI SPESA.;14-03-2019;105;0;125;1;Spese correnti;3;Acquisto di beni e servizi;2;Acquisto di servizi;16;Servizi amministrativi;2;Spese postali;18-03-2019;
477;1;494;"4.389,56";"4.389,56";CANALI GIOVANNI SRL;ZAD2272DC4;SALDO Fatt.n. 115/01  del 05/03/2019;20-03-2019;1092;2;223;2;Spese in conto capitale;2;Investimenti fissi lordi e acquisto di terreni;1;Beni materiali;9;Beni immobili;19;Fabbricati ad uso strumentale;20-03-2019;
478;1;495;"244,00";"244,00";RATTICIDA VENETA SAS DI FERLENGA M. E G.;ZF31F0A617;SALDO Fatt.n. 39/PA  del 05/03/2019 FATTURA;20-03-2019;465;0;453;1;Spese correnti;3;Acquisto di beni e servizi;2;Acquisto di servizi;99;Altri servizi;999;Altri servizi diversi n.a.c.;20-03-2019;
479;1;496;"-1.261,45";"33,12";ACQUE VERONESI SCARL; ;SALDO Fatt.n. 0350120180800516700  del 29/06/2018 B/Bollettazione;20-03-2019;359;0;766;1;Spese correnti;3;Acquisto di beni e servizi;2;Acquisto di servizi;5;Utenze e canoni;5;Acqua;20-03-2019;
479;2;496;"-295,66";"33,12";ACQUE VERONESI SCARL; ;SALDO Fatt.n. 0350120180800846500  del 18/09/2018 B/Bollettazione;20-03-2019;359;0;766;1;Spese correnti;3;Acquisto di beni e servizi;2;Acquisto di servizi;5;Utenze e canoni;5;Acqua;20-03-2019;
479;3;496;"-228,78";"33,12";ACQUE VERONESI SCARL; ;SALDO Fatt.n. 0350120180800516200  del 29/06/2018 B/Bollettazione;20-03-2019;359;0;766;1;Spese correnti;3;Acquisto di beni e servizi;2;Acquisto di servizi;5;Utenze e canoni;5;Acqua;20-03-2019;
479;4;496;"-135,52";"33,12";ACQUE VERONESI SCARL; ;SALDO Fatt.n. 0350120180800847000  del 18/09/2018 B/Bollettazione;20-03-2019;359;0;766;1;Spese correnti;3;Acquisto di beni e servizi;2;Acquisto di servizi;5;Utenze e canoni;5;Acqua;20-03-2019;
479;5;496;"-24,59";"33,12";ACQUE VERONESI SCARL; ;SALDO Fatt.n. 0350120180800517100  del 29/06/2018 B/Bollettazione;20-03-2019;359;0;766;1;Spese correnti;3;Acquisto di beni e servizi;2;Acquisto di servizi;5;Utenze e canoni;5;Acqua;20-03-2019;
479;6;496;"-11,33";"33,12";ACQUE VERONESI SCARL; ;SALDO Fatt.n. 0350120180800516600  del 29/06/2018 B/Bollettazione;20-03-2019;359;0;766;1;Spese correnti;3;Acquisto di beni e servizi;2;Acquisto di servizi;5;Utenze e canoni;5;Acqua;20-03-2019;
479;7;496;"-8,75";"33,12";ACQUE VERONESI SCARL; ;SALDO Fatt.n. 0350120180800516400  del 29/06/2018 B/Bollettazione;20-03-2019;359;0;766;1;Spese correnti;3;Acquisto di beni e servizi;2;Acquisto di servizi;5;Utenze e canoni;5;Acqua;20-03-2019;
479;8;496;"-6,50";"33,12";ACQUE VERONESI SCARL; ;SALDO Fatt.n. 0350120180800517000  del 29/06/2018 B/Bollettazione;20-03-2019;359;0;766;1;Spese correnti;3;Acquisto di beni e servizi;2;Acquisto di servizi;5;Utenze e canoni;5;Acqua;20-03-2019;
479;9;496;"-6,48";"33,12";ACQUE VERONESI SCARL; ;SALDO Fatt.n. 0350120180800516000  del 29/06/2018 B/Bollettazione;20-03-2019;359;0;766;1;Spese correnti;3;Acquisto di beni e servizi;2;Acquisto di servizi;5;Utenze e canoni;5;Acqua;20-03-2019;
479;10;496;"-6,10";"33,12";ACQUE VERONESI SCARL; ;SALDO Fatt.n. 0350120180800516300  del 29/06/2018 B/Bollettazione;20-03-2019;359;0;766;1;Spese correnti;3;Acquisto di beni e servizi;2;Acquisto di servizi;5;Utenze e canoni;5;Acqua;20-03-2019;
479;11;496;"18,34";"33,12";ACQUE VERONESI SCARL; ;SALDO Fatt.n. 0350120180800847200  del 18/09/2018 B/Bollettazione;20-03-2019;359;0;766;1;Spese correnti;3;Acquisto di beni e servizi;2;Acquisto di servizi;5;Utenze e canoni;5;Acqua;20-03-2019;
479;12;496;"20,56";"33,12";ACQUE VERONESI SCARL; ;SALDO Fatt.n. 0350120180801305800  del 19/12/2018 B/Bollettazione;20-03-2019;359;0;766;1;Spese correnti;3;Acquisto di beni e servizi;2;Acquisto di servizi;5;Utenze e canoni;5;Acqua;20-03-2019;
479;13;496;"20,56";"33,12";ACQUE VERONESI SCARL; ;SALDO Fatt.n. 0350120180801305900  del 19/12/2018 B/Bollettazione;20-03-2019;359;0;766;1;Spese correnti;3;Acquisto di beni e servizi;2;Acquisto di servizi;5;Utenze e canoni;5;Acqua;20-03-2019;
479;14;496;"26,08";"33,12";ACQUE VERONESI SCARL; ;SALDO Fatt.n. 0350120180800845000  del 18/09/2018 B/Bollettazione;20-03-2019;359;0;766;1;Spese correnti;3;Acquisto di beni e servizi;2;Acquisto di servizi;5;Utenze e canoni;5;Acqua;20-03-2019;
479;15;496;"26,08";"33,12";ACQUE VERONESI SCARL; ;SALDO Fatt.n. 0350120180800845100  del 18/09/2018 B/Bollettazione;20-03-2019;359;0;766;1;Spese correnti;3;Acquisto di beni e servizi;2;Acquisto di servizi;5;Utenze e canoni;5;Acqua;20-03-2019;
479;16;496;"26,08";"33,12";ACQUE VERONESI SCARL; ;SALDO Fatt.n. 0350120180800846800  del 18/09/2018 B/Bollettazione;20-03-2019;359;0;766;1;Spese correnti;3;Acquisto di beni e servizi;2;Acquisto di servizi;5;Utenze e canoni;5;Acqua;20-03-2019;
479;17;496;"26,08";"33,12";ACQUE VERONESI SCARL; ;SALDO Fatt.n. 0350120180800846900  del 18/09/2018 B/Bollettazione;20-03-2019;359;0;766;1;Spese correnti;3;Acquisto di beni e servizi;2;Acquisto di servizi;5;Utenze e canoni;5;Acqua;20-03-2019;
479;18;496;"26,08";"33,12";ACQUE VERONESI SCARL; ;SALDO Fatt.n. 0350120180800847100  del 18/09/2018 B/Bollettazione;20-03-2019;359;0;766;1;Spese correnti;3;Acquisto di beni e servizi;2;Acquisto di servizi;5;Utenze e canoni;5;Acqua;20-03-2019;
479;19;496;"29,63";"33,12";ACQUE VERONESI SCARL; ;SALDO Fatt.n. 0350120180801306800  del 19/12/2018 B/Bollettazione;20-03-2019;359;0;766;1;Spese correnti;3;Acquisto di beni e servizi;2;Acquisto di servizi;5;Utenze e canoni;5;Acqua;20-03-2019;
479;20;496;"35,63";"33,12";ACQUE VERONESI SCARL; ;SALDO Fatt.n. 0350120180801306700  del 19/12/2018 B/Bollettazione;20-03-2019;359;0;766;1;Spese correnti;3;Acquisto di beni e servizi;2;Acquisto di servizi;5;Utenze e canoni;5;Acqua;20-03-2019;
479;21;496;"44,24";"33,12";ACQUE VERONESI SCARL; ;SALDO Fatt.n. 0350120180801306600  del 19/12/2018 B/Bollettazione;20-03-2019;359;0;766;1;Spese correnti;3;Acquisto di beni e servizi;2;Acquisto di servizi;5;Utenze e canoni;5;Acqua;20-03-2019;
479;22;496;"44,77";"33,12";ACQUE VERONESI SCARL; ;SALDO Fatt.n. 0350120180801234500  del 10/12/2018 B/Bollettazione;20-03-2019;359;0;766;1;Spese correnti;3;Acquisto di beni e servizi;2;Acquisto di servizi;5;Utenze e canoni;5;Acqua;20-03-2019;
479;23;496;"45,89";"33,12";ACQUE VERONESI SCARL; ;SALDO Fatt.n. 0350120180800520500  del 29/06/2018 B/Bollettazione;20-03-2019;359;0;766;1;Spese correnti;3;Acquisto di beni e servizi;2;Acquisto di servizi;5;Utenze e canoni;5;Acqua;20-03-2019;
479;24;496;"46,18";"33,12";ACQUE VERONESI SCARL; ;SALDO Fatt.n. 0350120180800847300  del 18/09/2018 B/Bollettazione;20-03-2019;359;0;766;1;Spese correnti;3;Acquisto di beni e servizi;2;Acquisto di servizi;5;Utenze e canoni;5;Acqua;20-03-2019;
479;25;496;"46,87";"33,12";ACQUE VERONESI SCARL; ;SALDO Fatt.n. 0350120180801307000  del 19/12/2018 B/Bollettazione;20-03-2019;359;0;766;1;Spese correnti;3;Acquisto di beni e servizi;2;Acquisto di servizi;5;Utenze e canoni;5;Acqua;20-03-2019;
479;26;496;"46,95";"33,12";ACQUE VERONESI SCARL; ;SALDO Fatt.n. 0350120180801306900  del 19/12/2018 B/Bollettazione;20-03-2019;359;0;766;1;Spese correnti;3;Acquisto di beni e servizi;2;Acquisto di servizi;5;Utenze e canoni;5;Acqua;20-03-2019;
479;27;496;"47,59";"33,12";ACQUE VERONESI SCARL; ;SALDO Fatt.n. 0350120180801234300  del 10/12/2018 B/Bollettazione;20-03-2019;359;0;766;1;Spese correnti;3;Acquisto di beni e servizi;2;Acquisto di servizi;5;Utenze e canoni;5;Acqua;20-03-2019;
479;28;496;"53,56";"33,12";ACQUE VERONESI SCARL; ;SALDO Fatt.n. 0350120180800846700  del 18/09/2018 B/Bollettazione;20-03-2019;359;0;766;1;Spese correnti;3;Acquisto di beni e servizi;2;Acquisto di servizi;5;Utenze e canoni;5;Acqua;20-03-2019;
479;29;496;"56,18";"33,12";ACQUE VERONESI SCARL; ;SALDO Fatt.n. 0350120180800846000  del 18/09/2018 B/Bollettazione;20-03-2019;359;0;766;1;Spese correnti;3;Acquisto di beni e servizi;2;Acquisto di servizi;5;Utenze e canoni;5;Acqua;20-03-2019;
479;30;496;"57,97";"33,12";ACQUE VERONESI SCARL; ;SALDO Fatt.n. 0350120180800516500  del 29/06/2018 B/Bollettazione;20-03-2019;359;0;766;1;Spese correnti;3;Acquisto di beni e servizi;2;Acquisto di servizi;5;Utenze e canoni;5;Acqua;20-03-2019;
479;31;496;"64,79";"33,12";ACQUE VERONESI SCARL; ;SALDO Fatt.n. 0350120180800846100  del 18/09/2018 B/Bollettazione;20-03-2019;359;0;766;1;Spese correnti;3;Acquisto di beni e servizi;2;Acquisto di servizi;5;Utenze e canoni;5;Acqua;20-03-2019;
479;32;496;"70,80";"33,12";ACQUE VERONESI SCARL; ;SALDO Fatt.n. 0350120180800846200  del 18/09/2018 B/Bollettazione;20-03-2019;359;0;766;1;Spese correnti;3;Acquisto di beni e servizi;2;Acquisto di servizi;5;Utenze e canoni;5;Acqua;20-03-2019;
479;33;496;"91,56";"33,12";ACQUE VERONESI SCARL; ;SALDO Fatt.n. 0350120180800516100  del 29/06/2018 B/Bollettazione;20-03-2019;359;0;766;1;Spese correnti;3;Acquisto di beni e servizi;2;Acquisto di servizi;5;Utenze e canoni;5;Acqua;20-03-2019;
479;34;496;"93,90";"33,12";ACQUE VERONESI SCARL; ;SALDO Fatt.n. 0350120180800516900  del 29/06/2018 B/Bollettazione;20-03-2019;359;0;766;1;Spese correnti;3;Acquisto di beni e servizi;2;Acquisto di servizi;5;Utenze e canoni;5;Acqua;20-03-2019;
479;35;496;"106,31";"33,12";ACQUE VERONESI SCARL; ;SALDO Fatt.n. 0350120180800846600  del 18/09/2018 B/Bollettazione;20-03-2019;359;0;766;1;Spese correnti;3;Acquisto di beni e servizi;2;Acquisto di servizi;5;Utenze e canoni;5;Acqua;20-03-2019;
479;36;496;"113,34";"33,12";ACQUE VERONESI SCARL; ;SALDO Fatt.n. 0350120180800846300  del 18/09/2018 B/Bollettazione;20-03-2019;359;0;766;1;Spese correnti;3;Acquisto di beni e servizi;2;Acquisto di servizi;5;Utenze e canoni;5;Acqua;20-03-2019;
479;37;496;"311,96";"33,12";ACQUE VERONESI SCARL; ;SALDO Fatt.n. 0350120180800520400  del 29/06/2018 B/Bollettazione;20-03-2019;359;0;766;1;Spese correnti;3;Acquisto di beni e servizi;2;Acquisto di servizi;5;Utenze e canoni;5;Acqua;20-03-2019;
479;38;496;"420,30";"33,12";ACQUE VERONESI SCARL; ;SALDO Fatt.n. 0350120180800846400  del 18/09/2018 B/Bollettazione;20-03-2019;359;0;766;1;Spese correnti;3;Acquisto di beni e servizi;2;Acquisto di servizi;5;Utenze e canoni;5;Acqua;20-03-2019;
480;1;497;"170,80";"170,80";RATTICIDA VENETA SAS DI FERLENGA M. E G.;ZF31F0A617;SALDO Fatt.n. 22/PA  del 30/01/2019 FATTURA;20-03-2019;465;0;453;1;Spese correnti;3;Acquisto di beni e servizi;2;Acquisto di servizi;99;Altri servizi;999;Altri servizi diversi n.a.c.;20-03-2019;
481;1;498;"244,00";"244,00";RATTICIDA VENETA SAS DI FERLENGA M. E G.;ZF31F0A617;SALDO Fatt.n. 85/PA  del 11/07/2018 fattura;20-03-2019;465;0;453;1;Spese correnti;3;Acquisto di beni e servizi;2;Acquisto di servizi;99;Altri servizi;999;Altri servizi diversi n.a.c.;20-03-2019;
482;1;499;"951,60";"951,60";SIB SAS DI PINAMONTE ORNELLA;Z1725C9E04;SALDO Fatt.n. 2/FPA-19  del 08/03/2019 FATTURA;20-03-2019;270;0;674;1;Spese correnti;3;Acquisto di beni e servizi;2;Acquisto di servizi;11;Prestazioni professionali e specialistiche;999;Altre prestazioni professionali e specialistiche n.a.c.;20-03-2019;
483;1;500;"1.268,80";"1.268,80";ROSSI ANNA;ZBF2544D99;SALDO Fatt.n. 8  del 27/02/2019 FATTURA;20-03-2019;1184;3;602;2;Spese in conto capitale;2;Investimenti fissi lordi e acquisto di terreni;1;Beni materiali;9;Beni immobili;12;Infrastrutture stradali;20-03-2019;
484;1;501;"700,00";"700,00";VOCI DI CARTA - ASS.NE DI PROMOZIONE SOCIALE; ;"PROGRAMMA CULTURA MARZO 2019. EROGAZIONE CONTRIBUTO ECONOMICO ALL'A.P.S. VOCI DI CARTA CON SEDE A COLOGNOLA AI COLLI (VR), PER LA SERATA DEL 09/03/2019 A CALDIERO.";20-03-2019;690;0;132;1;Spese correnti;4;Trasferimenti correnti;4;Trasferimenti correnti a Istituzioni Sociali Private;1;Trasferimenti correnti a Istituzioni Sociali Private;1;Trasferimenti correnti a Istituzioni Sociali Private;20-03-2019;
485;1;502;"5.000,00";"5.000,00";SCUOLA MATERNA "MARIA IMMACOLATA" STRA'; ;"EROGAZIONE CONTRIBUTO ECONOMICO STRAORDINARIO ALLE SCUOLE MATERNE DEL TERRITORIO, APPROVATO CON DELIBERA DI GIUNTA COMUNALE N.162/2018.";20-03-2019;480;0;775;1;Spese correnti;4;Trasferimenti correnti;4;Trasferimenti correnti a Istituzioni Sociali Private;1;Trasferimenti correnti a Istituzioni Sociali Private;1;Trasferimenti correnti a Istituzioni Sociali Private;20-03-2019;
486;1;0;"3.825,00";"3.825,00";AMMINISTRATORI COMUNALI; ;INDENNITA' DI CARICA MESE DI;20-03-2019;10;0;38;1;Spese correnti;3;Acquisto di beni e servizi;2;Acquisto di servizi;1;Organi e incarichi istituzionali dell'amministrazione;1;Organi istituzionali dell'amministrazione - Indennità;20-03-2019;
501;1;0;"3.050,00";"3.050,00";ZOPPI DENISE; ;"CONFERIMENTO INCARICO DI COLLABORAZIONE PRESSO L'AREA TECNICA ALL'ING. DENISE ZOPPI, DIPENDENTE DEL COMUNE DI S. MARTINO B.A. - ANNO 2017";20-03-2019;253;0;246;1;Spese correnti;3;Acquisto di beni e servizi;2;Acquisto di servizi;11;Prestazioni professionali e specialistiche;999;Altre prestazioni professionali e specialistiche n.a.c.;20-03-2019;
506;1;504;"3.914,00";"3.914,00";ASSITECA SPA - FILIALE DI VERONA;Z082786C19;ASSICURAZIONI - COPERTURE ASSICURATIVE RC AUTO IN SCADENZA - PERIODO 15.03.19-15.03.20 - DETERMINAZIONI;21-03-2019;120;0;135;1;Spese correnti;10;Altre spese correnti;4;Premi di assicurazione;1;Premi di assicurazione contro i danni;3;Premi di assicurazione per responsabilità civile verso terzi;22-03-2019;
507;1;505;"2.125,00";"2.125,00";ASSITECA SPA - FILIALE DI VERONA;Z1F2786C6A;ASSICURAZIONI - COPERTURE ASSICURATIVE FURTO IN SCADENZA - PERIODO 15.03.19-15.03.20 - DETERMINAZIONI;21-03-2019;120;0;136;1;Spese correnti;10;Altre spese correnti;4;Premi di assicurazione;1;Premi di assicurazione contro i danni;999;Altri premi di assicurazione contro i danni;22-03-2019;
508;1;506;"3.980,00";"3.980,00";ASSITECA SPA - FILIALE DI VERONA;ZDF2786D2E;ASSICURAZIONI - COPERTURE ASSICURATIVE RC PATRIMONIALE IN SCADENZA - PERIODO 15.03.19-15.03.20 - DETERMINAZIONI;21-03-2019;120;0;137;1;Spese correnti;10;Altre spese correnti;4;Premi di assicurazione;1;Premi di assicurazione contro i danni;3;Premi di assicurazione per responsabilità civile verso terzi;22-03-2019;
509;1;507;"126,34";"126,34";ZANINI CHRISTIAN; ;SALDO Fatt.n. 05/2019  del 27/02/2019 Op. in franchigia da IVA  effettuata ai sensi legge n. 145 del 30/12/2018 artt. 9/10/11 - Regime Forfetario.Compenso non soggetto a ritenuta alla fonte a titolo d'acconto assogettato a imp. sost.;21-03-2019;10;0;759;1;Spese correnti;3;Acquisto di beni e servizi;2;Acquisto di servizi;1;Organi e incarichi istituzionali dell'amministrazione;1;Organi istituzionali dell'amministrazione - Indennità;22-03-2019;
569;1;514;"7.496,90";"7.496,90";METALCO SRL;ZA426866AF;SALDO Fatt.n. 2019130000099  del 28/02/2019 FATTURA;27-03-2019;1190;1;722;2;Spese in conto capitale;2;Investimenti fissi lordi e acquisto di terreni;1;Beni materiali;3;Mobili e arredi;999;Mobili e arredi n.a.c.;28-03-2019;
570;1;515;"8.820,60";"8.820,60";CIMS SRL;Z6F244E91A;SALDO Fatt.n. 60  del 28/02/2019;27-03-2019;952;0;460;1;Spese correnti;3;Acquisto di beni e servizi;2;Acquisto di servizi;9;Manutenzione ordinaria e riparazioni;10;Manutenzione ordinaria e riparazioni di oggetti di valore;28-03-2019;
571;1;516;"170,80";"170,80";RATTICIDA VENETA SAS DI FERLENGA M. E G.;ZF31F0A617;SALDO Fatt.n. 36/PA  del 28/02/2019 FATTURA;27-03-2019;465;0;453;1;Spese correnti;3;Acquisto di beni e servizi;2;Acquisto di servizi;99;Altri servizi;999;Altri servizi diversi n.a.c.;28-03-2019;
572;1;517;"1.439,16";"1.439,16";MATTARANETTA SOCIETA' COOPERATIVA SOCIALE;Z9F225C229;SALDO Fatt.n. 9/FE  del 28/02/2019 FATTURA IMMEDIATA;27-03-2019;840;0;141;1;Spese correnti;3;Acquisto di beni e servizi;2;Acquisto di servizi;15;Contratti di servizio pubblico;4;Contratti di servizio per la raccolta rifiuti;28-03-2019;
573;1;518;"129,17";"129,17";LA RONDA - SERVIZI DI VIGILANZA;Z4022A6179;SALDO Fatt.n. V1-2701  del 28/02/2019;27-03-2019;357;0;205;1;Spese correnti;3;Acquisto di beni e servizi;2;Acquisto di servizi;13;Servizi ausiliari per il funzionamento dell'ente;1;"Servizi di sorveglianza, custodia e accoglienza";28-03-2019;
574;1;519;"4.184,60";"4.184,60";SELVOLINA SAS;Z8526EC998;SALDO Fatt.n. 51  del 25/02/2019 Vendita;27-03-2019;950;0;82;1;Spese correnti;3;Acquisto di beni e servizi;1;Acquisto di beni;2;Altri beni di consumo;999;Altri beni e materiali di consumo n.a.c.;28-03-2019;
575;1;520;"1.199,66";"1.199,66";COOPERATIVA SOCIALE VENETA ONLUS;Z431F034F6;SALDO Fatt.n. 46/002  del 27/02/2019;27-03-2019;782;0;454;1;Spese correnti;3;Acquisto di beni e servizi;2;Acquisto di servizi;9;Manutenzione ordinaria e riparazioni;8;Manutenzione ordinaria e riparazioni di beni immobili;28-03-2019;
576;1;521;"1.819,02";"1.819,02";ACHAB SRL;ZA3254C38D;SALDO Fatt.n. 069  del 28/02/2019 FATTURA;27-03-2019;840;0;617;1;Spese correnti;3;Acquisto di beni e servizi;2;Acquisto di servizi;15;Contratti di servizio pubblico;4;Contratti di servizio per la raccolta rifiuti;28-03-2019;
577;1;1739;"17.043,40";"17.043,40";CIDIELLE COOPERATIVA SOCIALE;7021711339;SALDO Fatt.n. 272/02  del 31/12/2018 FATTURA;27-03-2019;870;0;325;1;Spese correnti;3;Acquisto di beni e servizi;2;Acquisto di servizi;9;Manutenzione ordinaria e riparazioni;8;Manutenzione ordinaria e riparazioni di beni immobili;18-09-2019;
578;1;522;"12.541,60";"12.541,60";MORANDO FRANCESCO;Z82266F3BA;SALDO Fatt.n. 63/E  del 19/03/2019 FATTURA;27-03-2019;870;0;717;1;Spese correnti;3;Acquisto di beni e servizi;2;Acquisto di servizi;9;Manutenzione ordinaria e riparazioni;8;Manutenzione ordinaria e riparazioni di beni immobili;28-03-2019;
579;1;523;"6.820,16";"6.820,16";ACQUE VERONESI SCARL;ZF624A849E;SALDO Fatt.n. 0360120190900000300  del 15/01/2019 F/Fattura preventivo;27-03-2019;1184;6;531;2;Spese in conto capitale;2;Investimenti fissi lordi e acquisto di terreni;1;Beni materiali;9;Beni immobili;10;Infrastrutture idrauliche;28-03-2019;
580;1;0;"2.895,74";"2.895,74";GP GLOBAL POWER SPA;772199148F;BENEFICIARI DIVERSI-PAGAMENTI DIVERSI             COD DISP 01190221071F56 NOME  GLOBAL POWER SPA MANDATOAA5TZ1C7799 PFM 24431 110219  FEC 0 CIG CIG772199148F IBAN 10000030001 (P.      61 -R.     308);28-03-2019;111;0;699;1;Spese correnti;3;Acquisto di beni e servizi;2;Acquisto di servizi;5;Utenze e canoni;4;Energia elettrica;28-03-2019;
583;1;0;"192,75";"192,75";GP GLOBAL POWER SPA;772199148F;BENEFICIARI DIVERSI-PAGAMENTI DIVERSI             COD DISP 01190221071F4A NOME  GLOBAL POWER SPA MANDATOAA5TZ1C7799 PFM 24432 110219  FEC 0 CIG CIG772199148F IBAN 10000030001 (P.      70 -R.     317);28-03-2019;211;0;700;1;Spese correnti;3;Acquisto di beni e servizi;2;Acquisto di servizi;5;Utenze e canoni;4;Energia elettrica;28-03-2019;
584;1;0;"452,27";"452,27";GP GLOBAL POWER SPA;772199148F;BENEFICIARI DIVERSI-PAGAMENTI DIVERSI             COD DISP 01190221071F4P NOME  GLOBAL POWER SPA MANDATOAA5TZ1C7799 PFM 24433 110219  FEC 0 CIG CIG772199148F IBAN 10000030001 (P.      68 -R.     315);28-03-2019;354;0;701;1;Spese correnti;3;Acquisto di beni e servizi;2;Acquisto di servizi;5;Utenze e canoni;4;Energia elettrica;28-03-2019;
585;1;0;"3.597,58";"3.597,58";GP GLOBAL POWER SPA;772199148F;BENEFICIARI DIVERSI-PAGAMENTI DIVERSI             COD DISP 01190221071F72 NOME  GLOBAL POWER SPA MANDATOAA5TZ1C7799 PFM 24434 110219  FEC 0 CIG CIG772199148F IBAN 10000030001 (P.      69 -R.     316);28-03-2019;541;0;702;1;Spese correnti;3;Acquisto di beni e servizi;2;Acquisto di servizi;5;Utenze e canoni;4;Energia elettrica;28-03-2019;
586;1;0;"1.961,59";"1.961,59";GP GLOBAL POWER SPA;772199148F;BENEFICIARI DIVERSI-PAGAMENTI DIVERSI             COD DISP 01190221071F76 NOME  GLOBAL POWER SPA MANDATOAA5TZ1C7799 PFM 24435 110219  FEC 0 CIG CIG772199148F IBAN 10000030001 (P.      67 -R.     314);28-03-2019;581;0;703;1;Spese correnti;3;Acquisto di beni e servizi;2;Acquisto di servizi;5;Utenze e canoni;4;Energia elettrica;28-03-2019;
587;1;0;"1.068,49";"1.068,49";GP GLOBAL POWER SPA;772199148F;BENEFICIARI DIVERSI-PAGAMENTI DIVERSI             COD DISP 01190221071F6X NOME  GLOBAL POWER SPA MANDATOAA5TZ1C7799 PFM 24428 110219  FEC 0 CIG CIG772199148F IBAN 10000030001 (P.      65 -R.     312);28-03-2019;881;0;704;1;Spese correnti;3;Acquisto di beni e servizi;2;Acquisto di servizi;5;Utenze e canoni;4;Energia elettrica;28-03-2019;
588;1;0;"490,02";"490,02";GP GLOBAL POWER SPA;772199148F;BENEFICIARI DIVERSI-PAGAMENTI DIVERSI             COD DISP 01190221071F6Z NOME  GLOBAL POWER SPA MANDATOAA5TZ1C7799 PFM 24427 110219  FEC 0 CIG CIG772199148F IBAN 10000030001 (P.      63 -R.     310);28-03-2019;885;0;705;1;Spese correnti;3;Acquisto di beni e servizi;2;Acquisto di servizi;5;Utenze e canoni;4;Energia elettrica;28-03-2019;
589;1;0;"2.538,76";"2.538,76";GP GLOBAL POWER SPA;772199148F;BENEFICIARI DIVERSI-PAGAMENTI DIVERSI             COD DISP 01190221071F50 NOME  GLOBAL POWER SPA MANDATOAA5TZ1C7799 PFM 24429 110219  FEC 0 CIG CIG772199148F IBAN 10000030001 (P.      66 -R.     313);28-03-2019;886;0;706;1;Spese correnti;3;Acquisto di beni e servizi;2;Acquisto di servizi;5;Utenze e canoni;4;Energia elettrica;28-03-2019;
590;1;0;"176,11";"176,11";GP GLOBAL POWER SPA;772199148F;BENEFICIARI DIVERSI-PAGAMENTI DIVERSI             COD DISP 01190221071F6R NOME  GLOBAL POWER SPA MANDATOAA5TZ1C7799 PFM 24436 110219  FEC 0 CIG CIG772199148F IBAN 10000030001 (P.      62 -R.     309);28-03-2019;951;0;707;1;Spese correnti;3;Acquisto di beni e servizi;2;Acquisto di servizi;5;Utenze e canoni;4;Energia elettrica;28-03-2019;
591;1;0;"13.746,33";"13.746,33";GP GLOBAL POWER SPA;772199148F;BENEFICIARI DIVERSI-PAGAMENTI DIVERSI             COD DISP 01190221071F4F NOME  GLOBAL POWER SPA MANDATOAA5TZ1C7799 PFM 24430 110219  FEC 0 CIG CIG772199148F IBAN 10000030001 (P.      64 -R.     311);28-03-2019;960;0;708;1;Spese correnti;3;Acquisto di beni e servizi;2;Acquisto di servizi;5;Utenze e canoni;4;Energia elettrica;28-03-2019;
592;1;537;"107,80";"107,80";GP GLOBAL POWER SPA;772199148F;SALDO Fatt.n. V0/24427  del 11/02/2019 Fattura Energia Elettrica;28-03-2019;885;0;705;1;Spese correnti;3;Acquisto di beni e servizi;2;Acquisto di servizi;5;Utenze e canoni;4;Energia elettrica;02-04-2019;
593;1;538;"235,07";"235,07";GP GLOBAL POWER SPA;772199148F;SALDO Fatt.n. V0/24428  del 11/02/2019 Fattura Energia Elettrica;28-03-2019;881;0;704;1;Spese correnti;3;Acquisto di beni e servizi;2;Acquisto di servizi;5;Utenze e canoni;4;Energia elettrica;02-04-2019;
594;1;539;"558,53";"558,53";GP GLOBAL POWER SPA;772199148F;SALDO Fatt.n. V0/24429  del 11/02/2019 Fattura Energia Elettrica;28-03-2019;886;0;706;1;Spese correnti;3;Acquisto di beni e servizi;2;Acquisto di servizi;5;Utenze e canoni;4;Energia elettrica;02-04-2019;
595;1;540;"101,70";"101,70";GP GLOBAL POWER SPA;772199148F;SALDO Fatt.n. V0/24433  del 11/02/2019 Fattura Energia Elettrica;28-03-2019;354;0;701;1;Spese correnti;3;Acquisto di beni e servizi;2;Acquisto di servizi;5;Utenze e canoni;4;Energia elettrica;02-04-2019;
596;1;541;"3.024,19";"3.024,19";GP GLOBAL POWER SPA;772199148F;SALDO Fatt.n. V0/24430  del 11/02/2019 Fattura Energia Elettrica;28-03-2019;960;0;708;1;Spese correnti;3;Acquisto di beni e servizi;2;Acquisto di servizi;5;Utenze e canoni;4;Energia elettrica;02-04-2019;
597;1;542;"637,06";"637,06";GP GLOBAL POWER SPA;772199148F;SALDO Fatt.n. V0/24431  del 11/02/2019 Fattura Energia Elettrica;28-03-2019;111;0;699;1;Spese correnti;3;Acquisto di beni e servizi;2;Acquisto di servizi;5;Utenze e canoni;4;Energia elettrica;02-04-2019;
598;1;543;"42,41";"42,41";GP GLOBAL POWER SPA;772199148F;SALDO Fatt.n. V0/24432  del 11/02/2019 Fattura Energia Elettrica;28-03-2019;211;0;700;1;Spese correnti;3;Acquisto di beni e servizi;2;Acquisto di servizi;5;Utenze e canoni;4;Energia elettrica;02-04-2019;
599;1;544;"616,11";"616,11";GP GLOBAL POWER SPA;772199148F;SALDO Fatt.n. V0/24434  del 11/02/2019 Fattura Energia Elettrica;28-03-2019;541;0;702;1;Spese correnti;3;Acquisto di beni e servizi;2;Acquisto di servizi;5;Utenze e canoni;4;Energia elettrica;02-04-2019;
600;1;545;"196,16";"196,16";GP GLOBAL POWER SPA;772199148F;SALDO Fatt.n. V0/24435  del 11/02/2019 Fattura Energia Elettrica;28-03-2019;581;0;703;1;Spese correnti;3;Acquisto di beni e servizi;2;Acquisto di servizi;5;Utenze e canoni;4;Energia elettrica;02-04-2019;
601;1;546;"38,74";"38,74";GP GLOBAL POWER SPA;772199148F;SALDO Fatt.n. V0/24436  del 11/02/2019 Fattura Energia Elettrica;28-03-2019;951;0;707;1;Spese correnti;3;Acquisto di beni e servizi;2;Acquisto di servizi;5;Utenze e canoni;4;Energia elettrica;02-04-2019;
602;1;525;"18.040,00";"18.040,00";ZEVIANI GASTONE SRL;ZF42351F2E;SALDO Fatt.n. 6/2019  del 27/02/2019 FATTURA;28-03-2019;1180;0;612;2;Spese in conto capitale;2;Investimenti fissi lordi e acquisto di terreni;1;Beni materiali;9;Beni immobili;12;Infrastrutture stradali;29-03-2019;
603;1;526;"1.159,00";"1.159,00";TUTTO LEGNO - FALEGNAMERIA ARREDAMENTI DI SANTI MARCO;Z9E226DD3F;SALDO Fatt.n. 8  del 11/03/2019 Determina n. 27 del 21.02.2018;28-03-2019;350;0;147;1;Spese correnti;3;Acquisto di beni e servizi;1;Acquisto di beni;2;Altri beni di consumo;999;Altri beni e materiali di consumo n.a.c.;29-03-2019;
604;1;0;"260,49";"260,49";SOENERGY SRL;7451882F8C;BENEFICIARI DIVERSI-PAGAMENTI DIVERSI             COD DISP 011903040JGGYK NOME  SOENERGY S R L MANDATO99Z1610053624A299 PFM 3378035 Fattura 191026114 del 12 02 19 Scad 14 0 (P.      75 -R.     431);28-03-2019;112;0;285;1;Spese correnti;3;Acquisto di beni e servizi;2;Acquisto di servizi;5;Utenze e canoni;6;Gas;28-03-2019;
605;1;0;"532,62";"532,62";SOENERGY SRL;7451882F8C;BENEFICIARI DIVERSI-PAGAMENTI DIVERSI             COD DISP 011903040JGGYP NOME  SOENERGY S R L MANDATO99Z1610053624A299 PFM 3378037 Fattura 191026116 del 12 02 19 Scad 14 0 (P.      73 -R.     429);28-03-2019;212;0;286;1;Spese correnti;3;Acquisto di beni e servizi;2;Acquisto di servizi;5;Utenze e canoni;6;Gas;28-03-2019;
606;1;0;"978,53";"978,53";SOENERGY SRL;7451882F8C;BENEFICIARI DIVERSI-PAGAMENTI DIVERSI             COD DISP 011903040JGGYZ NOME  SOENERGY S R L MANDATO99Z1610053624A299 PFM 3378031 Fattura 191026110 del 12 02 19 Scad 14 0 (P.      72 -R.     428);28-03-2019;353;0;289;1;Spese correnti;3;Acquisto di beni e servizi;2;Acquisto di servizi;5;Utenze e canoni;6;Gas;28-03-2019;
607;1;0;"1.373,80";"1.373,80";SOENERGY SRL;7451882F8C;BENEFICIARI DIVERSI-PAGAMENTI DIVERSI             COD DISP 011903040JGGZ4 NOME  SOENERGY S R L MANDATO99Z1610053624A299 PFM 3378032 Fattura 191026111 del 12 02 19 Scad 14 0 (P.      77 -R.     433);28-03-2019;542;0;287;1;Spese correnti;3;Acquisto di beni e servizi;2;Acquisto di servizi;5;Utenze e canoni;6;Gas;28-03-2019;
608;1;0;"517,83";"517,83";SOENERGY SRL;7451882F8C;BENEFICIARI DIVERSI-PAGAMENTI DIVERSI             COD DISP 011903040JGGYU NOME  SOENERGY S R L MANDATO99Z1610053624A299 PFM 3378034 Fattura 191026113 del 12 02 19 Scad 14 0 (P.      76 -R.     432);28-03-2019;582;0;288;1;Spese correnti;3;Acquisto di beni e servizi;2;Acquisto di servizi;5;Utenze e canoni;6;Gas;28-03-2019;
609;1;0;"691,93";"691,93";SOENERGY SRL;7451882F8C;BENEFICIARI DIVERSI-PAGAMENTI DIVERSI             COD DISP 011903040JGGYF NOME  SOENERGY S R L MANDATO99Z1610053624A299 PFM 3378033 Fattura 191026112 del 12 02 19 Scad 14 0 (P.      74 -R.     430);28-03-2019;884;0;290;1;Spese correnti;3;Acquisto di beni e servizi;2;Acquisto di servizi;5;Utenze e canoni;6;Gas;28-03-2019;
610;1;0;"1.571,94";"1.571,94";SOENERGY SRL;7451882F8C;BENEFICIARI DIVERSI-PAGAMENTI DIVERSI             COD DISP 011903040JGGY9 NOME  SOENERGY S R L MANDATO99Z1610053624A299 PFM 3378036 Fattura 191026115 del 12 02 19 Scad 14 0 (P.      78 -R.     434);28-03-2019;888;0;291;1;Spese correnti;3;Acquisto di beni e servizi;2;Acquisto di servizi;5;Utenze e canoni;6;Gas;28-03-2019;
611;1;547;"57,31";"57,31";SOENERGY SRL;7451882F8C;SALDO Fatt.n. 191026114  del 12/02/2019 FORNITURA GAS;28-03-2019;112;0;285;1;Spese correnti;3;Acquisto di beni e servizi;2;Acquisto di servizi;5;Utenze e canoni;6;Gas;02-04-2019;
612;1;548;"117,18";"117,18";SOENERGY SRL;7451882F8C;SALDO Fatt.n. 191026116  del 12/02/2019 FORNITURA GAS;28-03-2019;212;0;286;1;Spese correnti;3;Acquisto di beni e servizi;2;Acquisto di servizi;5;Utenze e canoni;6;Gas;02-04-2019;
613;1;549;"215,28";"215,28";SOENERGY SRL;7451882F8C;SALDO Fatt.n. 191026110  del 12/02/2019 FORNITURA GAS;28-03-2019;353;0;289;1;Spese correnti;3;Acquisto di beni e servizi;2;Acquisto di servizi;5;Utenze e canoni;6;Gas;02-04-2019;
614;1;550;"302,24";"302,24";SOENERGY SRL;7451882F8C;SALDO Fatt.n. 191026111  del 12/02/2019 FORNITURA GAS;28-03-2019;542;0;287;1;Spese correnti;3;Acquisto di beni e servizi;2;Acquisto di servizi;5;Utenze e canoni;6;Gas;02-04-2019;
615;1;551;"152,22";"152,22";SOENERGY SRL;7451882F8C;SALDO Fatt.n. 191026112  del 12/02/2019 FORNITURA GAS;28-03-2019;884;0;290;1;Spese correnti;3;Acquisto di beni e servizi;2;Acquisto di servizi;5;Utenze e canoni;6;Gas;02-04-2019;
616;1;552;"113,92";"113,92";SOENERGY SRL;7451882F8C;SALDO Fatt.n. 191026113  del 12/02/2019 FORNITURA GAS;28-03-2019;582;0;288;1;Spese correnti;3;Acquisto di beni e servizi;2;Acquisto di servizi;5;Utenze e canoni;6;Gas;02-04-2019;
617;1;553;"345,83";"345,83";SOENERGY SRL;7451882F8C;SALDO Fatt.n. 191026115  del 12/02/2019 FORNITURA GAS;28-03-2019;888;0;291;1;Spese correnti;3;Acquisto di beni e servizi;2;Acquisto di servizi;5;Utenze e canoni;6;Gas;02-04-2019;
618;1;0;"58,02";"58,02";TELECOM ITALIA;Z402525AA0;EROGATORE SERVIZI TELEFONICI-PAGAMENTO TELEFONO            COD DISP 011903060LX4EP NOME  TELECOM ITALIA S P A MANDATO80020100004507650023135URC (P.      81 -R.     489);30-03-2019;113;0;158;1;Spese correnti;3;Acquisto di beni e servizi;2;Acquisto di servizi;5;Utenze e canoni;1;Telefonia fissa;30-03-2019;
619;1;0;"136,08";"136,08";TELECOM ITALIA;Z402525AA0;EROGATORE SERVIZI TELEFONICI-PAGAMENTO TELEFONO            COD DISP 011903060LX4E9 NOME  TELECOM ITALIA S P A MANDATO80020100004506150148155URC (P.      84 -R.     492);30-03-2019;113;0;159;1;Spese correnti;3;Acquisto di beni e servizi;2;Acquisto di servizi;5;Utenze e canoni;1;Telefonia fissa;30-03-2019;
620;1;0;"39,03";"39,03";TELECOM ITALIA;Z402525AA0;EROGATORE SERVIZI TELEFONICI-PAGAMENTO TELEFONO            COD DISP 011903060LX4GB NOME  TELECOM ITALIA S P A MANDATO80020100004507652424145URC (P.      82 -R.     490);30-03-2019;113;0;160;1;Spese correnti;3;Acquisto di beni e servizi;2;Acquisto di servizi;5;Utenze e canoni;1;Telefonia fissa;30-03-2019;
621;1;0;"63,55";"63,55";TELECOM ITALIA;Z402525AA0;EROGATORE SERVIZI TELEFONICI-PAGAMENTO TELEFONO            COD DISP 011903060LX4EE NOME  TELECOM ITALIA S P A MANDATO80020100004506151555195URC (P.      79 -R.     487);30-03-2019;113;0;161;1;Spese correnti;3;Acquisto di beni e servizi;2;Acquisto di servizi;5;Utenze e canoni;1;Telefonia fissa;30-03-2019;
622;1;0;"62,33";"62,33";TELECOM ITALIA;Z402525AA0;EROGATORE SERVIZI TELEFONICI-PAGAMENTO TELEFONO            COD DISP 011903060LX4EH NOME  TELECOM ITALIA S P A MANDATO80020100004506152502115URC (P.      83 -R.     491);30-03-2019;213;0;162;1;Spese correnti;3;Acquisto di beni e servizi;2;Acquisto di servizi;5;Utenze e canoni;1;Telefonia fissa;30-03-2019;
623;1;0;"58,58";"58,58";TELECOM ITALIA;Z402525AA0;EROGATORE SERVIZI TELEFONICI-PAGAMENTO TELEFONO            COD DISP 011903060LX4GD NOME  TELECOM ITALIA S P A MANDATO80020100004507652787155URC (P.      80 -R.     488);30-03-2019;543;0;163;1;Spese correnti;3;Acquisto di beni e servizi;2;Acquisto di servizi;5;Utenze e canoni;1;Telefonia fissa;30-03-2019;
624;1;0;"111,82";"111,82";TELECOM ITALIA;Z402525AA0;EROGATORE SERVIZI TELEFONICI-PAGAMENTO TELEFONO            COD DISP 011903060LX4G7 NOME  TELECOM ITALIA S P A MANDATO80020100004507650048145URC (P.      85 -R.     493);30-03-2019;583;0;164;1;Spese correnti;3;Acquisto di beni e servizi;2;Acquisto di servizi;5;Utenze e canoni;1;Telefonia fissa;30-03-2019;
625;1;554;"13,98";"13,98";TELECOM ITALIA;Z402525AA0;SALDO Fatt.n. 8E01117444  del 06/12/2018 1BIM 2019;30-03-2019;113;0;161;1;Spese correnti;3;Acquisto di beni e servizi;2;Acquisto di servizi;5;Utenze e canoni;1;Telefonia fissa;02-04-2019;
626;1;555;"12,89";"12,89";TELECOM ITALIA;Z402525AA0;SALDO Fatt.n. 8E01115134  del 06/12/2018 1BIM 2019;30-03-2019;543;0;163;1;Spese correnti;3;Acquisto di beni e servizi;2;Acquisto di servizi;5;Utenze e canoni;1;Telefonia fissa;02-04-2019;
627;1;556;"12,76";"12,76";TELECOM ITALIA;Z402525AA0;SALDO Fatt.n. 8E01115999  del 06/12/2018 1BIM 2019;30-03-2019;113;0;158;1;Spese correnti;3;Acquisto di beni e servizi;2;Acquisto di servizi;5;Utenze e canoni;1;Telefonia fissa;02-04-2019;
628;1;557;"8,59";"8,59";TELECOM ITALIA;Z402525AA0;SALDO Fatt.n. 8E01119808  del 06/12/2018 1BIM 2019;30-03-2019;113;0;160;1;Spese correnti;3;Acquisto di beni e servizi;2;Acquisto di servizi;5;Utenze e canoni;1;Telefonia fissa;02-04-2019;
629;1;558;"13,71";"13,71";TELECOM ITALIA;Z402525AA0;SALDO Fatt.n. 8E01117246  del 06/12/2018 1BIM 2019;30-03-2019;213;0;162;1;Spese correnti;3;Acquisto di beni e servizi;2;Acquisto di servizi;5;Utenze e canoni;1;Telefonia fissa;02-04-2019;
630;1;559;"29,94";"29,94";TELECOM ITALIA;Z402525AA0;SALDO Fatt.n. 8E01117296  del 06/12/2018 1BIM 2019;30-03-2019;113;0;159;1;Spese correnti;3;Acquisto di beni e servizi;2;Acquisto di servizi;5;Utenze e canoni;1;Telefonia fissa;02-04-2019;
631;1;560;"24,60";"24,60";TELECOM ITALIA;Z402525AA0;SALDO Fatt.n. 8E01117896  del 06/12/2018 1BIM 2019;30-03-2019;583;0;164;1;Spese correnti;3;Acquisto di beni e servizi;2;Acquisto di servizi;5;Utenze e canoni;1;Telefonia fissa;02-04-2019;
632;1;582;"26,01";"26,01";MINISTERO DELL'ECONOMIA E DELLE FINANZE; ;VERSAMENTO IVA A DEBITO RELATIVA AL MESE DI MARZO 2019;30-03-2019;1070;0;172;1;Spese correnti;10;Altre spese correnti;3;Versamenti IVA a debito;1;Versamenti IVA a debito per le gestioni commerciali;1;Versamenti IVA a debito per le gestioni commerciali;12-04-2019;
634;1;569;"1.000,00";"1.000,00";ASSITECA SPA - FILIALE DI VERONA;ZB7279FA46;ASSICURAZIONI - COPERTURE ASSICURATIVE AUTO RISCHI DIVERSI;03-04-2019;120;0;166;1;Spese correnti;10;Altre spese correnti;4;Premi di assicurazione;1;Premi di assicurazione contro i danni;3;Premi di assicurazione per responsabilità civile verso terzi;09-04-2019;
635;1;570;"3.100,00";"3.100,00";ASSITECA SPA - FILIALE DI VERONA;Z68279FA8D;ASSICURAZIONI - COPERTURE ASSICURATIVE POLIZZA TUTELA LEGALE;03-04-2019;120;0;167;1;Spese correnti;10;Altre spese correnti;4;Premi di assicurazione;1;Premi di assicurazione contro i danni;999;Altri premi di assicurazione contro i danni;09-04-2019;
636;1;571;"68,18";"68,18";AGENZIA DELLE ENTRATE - RISCOSSIONE; ;"RIMBORSO DELLE SPESE ESECUTIVE MATURATE NELL'ANNO 2018 AD AGENZIA DELLE ENTRATE-RISCOSSIONE - ART. 17, COMMA 3, D.LGS. 112/1999. CODICE ENTE 08162-RIMBORSO SPESE ART. 17-ANNO 2018.";03-04-2019;843;0;165;1;Spese correnti;3;Acquisto di beni e servizi;2;Acquisto di servizi;3;Aggi di riscossione;999;Altri aggi di riscossione n.a.c.;09-04-2019;
637;1;572;"606,66";"606,66";EDILTOSI SRL;Z9B248C873;SALDO Fatt.n. 000753  del 28/02/2019;03-04-2019;350;0;505;1;Spese correnti;3;Acquisto di beni e servizi;1;Acquisto di beni;2;Altri beni di consumo;999;Altri beni e materiali di consumo n.a.c.;09-04-2019;
638;1;573;"4.849,50";"4.849,50";SPAZIO VERDE INTERNATIONAL SRL;Z1E26863E7;SALDO Fatt.n. 34/FPA  del 08/03/2019 Ordine mepa 4708184 del 28/12/2019;03-04-2019;1190;1;720;2;Spese in conto capitale;2;Investimenti fissi lordi e acquisto di terreni;1;Beni materiali;3;Mobili e arredi;999;Mobili e arredi n.a.c.;09-04-2019;
639;1;574;"4.500,00";"4.500,00";ENI SPA;Z602604F41;ACCONTO Fatt.n. 19899383  del 22/01/2019 FATTURA;03-04-2019;290;0;715;1;Spese correnti;3;Acquisto di beni e servizi;1;Acquisto di beni;2;Altri beni di consumo;2;"Carburanti, combustibili e lubrificanti";09-04-2019;
640;1;575;"978,60";"978,60";ERREGI STUDIO TECNICO GEOMETRI ASSOCIATI DI RANCAN E GU;Z1320430DB;ACCONTO Fatt.n. 18/E  del 27/02/2019 FATTURA;03-04-2019;270;0;601;1;Spese correnti;3;Acquisto di beni e servizi;2;Acquisto di servizi;11;Prestazioni professionali e specialistiche;999;Altre prestazioni professionali e specialistiche n.a.c.;09-04-2019;
641;1;576;"3.172,00";"3.172,00";MANTOVANI DANIEL;Z0E24E4B94;SALDO Fatt.n. 12  del 13/03/2019 FATTURA;03-04-2019;1730;0;512;2;Spese in conto capitale;2;Investimenti fissi lordi e acquisto di terreni;3;Beni immateriali;5;Incarichi professionali per la realizzazione di investimenti;1;Incarichi professionali per la realizzazione di investimenti;09-04-2019;
642;1;577;"-482,14";"482,14";SBERVEGLIERI LUCA;ZF624A849E;SALDO Fatt.n. 19-2018  del 06/12/2018 NOTA DI ACCREDITO;03-04-2019;270;0;484;1;Spese correnti;3;Acquisto di beni e servizi;2;Acquisto di servizi;11;Prestazioni professionali e specialistiche;999;Altre prestazioni professionali e specialistiche n.a.c.;09-04-2019;
642;2;577;"-482,14";"482,14";SBERVEGLIERI LUCA;ZF624A849E;SALDO Fatt.n. 06-2019  del 26/03/2019;03-04-2019;270;0;484;1;Spese correnti;3;Acquisto di beni e servizi;2;Acquisto di servizi;11;Prestazioni professionali e specialistiche;999;Altre prestazioni professionali e specialistiche n.a.c.;09-04-2019;
642;3;577;"482,14";"482,14";SBERVEGLIERI LUCA;ZF624A849E;SALDO Fatt.n. 16-2018  del 05/10/2018 FATTURA;03-04-2019;270;0;484;1;Spese correnti;3;Acquisto di beni e servizi;2;Acquisto di servizi;11;Prestazioni professionali e specialistiche;999;Altre prestazioni professionali e specialistiche n.a.c.;09-04-2019;
642;4;577;"482,14";"482,14";SBERVEGLIERI LUCA;ZF624A849E;SALDO Fatt.n. 20-2018  del 06/12/2018 FATTURA;03-04-2019;270;0;484;1;Spese correnti;3;Acquisto di beni e servizi;2;Acquisto di servizi;11;Prestazioni professionali e specialistiche;999;Altre prestazioni professionali e specialistiche n.a.c.;09-04-2019;
642;5;577;"482,14";"482,14";SBERVEGLIERI LUCA;ZF624A849E;SALDO Fatt.n. 07-2019  del 26/03/2019;03-04-2019;270;0;484;1;Spese correnti;3;Acquisto di beni e servizi;2;Acquisto di servizi;11;Prestazioni professionali e specialistiche;999;Altre prestazioni professionali e specialistiche n.a.c.;09-04-2019;
643;1;578;"2.800,00";"2.800,00";PARROCCHIA S.PIETRO APOSTOLO (CALDIERO); ;"EROGAZIONE CONTRIBUTI ECONOMICI ALLA PARROCCHIA DI CALDIERO, ALLA PARROCCHIA DI CALDIERINO E ALLA PARROCCHIA DI STRA', APPROVATI CON DELIBERA DI GIUNTA N.148 DEL 27/11/2018.";04-04-2019;891;2;752;1;Spese correnti;4;Trasferimenti correnti;4;Trasferimenti correnti a Istituzioni Sociali Private;1;Trasferimenti correnti a Istituzioni Sociali Private;1;Trasferimenti correnti a Istituzioni Sociali Private;09-04-2019;
644;1;579;"1.256,11";"1.256,11";ADAMI GRAZIANO;Z9F228CAB1;SALDO Fatt.n. 11/PA  del 19/03/2019 FATTURA;04-04-2019;378;0;157;1;Spese correnti;3;Acquisto di beni e servizi;2;Acquisto di servizi;16;Servizi amministrativi;999;Altre spese per servizi amministrativi;09-04-2019;
645;1;580;"148,78";"148,78";DAL DEGAN DAVIDE; ;SALDO Fatt.n. FATTPA 7_19  del 25/03/2019 COMMISSIONE EDILIZIA COMUNALE 2018;08-04-2019;10;0;759;1;Spese correnti;3;Acquisto di beni e servizi;2;Acquisto di servizi;1;Organi e incarichi istituzionali dell'amministrazione;1;Organi istituzionali dell'amministrazione - Indennità;09-04-2019;
646;1;581;"-1.261,45";"13,39";ACQUE VERONESI SCARL; ;SALDO Fatt.n. 0350120180800516800  del 29/06/2018 B/Bollettazione;08-04-2019;359;0;766;1;Spese correnti;3;Acquisto di beni e servizi;2;Acquisto di servizi;5;Utenze e canoni;5;Acqua;09-04-2019;
646;2;581;"-26,54";"13,39";ACQUE VERONESI SCARL; ;SALDO Fatt.n. 0350120190800215700  del 12/03/2019 B/Bollettazione;08-04-2019;359;0;766;1;Spese correnti;3;Acquisto di beni e servizi;2;Acquisto di servizi;5;Utenze e canoni;5;Acqua;09-04-2019;
646;3;581;"15,03";"13,39";ACQUE VERONESI SCARL; ;SALDO Fatt.n. 0350120190800215900  del 12/03/2019 B/Bollettazione;08-04-2019;359;0;766;1;Spese correnti;3;Acquisto di beni e servizi;2;Acquisto di servizi;5;Utenze e canoni;5;Acqua;09-04-2019;
646;4;581;"17,38";"13,39";ACQUE VERONESI SCARL; ;SALDO Fatt.n. 0350120190800215800  del 12/03/2019 B/Bollettazione;08-04-2019;359;0;766;1;Spese correnti;3;Acquisto di beni e servizi;2;Acquisto di servizi;5;Utenze e canoni;5;Acqua;09-04-2019;
646;5;581;"17,38";"13,39";ACQUE VERONESI SCARL; ;SALDO Fatt.n. 0350120190800213600  del 12/03/2019 B/Bollettazione;08-04-2019;359;0;766;1;Spese correnti;3;Acquisto di beni e servizi;2;Acquisto di servizi;5;Utenze e canoni;5;Acqua;09-04-2019;
646;6;581;"17,38";"13,39";ACQUE VERONESI SCARL; ;SALDO Fatt.n. 0350120190800215600  del 12/03/2019 B/Bollettazione;08-04-2019;359;0;766;1;Spese correnti;3;Acquisto di beni e servizi;2;Acquisto di servizi;5;Utenze e canoni;5;Acqua;09-04-2019;
646;7;581;"17,38";"13,39";ACQUE VERONESI SCARL; ;SALDO Fatt.n. 0350120190800215500  del 12/03/2019 B/Bollettazione;08-04-2019;359;0;766;1;Spese correnti;3;Acquisto di beni e servizi;2;Acquisto di servizi;5;Utenze e canoni;5;Acqua;09-04-2019;
646;8;581;"20,45";"13,39";ACQUE VERONESI SCARL; ;SALDO Fatt.n. 0350120180801307500  del 19/12/2018 B/Bollettazione;08-04-2019;359;0;766;1;Spese correnti;3;Acquisto di beni e servizi;2;Acquisto di servizi;5;Utenze e canoni;5;Acqua;09-04-2019;
646;9;581;"20,54";"13,39";ACQUE VERONESI SCARL; ;SALDO Fatt.n. 0350120180801307100  del 19/12/2018 B/Bollettazione;08-04-2019;359;0;766;1;Spese correnti;3;Acquisto di beni e servizi;2;Acquisto di servizi;5;Utenze e canoni;5;Acqua;09-04-2019;
646;10;581;"20,54";"13,39";ACQUE VERONESI SCARL; ;SALDO Fatt.n. 0350120180801307200  del 19/12/2018 B/Bollettazione;08-04-2019;359;0;766;1;Spese correnti;3;Acquisto di beni e servizi;2;Acquisto di servizi;5;Utenze e canoni;5;Acqua;09-04-2019;
646;11;581;"20,54";"13,39";ACQUE VERONESI SCARL; ;SALDO Fatt.n. 0350120180801307400  del 19/12/2018 B/Bollettazione;08-04-2019;359;0;766;1;Spese correnti;3;Acquisto di beni e servizi;2;Acquisto di servizi;5;Utenze e canoni;5;Acqua;09-04-2019;
646;12;581;"36,21";"13,39";ACQUE VERONESI SCARL; ;SALDO Fatt.n. 0350120190800215200  del 12/03/2019 B/Bollettazione;08-04-2019;359;0;766;1;Spese correnti;3;Acquisto di beni e servizi;2;Acquisto di servizi;5;Utenze e canoni;5;Acqua;09-04-2019;
646;13;581;"40,44";"13,39";ACQUE VERONESI SCARL; ;SALDO Fatt.n. 0350120190800215300  del 12/03/2019 B/Bollettazione;08-04-2019;359;0;766;1;Spese correnti;3;Acquisto di beni e servizi;2;Acquisto di servizi;5;Utenze e canoni;5;Acqua;09-04-2019;
646;14;581;"49,27";"13,39";ACQUE VERONESI SCARL; ;SALDO Fatt.n. 0350120190800216000  del 12/03/2019 B/Bollettazione;08-04-2019;359;0;766;1;Spese correnti;3;Acquisto di beni e servizi;2;Acquisto di servizi;5;Utenze e canoni;5;Acqua;09-04-2019;
646;15;581;"53,17";"13,39";ACQUE VERONESI SCARL; ;SALDO Fatt.n. 0350120180801307300  del 19/12/2018 B/Bollettazione;08-04-2019;359;0;766;1;Spese correnti;3;Acquisto di beni e servizi;2;Acquisto di servizi;5;Utenze e canoni;5;Acqua;09-04-2019;
646;16;581;"53,17";"13,39";ACQUE VERONESI SCARL; ;SALDO Fatt.n. 0350120180801307600  del 19/12/2018 B/Bollettazione;08-04-2019;359;0;766;1;Spese correnti;3;Acquisto di beni e servizi;2;Acquisto di servizi;5;Utenze e canoni;5;Acqua;09-04-2019;
646;17;581;"84,05";"13,39";ACQUE VERONESI SCARL; ;SALDO Fatt.n. 0350120190800215400  del 12/03/2019 B/Bollettazione;08-04-2019;359;0;766;1;Spese correnti;3;Acquisto di beni e servizi;2;Acquisto di servizi;5;Utenze e canoni;5;Acqua;09-04-2019;
646;18;581;"88,37";"13,39";ACQUE VERONESI SCARL; ;SALDO Fatt.n. 0350120190800214800  del 12/03/2019 B/Bollettazione;08-04-2019;359;0;766;1;Spese correnti;3;Acquisto di beni e servizi;2;Acquisto di servizi;5;Utenze e canoni;5;Acqua;09-04-2019;
646;19;581;"96,77";"13,39";ACQUE VERONESI SCARL; ;SALDO Fatt.n. 0350120190800215100  del 12/03/2019 B/Bollettazione;08-04-2019;359;0;766;1;Spese correnti;3;Acquisto di beni e servizi;2;Acquisto di servizi;5;Utenze e canoni;5;Acqua;09-04-2019;
646;20;581;"98,16";"13,39";ACQUE VERONESI SCARL; ;SALDO Fatt.n. 0350120190800215000  del 12/03/2019 B/Bollettazione;08-04-2019;359;0;766;1;Spese correnti;3;Acquisto di beni e servizi;2;Acquisto di servizi;5;Utenze e canoni;5;Acqua;09-04-2019;
646;21;581;"117,37";"13,39";ACQUE VERONESI SCARL; ;SALDO Fatt.n. 0350120190800214900  del 12/03/2019 B/Bollettazione;08-04-2019;359;0;766;1;Spese correnti;3;Acquisto di beni e servizi;2;Acquisto di servizi;5;Utenze e canoni;5;Acqua;09-04-2019;
646;22;581;"417,78";"13,39";ACQUE VERONESI SCARL; ;SALDO Fatt.n. 0350120180801234400  del 10/12/2018 B/Bollettazione;08-04-2019;359;0;766;1;Spese correnti;3;Acquisto di beni e servizi;2;Acquisto di servizi;5;Utenze e canoni;5;Acqua;09-04-2019;
647;1;584;"252,00";"252,00";IPSOA WOLTERS KLUWER SRL;Z2C26E9336;SALDO Fatt.n. 0054005238  del 18/01/2019 FATTURA;10-04-2019;150;0;71;1;Spese correnti;3;Acquisto di beni e servizi;2;Acquisto di servizi;5;Utenze e canoni;3;Accesso a banche dati e a pubblicazioni on line;12-04-2019;
648;1;585;"1.604,16";"1.604,16";MATTARANETTA SOCIETA' COOPERATIVA SOCIALE;Z9F225C229;SALDO Fatt.n. 13/FE  del 30/03/2019 FATTURA IMMEDIATA;10-04-2019;840;0;141;1;Spese correnti;3;Acquisto di beni e servizi;2;Acquisto di servizi;15;Contratti di servizio pubblico;4;Contratti di servizio per la raccolta rifiuti;12-04-2019;
649;1;586;"1.561,62";"1.561,62";COOPERATIVA SOCIALE VENETA ONLUS;Z431F034F6;ACCONTO Fatt.n. 73/002  del 29/03/2019;10-04-2019;782;0;454;1;Spese correnti;3;Acquisto di beni e servizi;2;Acquisto di servizi;9;Manutenzione ordinaria e riparazioni;8;Manutenzione ordinaria e riparazioni di beni immobili;12-04-2019;
650;1;587;"83,34";"83,34";COOPERATIVA SOCIALE VENETA ONLUS;Z431F034F6;SALDO Fatt.n. 73/002  del 29/03/2019;10-04-2019;782;0;454;1;Spese correnti;3;Acquisto di beni e servizi;2;Acquisto di servizi;9;Manutenzione ordinaria e riparazioni;8;Manutenzione ordinaria e riparazioni di beni immobili;12-04-2019;
651;1;588;"129,17";"129,17";LA RONDA - SERVIZI DI VIGILANZA;Z4022A6179;SALDO Fatt.n. V1-3516  del 29/03/2019;10-04-2019;357;0;205;1;Spese correnti;3;Acquisto di beni e servizi;2;Acquisto di servizi;13;Servizi ausiliari per il funzionamento dell'ente;1;"Servizi di sorveglianza, custodia e accoglienza";12-04-2019;
652;1;589;"1.159,00";"1.159,00";PESENTI GIANNI PIETRO SCAVI MECCANICI;Z76228C681;SALDO Fatt.n. 35/E  del 25/03/2019;10-04-2019;950;0;199;1;Spese correnti;3;Acquisto di beni e servizi;1;Acquisto di beni;2;Altri beni di consumo;999;Altri beni e materiali di consumo n.a.c.;12-04-2019;
653;1;0;"2.482,81";"2.482,81";GP GLOBAL POWER SPA;772199148F;BENEFICIARI DIVERSI-PAGAMENTI DIVERSI             COD DISP 0119032002CCO2 NOME  GLOBAL POWER SPA MANDATOAA5TZ1C7799 PFM 38028 120319  FEC 0 CIG CIG772199148F IBAN 10000030001 (P.      89 -R.     528);10-04-2019;111;0;699;1;Spese correnti;3;Acquisto di beni e servizi;2;Acquisto di servizi;5;Utenze e canoni;4;Energia elettrica;10-04-2019;
656;1;0;"222,15";"222,15";GP GLOBAL POWER SPA;772199148F;BENEFICIARI DIVERSI-PAGAMENTI DIVERSI             COD DISP 0119032002CCOB NOME  GLOBAL POWER SPA MANDATOAA5TZ1C7799 PFM 38029 120319  FEC 0 CIG CIG772199148F IBAN 10000030001 (P.      96 -R.     535);10-04-2019;211;0;700;1;Spese correnti;3;Acquisto di beni e servizi;2;Acquisto di servizi;5;Utenze e canoni;4;Energia elettrica;10-04-2019;
657;1;0;"488,63";"488,63";GP GLOBAL POWER SPA;772199148F;BENEFICIARI DIVERSI-PAGAMENTI DIVERSI             COD DISP 0119032002CCO8 NOME  GLOBAL POWER SPA MANDATOAA5TZ1C7799 PFM 38030 120319  FEC 0 CIG CIG772199148F IBAN 10000030001 (P.      93 -R.     532);10-04-2019;354;0;701;1;Spese correnti;3;Acquisto di beni e servizi;2;Acquisto di servizi;5;Utenze e canoni;4;Energia elettrica;10-04-2019;
658;1;0;"1.849,48";"1.849,48";GP GLOBAL POWER SPA;772199148F;BENEFICIARI DIVERSI-PAGAMENTI DIVERSI             COD DISP 0119032002CCKT NOME  GLOBAL POWER SPA MANDATOAA5TZ1C7799 PFM 38032 120319  FEC 0 CIG CIG772199148F IBAN 10000030001 (P.      90 -R.     529);10-04-2019;581;0;703;1;Spese correnti;3;Acquisto di beni e servizi;2;Acquisto di servizi;5;Utenze e canoni;4;Energia elettrica;10-04-2019;
659;1;0;"1.107,47";"1.107,47";GP GLOBAL POWER SPA;772199148F;BENEFICIARI DIVERSI-PAGAMENTI DIVERSI             COD DISP 0119032002CCNZ NOME  GLOBAL POWER SPA MANDATOAA5TZ1C7799 PFM 38025 120319  FEC 0 CIG CIG772199148F IBAN 10000030001 (P.      95 -R.     534);10-04-2019;881;0;704;1;Spese correnti;3;Acquisto di beni e servizi;2;Acquisto di servizi;5;Utenze e canoni;4;Energia elettrica;10-04-2019;
660;1;0;"502,96";"502,96";GP GLOBAL POWER SPA;772199148F;BENEFICIARI DIVERSI-PAGAMENTI DIVERSI             COD DISP 0119032002CCOD NOME  GLOBAL POWER SPA MANDATOAA5TZ1C7799 PFM 38024 120319  FEC 0 CIG CIG772199148F IBAN 10000030001 (P.      97 -R.     536);10-04-2019;885;0;705;1;Spese correnti;3;Acquisto di beni e servizi;2;Acquisto di servizi;5;Utenze e canoni;4;Energia elettrica;10-04-2019;
661;1;0;"602,16";"602,16";GP GLOBAL POWER SPA;772199148F;BENEFICIARI DIVERSI-PAGAMENTI DIVERSI             COD DISP 0119032002CCNV NOME  GLOBAL POWER SPA MANDATOAA5TZ1C7799 PFM 38026 120319  FEC 0 CIG CIG772199148F IBAN 10000030001 (P.      92 -R.     531);10-04-2019;886;0;706;1;Spese correnti;3;Acquisto di beni e servizi;2;Acquisto di servizi;5;Utenze e canoni;4;Energia elettrica;10-04-2019;
662;1;0;"82,46";"82,46";GP GLOBAL POWER SPA;772199148F;BENEFICIARI DIVERSI-PAGAMENTI DIVERSI             COD DISP 0119032002CCKN NOME  GLOBAL POWER SPA MANDATOAA5TZ1C7799 PFM 38033 120319  FEC 0 CIG CIG772199148F IBAN 10000030001 (P.      94 -R.     533);10-04-2019;951;0;707;1;Spese correnti;3;Acquisto di beni e servizi;2;Acquisto di servizi;5;Utenze e canoni;4;Energia elettrica;10-04-2019;
663;1;0;"10.029,03";"10.029,03";GP GLOBAL POWER SPA;772199148F;BENEFICIARI DIVERSI-PAGAMENTI DIVERSI             COD DISP 0119032002CCNS NOME  GLOBAL POWER SPA MANDATOAA5TZ1C7799 PFM 38027 120319  FEC 0 CIG CIG772199148F IBAN 10000030001 (P.      88 -R.     527);10-04-2019;960;0;708;1;Spese correnti;3;Acquisto di beni e servizi;2;Acquisto di servizi;5;Utenze e canoni;4;Energia elettrica;10-04-2019;
664;1;590;"110,65";"110,65";GP GLOBAL POWER SPA;772199148F;SALDO Fatt.n. V0/38024  del 12/03/2019 Fattura Energia Elettrica;10-04-2019;885;0;705;1;Spese correnti;3;Acquisto di beni e servizi;2;Acquisto di servizi;5;Utenze e canoni;4;Energia elettrica;12-04-2019;
665;1;591;"48,87";"48,87";GP GLOBAL POWER SPA;772199148F;SALDO Fatt.n. V0/38029  del 12/03/2019 Fattura Energia Elettrica;10-04-2019;211;0;700;1;Spese correnti;3;Acquisto di beni e servizi;2;Acquisto di servizi;5;Utenze e canoni;4;Energia elettrica;12-04-2019;
666;1;592;"243,64";"243,64";GP GLOBAL POWER SPA;772199148F;SALDO Fatt.n. V0/38025  del 12/03/2019 Fattura Energia Elettrica;10-04-2019;881;0;704;1;Spese correnti;3;Acquisto di beni e servizi;2;Acquisto di servizi;5;Utenze e canoni;4;Energia elettrica;12-04-2019;
667;1;593;"18,14";"18,14";GP GLOBAL POWER SPA;772199148F;SALDO Fatt.n. V0/38033  del 12/03/2019 Fattura Energia Elettrica;10-04-2019;951;0;707;1;Spese correnti;3;Acquisto di beni e servizi;2;Acquisto di servizi;5;Utenze e canoni;4;Energia elettrica;12-04-2019;
668;1;594;"107,50";"107,50";GP GLOBAL POWER SPA;772199148F;SALDO Fatt.n. V0/38030  del 12/03/2019 Fattura Energia Elettrica;10-04-2019;354;0;701;1;Spese correnti;3;Acquisto di beni e servizi;2;Acquisto di servizi;5;Utenze e canoni;4;Energia elettrica;12-04-2019;
669;1;595;"132,48";"132,48";GP GLOBAL POWER SPA;772199148F;SALDO Fatt.n. V0/38026  del 12/03/2019 Fattura Energia Elettrica;10-04-2019;886;0;706;1;Spese correnti;3;Acquisto di beni e servizi;2;Acquisto di servizi;5;Utenze e canoni;4;Energia elettrica;12-04-2019;
670;1;596;"184,95";"184,95";GP GLOBAL POWER SPA;772199148F;SALDO Fatt.n. V0/38032  del 12/03/2019 Fattura Energia Elettrica;10-04-2019;581;0;703;1;Spese correnti;3;Acquisto di beni e servizi;2;Acquisto di servizi;5;Utenze e canoni;4;Energia elettrica;12-04-2019;
671;1;597;"546,22";"546,22";GP GLOBAL POWER SPA;772199148F;SALDO Fatt.n. V0/38028  del 12/03/2019 Fattura Energia Elettrica;10-04-2019;111;0;699;1;Spese correnti;3;Acquisto di beni e servizi;2;Acquisto di servizi;5;Utenze e canoni;4;Energia elettrica;12-04-2019;
672;1;598;"2.206,39";"2.206,39";GP GLOBAL POWER SPA;772199148F;SALDO Fatt.n. V0/38027  del 12/03/2019 Fattura Energia Elettrica;10-04-2019;960;0;708;1;Spese correnti;3;Acquisto di beni e servizi;2;Acquisto di servizi;5;Utenze e canoni;4;Energia elettrica;12-04-2019;
673;1;599;"1.292,83";"1.292,83";MINISTERO INTERNO - DIREZIONE CENTR SERV DEMOGRAFICI; ;SERVIZIO ANAGRAFE: LIQUADAZIONE DIRITTI PER IL RILASCIO DI CARTE D'IDENTITA' ELETTRONICHE MARZO 2019.;12-04-2019;325;0;74;1;Spese correnti;4;Trasferimenti correnti;1;Trasferimenti correnti a Amministrazioni Pubbliche;1;Trasferimenti correnti a Amministrazioni Centrali;1;Trasferimenti correnti a Ministeri;12-04-2019;
674;1;600;"361,37";"361,37";TELECOM ITALIA;Z7215900F5;SALDO Fatt.n. 7X00609895  del 14/02/2019 2BIM 2019;12-04-2019;113;0;124;1;Spese correnti;3;Acquisto di beni e servizi;2;Acquisto di servizi;5;Utenze e canoni;2;Telefonia mobile;12-04-2019;
675;1;601;"1.080,00";"1.080,00";CHORUS GRUPPO RITMICO CORALE;Z4D277072D;SALDO Fatt.n. 2  del 02/04/2019 FATTURA;12-04-2019;686;0;129;1;Spese correnti;3;Acquisto di beni e servizi;2;Acquisto di servizi;2;"Organizzazione eventi, pubblicita` e servizi per trasferta";5;Organizzazione e partecipazione a manifestazioni e convegni;12-04-2019;
676;1;602;"915,00";"915,00";ARCHIMEDE SERVIZI SRL;Z0B226D8EC;SALDO Fatt.n. 35  del 29/03/2019 FATTURA;12-04-2019;115;0;139;1;Spese correnti;3;Acquisto di beni e servizi;2;Acquisto di servizi;11;Prestazioni professionali e specialistiche;999;Altre prestazioni professionali e specialistiche n.a.c.;12-04-2019;
677;1;603;"9.206,87";"9.206,87";EURORISTORAZIONE SRL;7569040965;SALDO Fatt.n. 19CPA00923  del 28/02/2019 CONTRIBUTO AMBIENTALE CONAI ASSOLTO.;12-04-2019;662;0;428;1;Spese correnti;3;Acquisto di beni e servizi;2;Acquisto di servizi;15;Contratti di servizio pubblico;6;Contratti di servizio per le mense scolastiche;12-04-2019;
678;1;604;"341,60";"341,60";PMP GRAFICA DI PANDOLFO SALVATORE;Z4627681E8;SALDO Fatt.n. 01  del 18/03/2019 FATTURA;12-04-2019;147;0;126;1;Spese correnti;3;Acquisto di beni e servizi;2;Acquisto di servizi;2;"Organizzazione eventi, pubblicita` e servizi per trasferta";999;"Altre spese per relazioni pubbliche, convegni e mostre, pubblicita` n.a.c";12-04-2019;
679;1;605;"150,00";"150,00";COMITATO PER LA CELEBRAZIONE DELLE PASQUE VERONESI; ;"EROGAZIONE CONTRIBUTO ECONOMICO AL COMITATO PER LA CELEBRAZIONE DELLE PASQUE VERONESI, APPROVATO CON DELIBERA DI GIUNTA COMUNALE N.28/2019.";12-04-2019;690;0;187;1;Spese correnti;4;Trasferimenti correnti;4;Trasferimenti correnti a Istituzioni Sociali Private;1;Trasferimenti correnti a Istituzioni Sociali Private;1;Trasferimenti correnti a Istituzioni Sociali Private;12-04-2019;
680;1;667;"3.890,49";"3.890,49";ELETTRA SERVICE SNC;Z8F268AC85;SALDO Fatt.n. FPA 1/19  del 30/03/2019 CIG: Z8F268AC85;16-04-2019;352;0;73;1;Spese correnti;3;Acquisto di beni e servizi;2;Acquisto di servizi;9;Manutenzione ordinaria e riparazioni;8;Manutenzione ordinaria e riparazioni di beni immobili;18-04-2019;
681;1;668;"141,51";"141,51";FOLETTO LUCIANO SRL;ZF7224BB95;SALDO Fatt.n. 2019-E-0000007  del 30/03/2019 FATTURE ELETTRONICHE;16-04-2019;350;0;116;1;Spese correnti;3;Acquisto di beni e servizi;1;Acquisto di beni;2;Altri beni di consumo;999;Altri beni e materiali di consumo n.a.c.;18-04-2019;
682;1;669;"-1.442,65";"707,60";PIZZEGHELLA E STEVAN SRL STEVAN;Z1926792B2;SALDO Fatt.n. 13  del 29/07/2016 NOTA ACCREDITO;16-04-2019;352;0;72;1;Spese correnti;3;Acquisto di beni e servizi;2;Acquisto di servizi;9;Manutenzione ordinaria e riparazioni;4;Manutenzione ordinaria e riparazioni di impianti e macchinari;18-04-2019;
682;2;669;"649,65";"707,60";PIZZEGHELLA E STEVAN SRL STEVAN;Z1926792B2;SALDO Fatt.n. 111  del 01/07/2016 FATTURA;16-04-2019;352;0;72;1;Spese correnti;3;Acquisto di beni e servizi;2;Acquisto di servizi;9;Manutenzione ordinaria e riparazioni;4;Manutenzione ordinaria e riparazioni di impianti e macchinari;18-04-2019;
682;3;669;"707,60";"707,60";PIZZEGHELLA E STEVAN SRL STEVAN;Z1926792B2;SALDO Fatt.n. 50/PA  del 28/02/2019;16-04-2019;352;0;72;1;Spese correnti;3;Acquisto di beni e servizi;2;Acquisto di servizi;9;Manutenzione ordinaria e riparazioni;4;Manutenzione ordinaria e riparazioni di impianti e macchinari;18-04-2019;
682;4;669;"793,00";"707,60";PIZZEGHELLA E STEVAN SRL STEVAN;Z1926792B2;SALDO Fatt.n. 111  del 01/07/2016 FATTURA;16-04-2019;352;0;72;1;Spese correnti;3;Acquisto di beni e servizi;2;Acquisto di servizi;9;Manutenzione ordinaria e riparazioni;4;Manutenzione ordinaria e riparazioni di impianti e macchinari;18-04-2019;
683;1;670;"170,80";"170,80";RATTICIDA VENETA SAS DI FERLENGA M. E G.;ZF31F0A617;SALDO Fatt.n. 61/PA  del 29/03/2019;16-04-2019;465;0;453;1;Spese correnti;3;Acquisto di beni e servizi;2;Acquisto di servizi;99;Altri servizi;999;Altri servizi diversi n.a.c.;18-04-2019;
684;1;671;"597,50";"597,50";TACCONI MOTOFARM DI TACCONI ANGELO;Z012718D36;SALDO Fatt.n. F201900144  del 05/04/2019 RIPARAZIONE;16-04-2019;292;0;169;1;Spese correnti;3;Acquisto di beni e servizi;2;Acquisto di servizi;9;Manutenzione ordinaria e riparazioni;1;"Manutenzione ordinaria e riparazioni di mezzi di trasporto ad uso civile, di sicurezza e ordine pubblico";18-04-2019;
685;1;672;"441,38";"441,38";TACCONI MOTOFARM DI TACCONI ANGELO;Z012718D36;SALDO Fatt.n. F201900145  del 05/04/2019 RIPARAZIONE;16-04-2019;292;0;169;1;Spese correnti;3;Acquisto di beni e servizi;2;Acquisto di servizi;9;Manutenzione ordinaria e riparazioni;1;"Manutenzione ordinaria e riparazioni di mezzi di trasporto ad uso civile, di sicurezza e ordine pubblico";18-04-2019;
686;1;673;"799,42";"799,42";EDILTOSI SRL;Z9B248C873;SALDO Fatt.n. 001496  del 31/03/2019;16-04-2019;350;0;505;1;Spese correnti;3;Acquisto di beni e servizi;1;Acquisto di beni;2;Altri beni di consumo;999;Altri beni e materiali di consumo n.a.c.;18-04-2019;
687;1;674;"62,65";"62,65";SVAI SPA - NON USARE;ZCD224CEA8;SALDO Fatt.n. 300070  del 30/03/2019;16-04-2019;350;0;123;1;Spese correnti;3;Acquisto di beni e servizi;1;Acquisto di beni;2;Altri beni di consumo;999;Altri beni e materiali di consumo n.a.c.;18-04-2019;
688;1;675;"8,22";"8,22";SERVIZIO ELETTRICO NAZIONALE  - Servizio Maggior Tutela;ZCF27C6F57;SALDO Fatt.n. 230602805011143  del 05/03/2019;16-04-2019;960;0;173;1;Spese correnti;3;Acquisto di beni e servizi;2;Acquisto di servizi;5;Utenze e canoni;4;Energia elettrica;18-04-2019;
689;1;676;"16,03";"16,03";SERVIZIO ELETTRICO NAZIONALE  - Servizio Maggior Tutela;ZCF27C6F57;SALDO Fatt.n. 230602805011142  del 04/01/2019;16-04-2019;960;0;173;1;Spese correnti;3;Acquisto di beni e servizi;2;Acquisto di servizi;5;Utenze e canoni;4;Energia elettrica;18-04-2019;
690;1;0;"3.825,00";"3.825,00";AMMINISTRATORI COMUNALI; ;INDENNITA' DI CARICA MESE DI APRILE 2018;16-04-2019;10;0;38;1;Spese correnti;3;Acquisto di beni e servizi;2;Acquisto di servizi;1;Organi e incarichi istituzionali dell'amministrazione;1;Organi istituzionali dell'amministrazione - Indennità;16-04-2019;
718;1;0;"219,08";"219,08";DIPENDENTI COMUNALI; ;incentivo funzioni tecniche piazzetta via D. Alighieri agli eredi del dipendente Pasetto Alessio;16-04-2019;1181;0;552;2;Spese in conto capitale;2;Investimenti fissi lordi e acquisto di terreni;1;Beni materiali;9;Beni immobili;12;Infrastrutture stradali;16-04-2019;
719;1;0;"1.366,13";"1.366,13";DIPENDENTI COMUNALI;7123208133;INCENTIVO FUNZIONI TECNICHE SU LAVORI DI EFFICENTAMENTO SEDE MUNICIPALE.POR FESR 2014 - 2020. AZIONE 4.1.1 "PROMOZIONE DELL'ECO EFFICIENZA E RIDUZIONE DEI CONSUMI AGLI EREDI DEL DIPENDENTE PASETTO ALESSIO;16-04-2019;1092;0;687;2;Spese in conto capitale;2;Investimenti fissi lordi e acquisto di terreni;1;Beni materiali;9;Beni immobili;19;Fabbricati ad uso strumentale;16-04-2019;
720;1;0;"2.334,47";"2.334,47";DIPENDENTI COMUNALI; ;INCENTIVO FUNZIONI TECNICHE LAVORI DI EFFICIENTAMENTO ENERGETICO DELLA SCUOLA ELEMENTARE "CARLO EDERLE" E SCUOLA MEDIA "ANTONIO PISANO" DI CALDIERO AGLI EREDI DEL DIPENDENTE PASETTO ALESSIO;16-04-2019;1106;2;854;2;Spese in conto capitale;2;Investimenti fissi lordi e acquisto di terreni;1;Beni materiali;9;Beni immobili;3;Fabbricati ad uso scolastico;16-04-2019;
765;1;841;"52,14";"52,14";INPS EX INPDAP EX C.P.D.E.L.; ;oneri su incentivo funzioni tecniche piazzetta via D. Alighieri erogato agli eredi del dipendente Pasetto Alessio;17-04-2019;1181;0;552;2;Spese in conto capitale;2;Investimenti fissi lordi e acquisto di terreni;1;Beni materiali;9;Beni immobili;12;Infrastrutture stradali;15-05-2019;
766;1;842;"325,22";"325,22";INPS EX INPDAP EX C.P.D.E.L.;7123208133;ONERI SU INCENTIVO FUNZIONI TECNICHE SU LAVORI DI EFFICENTAMENTO SEDE MUNICIPALE.POR FESR 2014 - 2020. AZIONE 4.1.1 "PROMOZIONE DELL'ECO EFFICIENZA E RIDUZIONE DEI CONSUMI EROGATO AGLI EREDI DEL DIPENDENTE PASETTO ALESSIO;17-04-2019;1092;0;687;2;Spese in conto capitale;2;Investimenti fissi lordi e acquisto di terreni;1;Beni materiali;9;Beni immobili;19;Fabbricati ad uso strumentale;15-05-2019;
767;1;843;"555,60";"555,60";INPS EX INPDAP EX C.P.D.E.L.; ;ONERI SU INCENTIVO FUNZIONI TECNICHE LAVORI DI EFFICIENTAMENTO ENERGETICO DELLA SCUOLA ELEMENTARE "CARLO EDERLE" E SCUOLA MEDIA "ANTONIO PISANO" DI CALDIERO EROGATO AGLI EREDI DEL DIPENDENTE PASETTO ALESSIO;17-04-2019;1106;2;854;2;Spese in conto capitale;2;Investimenti fissi lordi e acquisto di terreni;1;Beni materiali;9;Beni immobili;3;Fabbricati ad uso scolastico;15-05-2019;
790;1;866;"116,06";"116,06";MINISTERO ECONOMIA FINANZE - VERSAMENTO IRAP;7123208133;VERSAMENTO IRAP SU INCENTIVO FUNZIONI TECNICHE SU LAVORI DI EFFICENTAMENTO SEDE MUNICIPALE.POR FESR 2014 - 2020. AZIONE 4.1.1 "PROMOZIONE DELL'ECO EFFICIENZA E RIDUZIONE DEI CONSUMI EROGATO AGLI EREDI DEL DIPENDENTE PASETO ALESSIO;17-04-2019;1092;0;687;2;Spese in conto capitale;2;Investimenti fissi lordi e acquisto di terreni;1;Beni materiali;9;Beni immobili;19;Fabbricati ad uso strumentale;15-05-2019;
791;1;867;"198,44";"198,44";MINISTERO ECONOMIA FINANZE - VERSAMENTO IRAP; ;VERSAMENTO IRAP SU INCENTIVO FUNZIONI TECNICHE LAVORI DI EFFICIENTAMENTO ENERGETICO DELLA SCUOLA ELEMENTARE "CARLO EDERLE" E SCUOLA MEDIA "ANTONIO PISANO" DI CALDIERO EROGATO AGLI EREDI DEL DIPENDENTE PASETTO ALESSIO;17-04-2019;1106;2;854;2;Spese in conto capitale;2;Investimenti fissi lordi e acquisto di terreni;1;Beni materiali;9;Beni immobili;3;Fabbricati ad uso scolastico;15-05-2019;
792;1;868;"18,62";"18,62";MINISTERO ECONOMIA FINANZE - VERSAMENTO IRAP; ;versamento irap su incentivo funzioni tecniche piazzetta via D. Alighieri erogato agli erredi del dipendente Pasetto Alessio;17-04-2019;1181;0;552;2;Spese in conto capitale;2;Investimenti fissi lordi e acquisto di terreni;1;Beni materiali;9;Beni immobili;12;Infrastrutture stradali;15-05-2019;
802;1;683;"188,73";"188,73";OLIVETTI  SPA;ZA31A76D7F;SALDO Fatt.n. A20020191000008062  del 31/03/2019 fattura;23-04-2019;109;0;174;1;Spese correnti;3;Acquisto di beni e servizi;2;Acquisto di servizi;7;Utilizzo di beni di terzi;4;Noleggi di hardware;26-04-2019;
803;1;684;"772,17";"772,17";MYO SRL;Z6524FFCDD;SALDO Fatt.n. 2040/190005789  del 15/03/2019 FATTURA;23-04-2019;110;0;566;1;Spese correnti;3;Acquisto di beni e servizi;1;Acquisto di beni;2;Altri beni di consumo;1;"Carta, cancelleria e stampati";26-04-2019;
804;1;685;"187,88";"187,88";MYO SRL;Z6524FFCDD;SALDO Fatt.n. 2040/190006224  del 22/03/2019 FATTURA;23-04-2019;110;0;566;1;Spese correnti;3;Acquisto di beni e servizi;1;Acquisto di beni;2;Altri beni di consumo;1;"Carta, cancelleria e stampati";26-04-2019;
805;1;686;"11,96";"11,96";MYO SRL;Z6524FFCDD;SALDO Fatt.n. 2040/190008006  del 05/04/2019 CLI 00602113;23-04-2019;110;0;566;1;Spese correnti;3;Acquisto di beni e servizi;1;Acquisto di beni;2;Altri beni di consumo;1;"Carta, cancelleria e stampati";26-04-2019;
806;1;687;"207,03";"207,03";PUBLIADIGE SRL;Z94277B926;SALDO Fatt.n. 2019/01/11323  del 18/03/2019 FATTURA;23-04-2019;145;0;127;1;Spese correnti;3;Acquisto di beni e servizi;1;Acquisto di beni;2;Altri beni di consumo;9;Beni per attività di rappresentanza;26-04-2019;
807;1;688;"119,19";"119,19";PUBLIADIGE SRL;Z90278D854;SALDO Fatt.n. 2019/01/11568  del 18/03/2019 DETERMINA NUM. 26;23-04-2019;145;0;131;1;Spese correnti;3;Acquisto di beni e servizi;1;Acquisto di beni;2;Altri beni di consumo;9;Beni per attività di rappresentanza;26-04-2019;
808;1;689;"201,54";"201,54";PUBLIADIGE SRL;ZF127BD6BA;SALDO Fatt.n. 2019/01/11782  del 31/03/2019 IMP. N. 168/2019;23-04-2019;145;0;168;1;Spese correnti;3;Acquisto di beni e servizi;1;Acquisto di beni;2;Altri beni di consumo;9;Beni per attività di rappresentanza;26-04-2019;
809;1;690;"40,52";"40,52";LEGGERE SRL;Z2A2362668;SALDO Fatt.n. 5667  del 29/03/2019 fattura;23-04-2019;681;0;263;1;Spese correnti;3;Acquisto di beni e servizi;1;Acquisto di beni;1;"Giornali, riviste e pubblicazioni";2;Pubblicazioni;26-04-2019;
810;1;691;"121,50";"121,50";LEGGERE SRL;Z2A2362668;SALDO Fatt.n. 5668  del 29/03/2019 fattura;23-04-2019;681;0;263;1;Spese correnti;3;Acquisto di beni e servizi;1;Acquisto di beni;1;"Giornali, riviste e pubblicazioni";2;Pubblicazioni;26-04-2019;
811;1;692;"281,41";"281,41";CIDIELLE COOPERATIVA SOCIALE;Z0321F68A8;SALDO Fatt.n. 62/02  del 28/02/2019 FATTURA;23-04-2019;117;0;112;1;Spese correnti;3;Acquisto di beni e servizi;2;Acquisto di servizi;13;Servizi ausiliari per il funzionamento dell'ente;2;Servizi di pulizia e lavanderia;26-04-2019;
812;1;693;"120,00";"120,00";INTERAZIONE SRL;Z5326F4B44;SALDO Fatt.n. 246/00  del 10/04/2019 fattura;23-04-2019;150;0;87;1;Spese correnti;3;Acquisto di beni e servizi;2;Acquisto di servizi;5;Utenze e canoni;3;Accesso a banche dati e a pubblicazioni on line;26-04-2019;
813;1;694;"214,39";"214,39";SHARP ELECTRONICS ITALIA SPA;ZF81FAD390;"SALDO Fatt.n. 7719004869  del 29/03/2019 COMUNE DI CALDIERO, ORDINE 3811295, CIG ZF81FAD390";23-04-2019;109;0;483;1;Spese correnti;3;Acquisto di beni e servizi;2;Acquisto di servizi;7;Utilizzo di beni di terzi;4;Noleggi di hardware;26-04-2019;
814;1;695;"732,00";"732,00";BRUNO SPA;ZDE22EBABB;SALDO Fatt.n. 45/19  del 28/02/2019 Fattura di Vendita;24-04-2019;950;0;204;1;Spese correnti;3;Acquisto di beni e servizi;1;Acquisto di beni;2;Altri beni di consumo;999;Altri beni e materiali di consumo n.a.c.;26-04-2019;
815;1;697;"833,33";"833,33";COMPERIO SRL;ZF324405EA;SALDO Fatt.n. 024/A  del 14/03/2019 FATTURA;29-04-2019;680;0;461;1;Spese correnti;3;Acquisto di beni e servizi;2;Acquisto di servizi;15;Contratti di servizio pubblico;999;Altre spese per contratti di servizio pubblico;30-04-2019;
816;1;698;"1.000,40";"1.000,40";SOLUZIONE SRL;Z9626F3039;SALDO Fatt.n. 0002100936  del 18/03/2019 FATT. IVA SPLIT P.;29-04-2019;150;0;85;1;Spese correnti;3;Acquisto di beni e servizi;2;Acquisto di servizi;5;Utenze e canoni;3;Accesso a banche dati e a pubblicazioni on line;30-04-2019;
817;1;699;"16.000,00";"16.000,00";PRO LOCO DI CALDIERO; ;ASSOCIAZIONE PROLOCO DI CALDIERO. ASSEGNAZIONE CONTRIBUTO ECONOMICO SUL PROGRAMMA DELLE ATTIVITA' DELLANNO 2019.;29-04-2019;895;0;207;1;Spese correnti;4;Trasferimenti correnti;4;Trasferimenti correnti a Istituzioni Sociali Private;1;Trasferimenti correnti a Istituzioni Sociali Private;1;Trasferimenti correnti a Istituzioni Sociali Private;30-04-2019;
818;1;0;"1.702,14";"1.702,14";GP GLOBAL POWER SPA;772199148F;BENEFICIARI DIVERSI-PAGAMENTI DIVERSI             COD DISP 0119042303LWX6 NOME  GLOBAL POWER SPA MANDATOAA5TZ1C7799 PFM 52439 100419  FEC 0 CIG CIG772199148F IBAN 10000030001 (P.     124 -R.     709);30-04-2019;111;0;699;1;Spese correnti;3;Acquisto di beni e servizi;2;Acquisto di servizi;5;Utenze e canoni;4;Energia elettrica;30-04-2019;
819;1;0;"187,47";"187,47";SOENERGY SRL;7451882F8C;BENEFICIARI DIVERSI-PAGAMENTI DIVERSI             COD DISP 011904010F8OGC NOME  SOENERGY S R L MANDATO99Z1610053624A299 PFM 3490539 Fattura 191065126 del 12 03 19 Scad 15 0 (P.     110 -R.     664);30-04-2019;112;0;285;1;Spese correnti;3;Acquisto di beni e servizi;2;Acquisto di servizi;5;Utenze e canoni;6;Gas;30-04-2019;
820;1;0;"58,05";"58,05";TELECOM ITALIA;Z402525AA0;EROGATORE SERVIZI TELEFONICI-PAGAMENTO TELEFONO            COD DISP 011904180Z2JDD NOME  TELECOM ITALIA S P A MANDATO80020100004507650023135URC (P.     129 -R.     714);30-04-2019;113;0;158;1;Spese correnti;3;Acquisto di beni e servizi;2;Acquisto di servizi;5;Utenze e canoni;1;Telefonia fissa;30-04-2019;
821;1;0;"116,83";"116,83";TELECOM ITALIA;Z402525AA0;EROGATORE SERVIZI TELEFONICI-PAGAMENTO TELEFONO            COD DISP 011904180Z2JB0 NOME  TELECOM ITALIA S P A MANDATO80020100004506150148155URC (P.     128 -R.     713);30-04-2019;113;0;159;1;Spese correnti;3;Acquisto di beni e servizi;2;Acquisto di servizi;5;Utenze e canoni;1;Telefonia fissa;30-04-2019;
822;1;0;"39,04";"39,04";TELECOM ITALIA;Z402525AA0;EROGATORE SERVIZI TELEFONICI-PAGAMENTO TELEFONO            COD DISP 011904180Z2JE4 NOME  TELECOM ITALIA S P A MANDATO80020100004507652424145URC (P.     130 -R.     715);30-04-2019;113;0;160;1;Spese correnti;3;Acquisto di beni e servizi;2;Acquisto di servizi;5;Utenze e canoni;1;Telefonia fissa;30-04-2019;
823;1;0;"61,37";"61,37";TELECOM ITALIA;Z402525AA0;EROGATORE SERVIZI TELEFONICI-PAGAMENTO TELEFONO            COD DISP 011904180Z2JCX NOME  TELECOM ITALIA S P A MANDATO80020100004506151555195URC (P.     131 -R.     716);30-04-2019;113;0;161;1;Spese correnti;3;Acquisto di beni e servizi;2;Acquisto di servizi;5;Utenze e canoni;1;Telefonia fissa;30-04-2019;
824;1;0;"177,19";"177,19";GP GLOBAL POWER SPA;772199148F;BENEFICIARI DIVERSI-PAGAMENTI DIVERSI             COD DISP 0119042303LWTW NOME  GLOBAL POWER SPA MANDATOAA5TZ1C7799 PFM 52440 100419  FEC 0 CIG CIG772199148F IBAN 10000030001 (P.     120 -R.     705);30-04-2019;211;0;700;1;Spese correnti;3;Acquisto di beni e servizi;2;Acquisto di servizi;5;Utenze e canoni;4;Energia elettrica;30-04-2019;
825;1;0;"359,93";"359,93";SOENERGY SRL;7451882F8C;BENEFICIARI DIVERSI-PAGAMENTI DIVERSI             COD DISP 011904010F8O5M NOME  SOENERGY S R L MANDATO99Z1610053624A299 PFM 3490541 Fattura 191065128 del 12 03 19 Scad 15 0 (P.     107 -R.     661);30-04-2019;212;0;286;1;Spese correnti;3;Acquisto di beni e servizi;2;Acquisto di servizi;5;Utenze e canoni;6;Gas;30-04-2019;
826;1;0;"61,64";"61,64";TELECOM ITALIA;Z402525AA0;EROGATORE SERVIZI TELEFONICI-PAGAMENTO TELEFONO            COD DISP 011904180Z2JD4 NOME  TELECOM ITALIA S P A MANDATO80020100004506152502115URC (P.     125 -R.     710);30-04-2019;213;0;162;1;Spese correnti;3;Acquisto di beni e servizi;2;Acquisto di servizi;5;Utenze e canoni;1;Telefonia fissa;30-04-2019;
827;1;0;"732,30";"732,30";SOENERGY SRL;7451882F8C;BENEFICIARI DIVERSI-PAGAMENTI DIVERSI             COD DISP 011904010F8OBX NOME  SOENERGY S R L MANDATO99Z1610053624A299 PFM 3490535 Fattura 191065122 del 12 03 19 Scad 15 0 (P.     108 -R.     662);30-04-2019;353;0;289;1;Spese correnti;3;Acquisto di beni e servizi;2;Acquisto di servizi;5;Utenze e canoni;6;Gas;30-04-2019;
828;1;0;"417,08";"417,08";GP GLOBAL POWER SPA;772199148F;BENEFICIARI DIVERSI-PAGAMENTI DIVERSI             COD DISP 0119042303LWU4 NOME  GLOBAL POWER SPA MANDATOAA5TZ1C7799 PFM 52441 100419  FEC 0 CIG CIG772199148F IBAN 10000030001 (P.     121 -R.     706);30-04-2019;354;0;701;1;Spese correnti;3;Acquisto di beni e servizi;2;Acquisto di servizi;5;Utenze e canoni;4;Energia elettrica;30-04-2019;
829;1;0;"1.249,11";"2.981,66";GP GLOBAL POWER SPA;772199148F;BENEFICIARI DIVERSI-PAGAMENTI DIVERSI             COD DISP 0119042303LWXC NOME  GLOBAL POWER SPA MANDATOAA5TZ1C7799 PFM 52442 100419  FEC 0 CIG CIG772199148F IBAN 10000030001 (P.     123 -R.     708);30-04-2019;541;0;702;1;Spese correnti;3;Acquisto di beni e servizi;2;Acquisto di servizi;5;Utenze e canoni;4;Energia elettrica;30-04-2019;
829;2;0;"1.732,55";"2.981,66";GP GLOBAL POWER SPA;772199148F;BENEFICIARI DIVERSI-PAGAMENTI DIVERSI             COD DISP 0119032002CCO5 NOME  GLOBAL POWER SPA MANDATOAA5TZ1C7799 PFM 38031 120319  FEC 0 CIG CIG772199148F IBAN 10000030001 (P.      91 -R.     530);30-04-2019;541;0;702;1;Spese correnti;3;Acquisto di beni e servizi;2;Acquisto di servizi;5;Utenze e canoni;4;Energia elettrica;30-04-2019;
830;1;0;"766,92";"766,92";SOENERGY SRL;7451882F8C;BENEFICIARI DIVERSI-PAGAMENTI DIVERSI             COD DISP 011904010F8OB9 NOME  SOENERGY S R L MANDATO99Z1610053624A299 PFM 3490536 Fattura 191065123 del 12 03 19 Scad 15 0 (P.     112 -R.     666);30-04-2019;542;0;287;1;Spese correnti;3;Acquisto di beni e servizi;2;Acquisto di servizi;5;Utenze e canoni;6;Gas;30-04-2019;
831;1;0;"54,87";"54,87";TELECOM ITALIA;Z402525AA0;EROGATORE SERVIZI TELEFONICI-PAGAMENTO TELEFONO            COD DISP 011904180Z2JEB NOME  TELECOM ITALIA S P A MANDATO80020100004507652787155URC (P.     126 -R.     711);30-04-2019;543;0;163;1;Spese correnti;3;Acquisto di beni e servizi;2;Acquisto di servizi;5;Utenze e canoni;1;Telefonia fissa;30-04-2019;
832;1;0;"1.171,38";"1.171,38";GP GLOBAL POWER SPA;772199148F;BENEFICIARI DIVERSI-PAGAMENTI DIVERSI             COD DISP 0119042303LW9O NOME  GLOBAL POWER SPA MANDATOAA5TZ1C7799 PFM 52443 100419  FEC 0 CIG CIG772199148F IBAN 10000030001 (P.     118 -R.     703);30-04-2019;581;0;703;1;Spese correnti;3;Acquisto di beni e servizi;2;Acquisto di servizi;5;Utenze e canoni;4;Energia elettrica;30-04-2019;
833;1;0;"346,86";"346,86";SOENERGY SRL;7451882F8C;BENEFICIARI DIVERSI-PAGAMENTI DIVERSI             COD DISP 011904010F8O6W NOME  SOENERGY S R L MANDATO99Z1610053624A299 PFM 3490538 Fattura 191065125 del 12 03 19 Scad 15 0 (P.     109 -R.     663);30-04-2019;582;0;288;1;Spese correnti;3;Acquisto di beni e servizi;2;Acquisto di servizi;5;Utenze e canoni;6;Gas;30-04-2019;
834;1;0;"106,96";"106,96";TELECOM ITALIA;Z402525AA0;EROGATORE SERVIZI TELEFONICI-PAGAMENTO TELEFONO            COD DISP 011904180Z2JDL NOME  TELECOM ITALIA S P A MANDATO80020100004507650048145URC (P.     127 -R.     712);30-04-2019;583;0;164;1;Spese correnti;3;Acquisto di beni e servizi;2;Acquisto di servizi;5;Utenze e canoni;1;Telefonia fissa;30-04-2019;
835;1;0;"880,37";"880,37";GP GLOBAL POWER SPA;772199148F;BENEFICIARI DIVERSI-PAGAMENTI DIVERSI             COD DISP 0119042303LW9J NOME  GLOBAL POWER SPA MANDATOAA5TZ1C7799 PFM 52436 100419  FEC 0 CIG CIG772199148F IBAN 10000030001 (P.     116 -R.     701);30-04-2019;881;0;704;1;Spese correnti;3;Acquisto di beni e servizi;2;Acquisto di servizi;5;Utenze e canoni;4;Energia elettrica;30-04-2019;
836;1;0;"589,71";"589,71";SOENERGY SRL;7451882F8C;BENEFICIARI DIVERSI-PAGAMENTI DIVERSI             COD DISP 011904010F8O4I NOME  SOENERGY S R L MANDATO99Z1610053624A299 PFM 3490537 Fattura 191065124 del 12 03 19 Scad 15 0 (P.     106 -R.     660);30-04-2019;884;0;290;1;Spese correnti;3;Acquisto di beni e servizi;2;Acquisto di servizi;5;Utenze e canoni;6;Gas;30-04-2019;
837;1;0;"361,86";"361,86";GP GLOBAL POWER SPA;772199148F;BENEFICIARI DIVERSI-PAGAMENTI DIVERSI             COD DISP 0119042303LWU0 NOME  GLOBAL POWER SPA MANDATOAA5TZ1C7799 PFM 52435 100419  FEC 0 CIG CIG772199148F IBAN 10000030001 (P.     122 -R.     707);30-04-2019;885;0;705;1;Spese correnti;3;Acquisto di beni e servizi;2;Acquisto di servizi;5;Utenze e canoni;4;Energia elettrica;30-04-2019;
838;1;0;"415,52";"415,52";GP GLOBAL POWER SPA;772199148F;BENEFICIARI DIVERSI-PAGAMENTI DIVERSI             COD DISP 0119042303LW99 NOME  GLOBAL POWER SPA MANDATOAA5TZ1C7799 PFM 52437 100419  FEC 0 CIG CIG772199148F IBAN 10000030001 (P.     115 -R.     700);30-04-2019;886;0;706;1;Spese correnti;3;Acquisto di beni e servizi;2;Acquisto di servizi;5;Utenze e canoni;4;Energia elettrica;30-04-2019;
839;1;0;"1.118,91";"1.118,91";SOENERGY SRL;7451882F8C;BENEFICIARI DIVERSI-PAGAMENTI DIVERSI             COD DISP 011904010F8O9W NOME  SOENERGY S R L MANDATO99Z1610053624A299 PFM 3490540 Fattura 191065127 del 12 03 19 Scad 15 0 (P.     111 -R.     665);30-04-2019;888;0;291;1;Spese correnti;3;Acquisto di beni e servizi;2;Acquisto di servizi;5;Utenze e canoni;6;Gas;30-04-2019;
840;1;0;"120,02";"120,02";GP GLOBAL POWER SPA;772199148F;BENEFICIARI DIVERSI-PAGAMENTI DIVERSI             COD DISP 0119042303LW94 NOME  GLOBAL POWER SPA MANDATOAA5TZ1C7799 PFM 52444 100419  FEC 0 CIG CIG772199148F IBAN 10000030001 (P.     119 -R.     704);30-04-2019;951;0;707;1;Spese correnti;3;Acquisto di beni e servizi;2;Acquisto di servizi;5;Utenze e canoni;4;Energia elettrica;30-04-2019;
841;1;0;"9.499,88";"9.499,88";GP GLOBAL POWER SPA;772199148F;BENEFICIARI DIVERSI-PAGAMENTI DIVERSI             COD DISP 0119042303LW9E NOME  GLOBAL POWER SPA MANDATOAA5TZ1C7799 PFM 52438 100419  FEC 0 CIG CIG772199148F IBAN 10000030001 (P.     117 -R.     702);30-04-2019;960;0;708;1;Spese correnti;3;Acquisto di beni e servizi;2;Acquisto di servizi;5;Utenze e canoni;4;Energia elettrica;30-04-2019;
842;1;724;"129,74";"129,74";SOENERGY SRL;7451882F8C;SALDO Fatt.n. 191065124  del 12/03/2019 FORNITURA GAS;30-04-2019;884;0;290;1;Spese correnti;3;Acquisto di beni e servizi;2;Acquisto di servizi;5;Utenze e canoni;6;Gas;06-05-2019;
843;1;725;"79,18";"79,18";SOENERGY SRL;7451882F8C;SALDO Fatt.n. 191065128  del 12/03/2019 FORNITURA GAS;30-04-2019;212;0;286;1;Spese correnti;3;Acquisto di beni e servizi;2;Acquisto di servizi;5;Utenze e canoni;6;Gas;06-05-2019;
844;1;726;"161,11";"161,11";SOENERGY SRL;7451882F8C;SALDO Fatt.n. 191065122  del 12/03/2019 FORNITURA GAS;30-04-2019;353;0;289;1;Spese correnti;3;Acquisto di beni e servizi;2;Acquisto di servizi;5;Utenze e canoni;6;Gas;06-05-2019;
845;1;727;"76,31";"76,31";SOENERGY SRL;7451882F8C;SALDO Fatt.n. 191065125  del 12/03/2019 FORNITURA GAS;30-04-2019;582;0;288;1;Spese correnti;3;Acquisto di beni e servizi;2;Acquisto di servizi;5;Utenze e canoni;6;Gas;06-05-2019;
846;1;728;"41,24";"41,24";SOENERGY SRL;7451882F8C;SALDO Fatt.n. 191065126  del 12/03/2019 FORNITURA GAS;30-04-2019;112;0;285;1;Spese correnti;3;Acquisto di beni e servizi;2;Acquisto di servizi;5;Utenze e canoni;6;Gas;06-05-2019;
847;1;729;"246,16";"246,16";SOENERGY SRL;7451882F8C;SALDO Fatt.n. 191065127  del 12/03/2019 FORNITURA GAS;30-04-2019;888;0;291;1;Spese correnti;3;Acquisto di beni e servizi;2;Acquisto di servizi;5;Utenze e canoni;6;Gas;06-05-2019;
848;1;730;"168,72";"168,72";SOENERGY SRL;7451882F8C;SALDO Fatt.n. 191065123  del 12/03/2019 FORNITURA GAS;30-04-2019;542;0;287;1;Spese correnti;3;Acquisto di beni e servizi;2;Acquisto di servizi;5;Utenze e canoni;6;Gas;06-05-2019;
849;1;731;"173,26";"173,26";GP GLOBAL POWER SPA;772199148F;SALDO Fatt.n. V0/38031  del 12/03/2019 Fattura Energia Elettrica;30-04-2019;541;0;702;1;Spese correnti;3;Acquisto di beni e servizi;2;Acquisto di servizi;5;Utenze e canoni;4;Energia elettrica;06-05-2019;
850;1;732;"91,41";"91,41";GP GLOBAL POWER SPA;772199148F;SALDO Fatt.n. V0/52437  del 10/04/2019 Fattura Energia Elettrica;30-04-2019;886;0;706;1;Spese correnti;3;Acquisto di beni e servizi;2;Acquisto di servizi;5;Utenze e canoni;4;Energia elettrica;06-05-2019;
851;1;733;"193,68";"193,68";GP GLOBAL POWER SPA;772199148F;SALDO Fatt.n. V0/52436  del 10/04/2019 Fattura Energia Elettrica;30-04-2019;881;0;704;1;Spese correnti;3;Acquisto di beni e servizi;2;Acquisto di servizi;5;Utenze e canoni;4;Energia elettrica;06-05-2019;
852;1;734;"2.089,97";"2.089,97";GP GLOBAL POWER SPA;772199148F;SALDO Fatt.n. V0/52438  del 10/04/2019 Fattura Energia Elettrica;30-04-2019;960;0;708;1;Spese correnti;3;Acquisto di beni e servizi;2;Acquisto di servizi;5;Utenze e canoni;4;Energia elettrica;06-05-2019;
853;1;735;"117,14";"117,14";GP GLOBAL POWER SPA;772199148F;SALDO Fatt.n. V0/52443  del 10/04/2019 Fattura Energia Elettrica;30-04-2019;581;0;703;1;Spese correnti;3;Acquisto di beni e servizi;2;Acquisto di servizi;5;Utenze e canoni;4;Energia elettrica;06-05-2019;
854;1;736;"26,40";"26,40";GP GLOBAL POWER SPA;772199148F;SALDO Fatt.n. V0/52444  del 10/04/2019 Fattura Energia Elettrica;30-04-2019;951;0;707;1;Spese correnti;3;Acquisto di beni e servizi;2;Acquisto di servizi;5;Utenze e canoni;4;Energia elettrica;06-05-2019;
855;1;737;"38,98";"38,98";GP GLOBAL POWER SPA;772199148F;SALDO Fatt.n. V0/52440  del 10/04/2019 Fattura Energia Elettrica;30-04-2019;211;0;700;1;Spese correnti;3;Acquisto di beni e servizi;2;Acquisto di servizi;5;Utenze e canoni;4;Energia elettrica;06-05-2019;
856;1;738;"91,76";"91,76";GP GLOBAL POWER SPA;772199148F;SALDO Fatt.n. V0/52441  del 10/04/2019 Fattura Energia Elettrica;30-04-2019;354;0;701;1;Spese correnti;3;Acquisto di beni e servizi;2;Acquisto di servizi;5;Utenze e canoni;4;Energia elettrica;06-05-2019;
857;1;739;"79,61";"79,61";GP GLOBAL POWER SPA;772199148F;SALDO Fatt.n. V0/52435  del 10/04/2019 Fattura Energia Elettrica;30-04-2019;885;0;705;1;Spese correnti;3;Acquisto di beni e servizi;2;Acquisto di servizi;5;Utenze e canoni;4;Energia elettrica;06-05-2019;
858;1;740;"124,91";"124,91";GP GLOBAL POWER SPA;772199148F;SALDO Fatt.n. V0/52442  del 10/04/2019 Fattura Energia Elettrica;30-04-2019;541;0;702;1;Spese correnti;3;Acquisto di beni e servizi;2;Acquisto di servizi;5;Utenze e canoni;4;Energia elettrica;06-05-2019;
859;1;741;"374,47";"374,47";GP GLOBAL POWER SPA;772199148F;SALDO Fatt.n. V0/52439  del 10/04/2019 Fattura Energia Elettrica;30-04-2019;111;0;699;1;Spese correnti;3;Acquisto di beni e servizi;2;Acquisto di servizi;5;Utenze e canoni;4;Energia elettrica;06-05-2019;
860;1;742;"13,56";"13,56";TELECOM ITALIA;Z402525AA0;SALDO Fatt.n. 8E00156315  del 06/02/2019 2BIM 2019;30-04-2019;213;0;162;1;Spese correnti;3;Acquisto di beni e servizi;2;Acquisto di servizi;5;Utenze e canoni;1;Telefonia fissa;06-05-2019;
861;1;743;"12,07";"12,07";TELECOM ITALIA;Z402525AA0;SALDO Fatt.n. 8E00151408  del 06/02/2019 2BIM 2019;30-04-2019;543;0;163;1;Spese correnti;3;Acquisto di beni e servizi;2;Acquisto di servizi;5;Utenze e canoni;1;Telefonia fissa;06-05-2019;
862;1;744;"23,53";"23,53";TELECOM ITALIA;Z402525AA0;SALDO Fatt.n. 8E00146976  del 06/02/2019 2BIM 2019;30-04-2019;583;0;164;1;Spese correnti;3;Acquisto di beni e servizi;2;Acquisto di servizi;5;Utenze e canoni;1;Telefonia fissa;06-05-2019;
863;1;745;"25,70";"25,70";TELECOM ITALIA;Z402525AA0;SALDO Fatt.n. 8E00153239  del 06/02/2019 2BIM 2019;30-04-2019;113;0;159;1;Spese correnti;3;Acquisto di beni e servizi;2;Acquisto di servizi;5;Utenze e canoni;1;Telefonia fissa;06-05-2019;
864;1;746;"12,77";"12,77";TELECOM ITALIA;Z402525AA0;SALDO Fatt.n. 8E00151946  del 06/02/2019 2BIM 2019;30-04-2019;113;0;158;1;Spese correnti;3;Acquisto di beni e servizi;2;Acquisto di servizi;5;Utenze e canoni;1;Telefonia fissa;06-05-2019;
865;1;747;"8,59";"8,59";TELECOM ITALIA;Z402525AA0;SALDO Fatt.n. 8E00153879  del 06/02/2019 2BIM 2019;30-04-2019;113;0;160;1;Spese correnti;3;Acquisto di beni e servizi;2;Acquisto di servizi;5;Utenze e canoni;1;Telefonia fissa;06-05-2019;
866;1;748;"13,50";"13,50";TELECOM ITALIA;Z402525AA0;SALDO Fatt.n. 8E00150888  del 06/02/2019 2BIM 2019;30-04-2019;113;0;161;1;Spese correnti;3;Acquisto di beni e servizi;2;Acquisto di servizi;5;Utenze e canoni;1;Telefonia fissa;06-05-2019;
867;1;797;"298,46";"298,46";MINISTERO DELL'ECONOMIA E DELLE FINANZE; ;VERSAMENTO IVA A DEBITO RELATIVA AL MESE DI APRILE 2019;03-05-2019;1070;0;217;1;Spese correnti;10;Altre spese correnti;3;Versamenti IVA a debito;1;Versamenti IVA a debito per le gestioni commerciali;1;Versamenti IVA a debito per le gestioni commerciali;14-05-2019;
869;1;749;"9.577,00";"9.577,00";PESENTI GIANNI PIETRO SCAVI MECCANICI;Z2924F6177;SALDO Fatt.n. 21/E  del 28/02/2019;03-05-2019;1174;0;278;2;Spese in conto capitale;2;Investimenti fissi lordi e acquisto di terreni;1;Beni materiali;9;Beni immobili;16;Impianti sportivi;06-05-2019;
870;1;750;"456,00";"456,00";LERCO ANTINCENDI SRL;ZBB1FA6FC8;SALDO Fatt.n. 14/PA  del 29/03/2019 Rif. Det. AREA TECNICA n. 91 del 25/08/2017 - RDO n. 1635524 del 16/08/2017;03-05-2019;352;0;489;1;Spese correnti;3;Acquisto di beni e servizi;2;Acquisto di servizi;9;Manutenzione ordinaria e riparazioni;8;Manutenzione ordinaria e riparazioni di beni immobili;06-05-2019;
871;1;751;"1.976,00";"1.976,00";COGNINI MARIO - STUDIO DI INGEGNERIA;ZDE255F998;SALDO Fatt.n. FATTPA 2_19  del 04/04/2019 VALUTAZIONE IMPATTO ACUSTICO CAMPI DA TENNIS;03-05-2019;270;0;600;1;Spese correnti;3;Acquisto di beni e servizi;2;Acquisto di servizi;11;Prestazioni professionali e specialistiche;999;Altre prestazioni professionali e specialistiche n.a.c.;06-05-2019;
872;1;752;"2.511,98";"2.511,98";NS - NUOVA SCAVI DI BALDO SANDRO & STEFANO;ZF9251298F;SALDO Fatt.n. 17  del 05/04/2019;03-05-2019;1187;2;545;2;Spese in conto capitale;2;Investimenti fissi lordi e acquisto di terreni;1;Beni materiali;9;Beni immobili;12;Infrastrutture stradali;06-05-2019;
873;1;753;"3.220,80";"3.220,80";MORANDO FRANCESCO;ZC1253B725;SALDO Fatt.n. 97/E  del 24/04/2019;03-05-2019;952;0;650;1;Spese correnti;3;Acquisto di beni e servizi;2;Acquisto di servizi;9;Manutenzione ordinaria e riparazioni;8;Manutenzione ordinaria e riparazioni di beni immobili;06-05-2019;
875;1;755;"353,59";"353,59";TELECOM ITALIA;Z7215900F5;SALDO Fatt.n. 7X01521121  del 12/04/2019 3BIM 2019;03-05-2019;113;0;124;1;Spese correnti;3;Acquisto di beni e servizi;2;Acquisto di servizi;5;Utenze e canoni;2;Telefonia mobile;06-05-2019;
876;1;756;"500,00";"500,00";UNITALSI SOTTOSEZIONE DI VERONA; ;"EROGAZIONE CONTRIBUTO ECONOMICO ALL'ASSOCIAZIONE U.N.I.T.A.L.S.I.  SOTTOSEZIONE DI VERONA, APPROVATO CON DELIBERA DI GIUNTA COMUNALE N.16 DEL 13/03/2019.";03-05-2019;895;0;177;1;Spese correnti;4;Trasferimenti correnti;4;Trasferimenti correnti a Istituzioni Sociali Private;1;Trasferimenti correnti a Istituzioni Sociali Private;1;Trasferimenti correnti a Istituzioni Sociali Private;06-05-2019;
877;1;757;"1.157,26";"1.157,26";COMUNE DI SAN BONIFACIO; ;RIPARTIZIONE DEL CANONE DI LOCAZIONE 2018 DELL'IMMOBILE DI PROPRIETA' DEL COMUNE DI SAN BONIFACIO IN USO AL CENTRO PER L'IMPIEGO DI SAN BONIFACIO.;03-05-2019;1030;0;189;1;Spese correnti;3;Acquisto di beni e servizi;2;Acquisto di servizi;7;Utilizzo di beni di terzi;1;Locazione di beni immobili;06-05-2019;
878;1;758;"152,75";"152,75";UNIONE DI COMUNI VERONA EST; ;RIMBORSO CONTRIBUTI ANAC CORRISPOSTI PER PROCEDURE DI GARA ESPLETATE DALLA C.U.C. - UNIONE DI COMUNI VERONA EST PER CONTO DEL COMUNE DI CALDIERO III QUADRIMESTRE ANNO 2018 - DETERMINAZIONI;03-05-2019;115;1;215;1;Spese correnti;3;Acquisto di beni e servizi;2;Acquisto di servizi;11;Prestazioni professionali e specialistiche;999;Altre prestazioni professionali e specialistiche n.a.c.;06-05-2019;
879;1;759;"29.884,15";"29.884,15";DE VECCHI CORRADO SRL;772095801B;ACCONTO Fatt.n. 02/01  del 10/04/2019 fattura;06-05-2019;1184;0;624;2;Spese in conto capitale;2;Investimenti fissi lordi e acquisto di terreni;1;Beni materiali;9;Beni immobili;12;Infrastrutture stradali;06-05-2019;
880;1;760;"8.301,85";"8.301,85";DE VECCHI CORRADO SRL;772095801B;SALDO Fatt.n. 02/01  del 10/04/2019 fattura;06-05-2019;1187;2;623;2;Spese in conto capitale;2;Investimenti fissi lordi e acquisto di terreni;1;Beni materiali;9;Beni immobili;12;Infrastrutture stradali;06-05-2019;
881;1;761;"2.641,51";"2.641,51";CONSORZIO BONIFICA ALTA PIANURA VENETA; ;AVVISO DI PAGAMENTO N. 5810013539 - CONCESSIONI DEMANIALI VARIE ANNO 2019-LIQUIDAZIONI CANONI AL CONSORZIO DI BONIFICA ALTA PIANURA VENETA.;06-05-2019;1000;0;214;1;Spese correnti;4;Trasferimenti correnti;1;Trasferimenti correnti a Amministrazioni Pubbliche;2;Trasferimenti correnti a Amministrazioni Locali;999;Trasferimenti correnti a altre Amministrazioni Locali n.a.c.;06-05-2019;
882;1;762;"20.601,00";"20.601,00";ASSITECA SPA - FILIALE DI VERONA;Z9D28309EB;ASSICURAZIONI - COPERTURA ASSICURATIVA POLIZZA RESPONSABILITA' CIVILE VERSO TERZI E PRESTATORI DI LAVORO R.C.T.O. - PERIODO 30.04.2019 - 30.04.2020 - DETERMINAZIONI;09-05-2019;120;0;227;1;Spese correnti;10;Altre spese correnti;4;Premi di assicurazione;1;Premi di assicurazione contro i danni;3;Premi di assicurazione per responsabilità civile verso terzi;10-05-2019;
883;1;763;"9.097,33";"9.097,33";PESENTI GIANNI PIETRO SCAVI MECCANICI;Z2924F6177;SALDO Fatt.n. 20/E  del 28/02/2019;09-05-2019;1174;0;278;2;Spese in conto capitale;2;Investimenti fissi lordi e acquisto di terreni;1;Beni materiali;9;Beni immobili;16;Impianti sportivi;10-05-2019;
884;1;764;"28,32";"28,32";LERCO ANTINCENDI SRL;ZBB1FA6FC8;SALDO Fatt.n. 17/PA  del 30/04/2019;09-05-2019;352;0;489;1;Spese correnti;3;Acquisto di beni e servizi;2;Acquisto di servizi;9;Manutenzione ordinaria e riparazioni;8;Manutenzione ordinaria e riparazioni di beni immobili;10-05-2019;
885;1;765;"3,98";"3,98";SVAI SPA - NON USARE;ZCD224CEA8;SALDO Fatt.n. 300103  del 30/04/2019;09-05-2019;350;0;123;1;Spese correnti;3;Acquisto di beni e servizi;1;Acquisto di beni;2;Altri beni di consumo;999;Altri beni e materiali di consumo n.a.c.;10-05-2019;
886;1;766;"8.460,84";"8.460,84";CONSORZIO DI BACINO VERONA DUE DEL QUADRILATERO; ;SALDO Fatt.n. 000125/PA  del 07/02/2019 fattura;09-05-2019;840;0;212;1;Spese correnti;3;Acquisto di beni e servizi;2;Acquisto di servizi;15;Contratti di servizio pubblico;4;Contratti di servizio per la raccolta rifiuti;10-05-2019;
887;1;767;"2.206,64";"2.206,64";CONSORZIO DI BACINO VERONA DUE DEL QUADRILATERO; ;SALDO Fatt.n. 000170/PA  del 07/02/2019 fattura;09-05-2019;840;0;212;1;Spese correnti;3;Acquisto di beni e servizi;2;Acquisto di servizi;15;Contratti di servizio pubblico;4;Contratti di servizio per la raccolta rifiuti;10-05-2019;
888;1;768;"5.416,27";"5.416,27";CONSORZIO DI BACINO VERONA DUE DEL QUADRILATERO; ;SALDO Fatt.n. 000214/PA  del 08/02/2019 fattura;09-05-2019;840;0;212;1;Spese correnti;3;Acquisto di beni e servizi;2;Acquisto di servizi;15;Contratti di servizio pubblico;4;Contratti di servizio per la raccolta rifiuti;10-05-2019;
889;1;769;"1.142,08";"1.142,08";CONSORZIO DI BACINO VERONA DUE DEL QUADRILATERO; ;SALDO Fatt.n. 000292/PA  del 15/02/2019;10-05-2019;840;0;212;1;Spese correnti;3;Acquisto di beni e servizi;2;Acquisto di servizi;15;Contratti di servizio pubblico;4;Contratti di servizio per la raccolta rifiuti;10-05-2019;
890;1;770;"33.512,37";"33.512,37";CONSORZIO DI BACINO VERONA DUE DEL QUADRILATERO; ;SALDO Fatt.n. 000304/PA  del 18/02/2019;10-05-2019;840;0;212;1;Spese correnti;3;Acquisto di beni e servizi;2;Acquisto di servizi;15;Contratti di servizio pubblico;4;Contratti di servizio per la raccolta rifiuti;10-05-2019;
891;1;771;"171,60";"171,60";CONSORZIO DI BACINO VERONA DUE DEL QUADRILATERO; ;SALDO Fatt.n. 000370/PA  del 18/02/2019;10-05-2019;840;0;212;1;Spese correnti;3;Acquisto di beni e servizi;2;Acquisto di servizi;15;Contratti di servizio pubblico;4;Contratti di servizio per la raccolta rifiuti;10-05-2019;
900;1;772;"856,89";"856,89";CONSORZIO DI BACINO VERONA DUE DEL QUADRILATERO; ;SALDO Fatt.n. 000383/PA  del 21/02/2019;10-05-2019;840;0;212;1;Spese correnti;3;Acquisto di beni e servizi;2;Acquisto di servizi;15;Contratti di servizio pubblico;4;Contratti di servizio per la raccolta rifiuti;10-05-2019;
901;1;773;"29,35";"29,35";CONSORZIO DI BACINO VERONA DUE DEL QUADRILATERO; ;SALDO Fatt.n. 000429/PA  del 25/02/2019;10-05-2019;840;0;212;1;Spese correnti;3;Acquisto di beni e servizi;2;Acquisto di servizi;15;Contratti di servizio pubblico;4;Contratti di servizio per la raccolta rifiuti;10-05-2019;
902;1;774;"1.924,88";"1.924,88";CONSORZIO DI BACINO VERONA DUE DEL QUADRILATERO; ;SALDO Fatt.n. 000458/PA  del 26/02/2019;10-05-2019;840;0;212;1;Spese correnti;3;Acquisto di beni e servizi;2;Acquisto di servizi;15;Contratti di servizio pubblico;4;Contratti di servizio per la raccolta rifiuti;10-05-2019;
903;1;775;"7.401,60";"7.401,60";CONSORZIO DI BACINO VERONA DUE DEL QUADRILATERO; ;SALDO Fatt.n. 000578/PA  del 25/03/2019;10-05-2019;840;0;212;1;Spese correnti;3;Acquisto di beni e servizi;2;Acquisto di servizi;15;Contratti di servizio pubblico;4;Contratti di servizio per la raccolta rifiuti;10-05-2019;
904;1;776;"6.660,47";"6.660,47";CONSORZIO DI BACINO VERONA DUE DEL QUADRILATERO; ;SALDO Fatt.n. 000704/PA  del 26/03/2019;10-05-2019;840;0;212;1;Spese correnti;3;Acquisto di beni e servizi;2;Acquisto di servizi;15;Contratti di servizio pubblico;4;Contratti di servizio per la raccolta rifiuti;10-05-2019;
905;1;777;"40,02";"40,02";CONSORZIO DI BACINO VERONA DUE DEL QUADRILATERO; ;SALDO Fatt.n. 000748/PA  del 27/03/2019;10-05-2019;840;0;212;1;Spese correnti;3;Acquisto di beni e servizi;2;Acquisto di servizi;15;Contratti di servizio pubblico;4;Contratti di servizio per la raccolta rifiuti;10-05-2019;
906;1;778;"33.512,37";"33.512,37";CONSORZIO DI BACINO VERONA DUE DEL QUADRILATERO; ;SALDO Fatt.n. 000803/PA  del 28/03/2019;10-05-2019;840;0;212;1;Spese correnti;3;Acquisto di beni e servizi;2;Acquisto di servizi;15;Contratti di servizio pubblico;4;Contratti di servizio per la raccolta rifiuti;10-05-2019;
907;1;779;"33.512,37";"33.512,37";CONSORZIO DI BACINO VERONA DUE DEL QUADRILATERO; ;SALDO Fatt.n. 000835/PA  del 28/03/2019;10-05-2019;840;0;212;1;Spese correnti;3;Acquisto di beni e servizi;2;Acquisto di servizi;15;Contratti di servizio pubblico;4;Contratti di servizio per la raccolta rifiuti;10-05-2019;
908;1;780;"-289,96";"349,58";CONSORZIO DI BACINO VERONA DUE DEL QUADRILATERO; ;SALDO Fatt.n. 000882/PA  del 29/03/2019;10-05-2019;840;0;212;1;Spese correnti;3;Acquisto di beni e servizi;2;Acquisto di servizi;15;Contratti di servizio pubblico;4;Contratti di servizio per la raccolta rifiuti;10-05-2019;
908;2;780;"639,54";"349,58";CONSORZIO DI BACINO VERONA DUE DEL QUADRILATERO; ;SALDO Fatt.n. 000627/PA  del 25/03/2019;10-05-2019;840;0;212;1;Spese correnti;3;Acquisto di beni e servizi;2;Acquisto di servizi;15;Contratti di servizio pubblico;4;Contratti di servizio per la raccolta rifiuti;10-05-2019;
909;1;781;"1.460,73";"1.460,73";MINISTERO INTERNO - DIREZIONE CENTR SERV DEMOGRAFICI; ;SERVIZIO ANAGRAFE: LIQUIDAZIONEDIRITTI PER IL RILASCIO DI CARTE D'IDENTITA' ELETTRONICHE APRILE 2019 - N. 87 CARTE DI IDENTITA';10-05-2019;325;0;74;1;Spese correnti;4;Trasferimenti correnti;1;Trasferimenti correnti a Amministrazioni Pubbliche;1;Trasferimenti correnti a Amministrazioni Centrali;1;Trasferimenti correnti a Ministeri;10-05-2019;
910;1;915;"-277,91";"33,35";ACQUE VERONESI SCARL; ;SALDO Fatt.n. 0350120190800216200  del 12/03/2019 B/Bollettazione;10-05-2019;879;0;218;1;Spese correnti;3;Acquisto di beni e servizi;2;Acquisto di servizi;5;Utenze e canoni;5;Acqua;20-05-2019;
910;2;915;"-158,38";"33,35";ACQUE VERONESI SCARL; ;SALDO Fatt.n. 0350120190800217500  del 12/03/2019 B/Bollettazione;10-05-2019;879;0;218;1;Spese correnti;3;Acquisto di beni e servizi;2;Acquisto di servizi;5;Utenze e canoni;5;Acqua;20-05-2019;
910;3;915;"-72,20";"33,35";ACQUE VERONESI SCARL; ;SALDO Fatt.n. 0350120190800216500  del 12/03/2019 B/Bollettazione;10-05-2019;879;0;218;1;Spese correnti;3;Acquisto di beni e servizi;2;Acquisto di servizi;5;Utenze e canoni;5;Acqua;20-05-2019;
